{"text_format":"1","workbook":"xlsx","n_sheets":12,"sheets":["①企業健診について","②健康診断申込書","ID","③注意事項","④受診者リスト","④申込みスケジュール","⑤営業時間","⑥診療日カレンダー","⑦オプション一覧","取り込み用","契約コース内容","運用について"],"not_rendered":{"charts":0,"images":6,"macros":1,"external_links":1,"defined_names":10,"comments":0,"pivot_tables":0},"unopened":[],"bounds":{"document_bytes":16777216,"sheet_cells":100000,"rows_first":2000,"rows_last":500,"rows_between":2000,"halvings":0,"cell_chars":16384,"cell_head_chars":4096},"cells_cut":0,"cells_raw":0,"read":"whole","date_system":"1900"}

{"sheet":"①企業健診について","index":0,"n_rows":25,"n_cols":4,"rows_kept":25,"cut":false,"hidden":false,"merged":[[19,2,19,27],[23,1,23,31],[22,1,22,31],[24,1,24,31],[1,1,1,31],[3,1,3,31],[7,3,7,21],[6,3,6,21],[10,1,10,31],[9,1,9,8],[13,2,13,27],[14,2,14,27],[15,2,15,27],[17,2,17,27],[18,2,18,27],[16,2,16,27]]}
[]
[null,"2025年度 企業健診申込について"]
[]
[null,"企業健診の申込みにつきまして、下記の必要書類をご用意の上ご予約いただきますようお願い申し上げます。"]
[]
[null,null,null,"【企業健診申込みに必要な書類】"]
[null,null,null,"　1.健康診断申込書"]
[null,null,null,"　2.受診者リスト　"]
[]
[null,"【注意事項】"]
[null,"◎ご予約について\n　３名様以上のご予約は、申込書類をご入力の上、メールまたはFAXにてお申し込みください。\n　２名様までのご予約はお電話・メール・FAXにてお申し込み可能です。\n\n◎請求書発行について\n　請求書発行は10名様以上のご予約を取り纏めて頂ける企業様のみとさせていただきます。\n　（9名様以下の企業様及び個人でのお申込みは当日窓口支払いとなります）\n\n◎企業様健診結果の送付について\n　東振協契約のコースを受診の場合は、『労働安全衛生規則』に定められた検査結果の提供を\n　行っておりません。\n　東振協契約のコース以外を受診の場合や、その他の健康保険組合に関しては、健康保険組合\n　によって異なるためご相談ください。\n\n　ご理解ご協力の程よろしくお願い申し上げます。"]
[]
[]
[null,null,"■お申込み方法お問合せ"]
[null,null,"医療法人 福岡桜十字 桜十字福岡病院 <人間ドック・健診センター>"]
[null,null,"TEL : 092-791-1120"]
[null,null,"FAX ： 092-791-5650"]
[null,null,"メール : f.web.yoyaku@sakurajyuji.jp  "]
[null,null,"受付時間 平日 8:30～16:30 ／ 第 １・３土曜 8:30～12:00"]
[null,null,"（但し、祝日及び４月第１土曜日は休診日となります。）"]
[]
[]
[null,"書類確認後、当院より健診日程のご連絡をさせて頂きます。"]
[null,"年度初めは健診のお申込を多く頂く為、予約の日程調整にお時間をいただく場合がございます。"]
[null,"順番に対応致しますので、ご了承の程よろしくお願い申し上げます。"]

{"sheet":"②健康診断申込書","index":1,"n_rows":34,"n_cols":27,"rows_kept":34,"cut":false,"hidden":false,"merged":[[2,19,2,21],[4,1,4,26],[10,1,12,4],[10,5,10,7],[13,1,15,4],[13,6,13,7],[13,9,13,11],[13,12,13,26],[14,5,15,26],[10,8,10,26],[11,5,12,26],[6,1,6,26],[9,1,9,26],[8,1,8,26],[2,15,2,18],[33,2,33,17],[32,2,32,17],[16,5,16,13],[16,14,16,17],[16,18,16,26],[18,1,19,4],[18,5,19,13],[18,14,19,17],[18,18,18,19],[18,20,18,26],[19,18,19,26],[17,1,17,4],[17,5,17,26],[16,1,16,4],[21,1,21,7],[22,1,22,26],[24,2,24,17],[29,2,29,17],[28,2,28,17],[26,2,26,17],[30,2,30,17]]}
[]
[]
[null,null,null,null,null,null,null,null,null,null,null,null,null,null,null,"お 申 込 日",null,null,null,null,null,null,"年",null,"月",null,"日"]
[]
[null,"２０２５年度　健康診断申込書 "]
[]
[null,"1.健康診断申込書（本用紙）　　2.受診者リスト　　を共にメールまたはFAXにてお申込み下さい。"]
[]
[null,"◎事業所様情報"]
[null,"　下記事業所様住所へ送付物（事前ご案内書類・健診結果・対象事業所様は請求書）の手配をいたします。\n　尚、ご本人様向け書類（問診票 / 健診結果報告書）の送付先はご自宅へも変更可能です。\n　ご希望の場合は日程確定後にご相談下さい。"]
[null,"事  業  所  名",null,null,null,"フ リ ガ ナ"]
[]
[]
[null,"事業所所在地",null,null,null,"〒",null,null,"-"]
[]
[]
[null,"電  話  番  号",null,null,null,null,null,null,null,null,null,null,null,null,"Ｆ Ａ Ｘ 番 号"]
[null,"メールアドレス"]
[null,"担  当  部  署",null,null,null,null,null,null,null,null,null,null,null,null,"担当者様名",null,null,null,"フリガナ"]
[]
[]
[null,"◎請求書発行について"]
[null,"・請求書発行は10名様以上のご予約を取り纏めてお申込みの企業様のみとさせていただきます。\n　→請求内容については、健康保険組合によって異なりますのでご相談ください。\n\n・9名様以下の企業様及び個人でのお申込みは当日窓口支払いとなります。\n　→下記請求内容は空欄でご提出ください。"]
[]
[null,null,"■お申込み方法(メール・FAXにて受付）・お問合せ"]
[]
[null,null,"医療法人福岡桜十字 桜十字福岡病院 <人間ドック・健診センター>"]
[]
[null,null,"TEL : 092-791-1120"]
[null,null,"FAX : 092-791-5650"]
[null,null,"メール : f.web.yoyaku@sakurajyuji.jp"]
[]
[null,null,"受付時間 平日 8:30～16:30／第1・3土曜日 8:30～12:00"]
[null,null,"（但し、祝日及び４月第１土曜日は休診日となります。）"]

{"sheet":"ID","index":2,"n_rows":1,"n_cols":11,"rows_kept":1,"cut":false,"hidden":true,"merged":[]}
["ID","カナ氏名","氏名","性別","生年月日","団体1・団体番号","本人家族区分","任継区分","被保険者証等記号","被保険者証等番号","保険者番号"]

{"sheet":"③注意事項","index":3,"n_rows":36,"n_cols":19,"rows_kept":36,"cut":false,"hidden":false,"merged":[[29,2,29,14],[31,2,31,14],[33,2,33,14],[35,2,35,14],[2,1,2,15],[8,3,8,13],[23,4,23,5],[23,6,23,7],[23,10,23,11],[23,12,23,13],[25,2,25,14],[27,2,27,14],[21,4,21,5],[21,6,21,7],[21,10,21,11],[21,12,21,13],[18,4,18,5],[18,6,18,7],[18,10,18,11],[18,12,18,13],[22,4,22,5],[22,6,22,7],[22,10,22,11],[22,12,22,13],[19,4,19,5],[19,6,19,7],[19,10,19,11],[19,12,19,13],[20,4,20,5],[20,6,20,7],[20,10,20,11],[20,12,20,13],[16,4,16,5],[16,6,16,7],[16,10,16,11],[16,12,16,13],[17,4,17,5],[17,6,17,7],[17,10,17,11],[17,12,17,13],[14,4,14,5],[14,6,14,7],[14,10,14,11],[14,12,14,13],[15,4,15,5],[15,6,15,7],[15,10,15,11],[15,12,15,13],[12,4,12,5],[12,6,12,7],[12,10,12,11],[12,12,12,13],[13,4,13,5],[13,6,13,7],[13,10,13,11],[13,12,13,13],[6,2,6,14],[10,3,10,7],[10,9,10,13],[4,1,4,15],[11,4,11,5],[11,6,11,7],[11,10,11,11],[11,12,11,13]]}
[]
[]
[null,"健康保険組合用"]
[]
[null,"ご予約受付時に不備が多い項目"]
[]
[null,null,"◇　【胃部検査項目】欄の記入に関して\n\n　　 「胃透視検査（バリウム）」 ・ 「胃カメラ（胃部内視鏡）」のどちらをご希望されるか、必ずご記入\n　　　ください。\n　　 \n　　 ※ 胃カメラ選択時は、①経鼻（鎮静剤なし）　②経口（鎮静剤なし）　③経口（鎮静剤あり）から\n　　　　 お選びください。\n　　　　 ご希望の内容によってご予約可能なお時間が異なりますので下記表をご参照下さい。\n　　　　 なお、「✕鎮静剤なし」の時間帯でご予約いただいた方につきましては、健診日当日に\n　　　　「●鎮静剤あり」の時間帯への変更はできませんので予めご了承ください。",null,null,null,null,null,null,null,null,null,null,null,null,null,null,null,"　"]
[]
[null,null,null,"● 鎮静剤あり　　　　　× 鎮静剤なし　　　　　△ 選択可能"]
[]
[null,null,null,"天神",null,null,null,null,null,"博多"]
[null,null,null,null,"平日",null,"土曜日",null,null,null,"平日",null,"土曜日"]
[null,null,null,"07:45:00","△",null,null,null,null,"07:45:00"]
[null,null,null,"08:00:00","△",null,"△",null,null,"08:00:00","●",null,"●"]
[null,null,null,"08:15:00","△",null,"△",null,null,"08:15:00","●",null,"●"]
[null,null,null,"08:30:00","△",null,"△",null,null,"08:30:00","×"]
[null,null,null,"08:45:00","×",null,"△",null,null,"08:45:00","×"]
[null,null,null,"09:00:00","●",null,"×",null,null,"09:00:00","●",null,"●"]
[null,null,null,"09:15:00","●",null,"×",null,null,"09:15:00","●",null,"●"]
[null,null,null,"09:30:00","×",null,null,null,null,"09:30:00","×"]
[null,null,null,"09:45:00",null,null,null,null,null,"09:45:00","×"]
[null,null,null,"10:00:00",null,null,null,null,null,"10:00:00","●",null,"●"]
[null,null,null,"10:15:00",null,null,null,null,null,"10:15:00","●"]
[null,null,null,"10:30:00",null,null,null,null,null,"10:30:00","×"]
[]
[null,null,"◇　【マンモグラフィー】の記入に関して\n　　 マンモグラフィーをご希望の場合は、必ず「1方向」か「2方向」のどちらをご希望されるか\n　　 ご選択/ご記入ください。"]
[]
[null,null,"◇　【個人情報】の記入に関して\n　　 現在お持ちの健康保険証と同じ情報をご記入ください。\n　　 相違がある場合、補助がでない場合もございますのでご注意ください。"]
[]
[null,null,"◇　【健診コース】の記入に関して\n　　 ご年齢や性別によって補助対象コースがございます。\n　　 ご希望のコースをご記入の際は、コースに誤りがないか今一度ご確認ください。"]
[]
[null,null,"●　上記正確に記載されたものから受付とさせていただきますので、お申込み依頼の前に必ずご確認ください。"]
[]
[null,null,"●　原則受付後2週間以内に回答をさせていただきますが、年度初めはお申込みが混み合いますため、予約の日程調整にお時間をいただく場合がございますので予めご了承ください。"]
[]
[null,null,"●　ご回答のスケジュールとしては「申込みスケジュール（別紙参照）」の期間を予定しておりますが、お申込み状況によってはそれ以上お待ちいただく可能性もございますので予めご了承ください。"]

{"sheet":"④受診者リスト","index":4,"n_rows":919,"n_cols":53,"rows_kept":919,"cut":false,"hidden":false,"merged":[[513,12,513,13],[513,14,513,15],[513,16,513,17],[514,12,514,13],[514,14,514,15],[514,16,514,17],[515,12,515,13],[515,14,515,15],[515,16,515,17],[516,12,516,13],[516,14,516,15],[516,16,516,17],[517,12,517,13],[517,14,517,15],[517,16,517,17],[518,12,518,13],[518,14,518,15],[518,16,518,17],[507,12,507,13],[507,14,507,15],[507,16,507,17],[508,12,508,13],[508,14,508,15],[508,16,508,17],[509,12,509,13],[509,14,509,15],[509,16,509,17],[510,12,510,13],[510,14,510,15],[510,16,510,17],[511,12,511,13],[511,14,511,15],[511,16,511,17],[512,12,512,13],[512,14,512,15],[512,16,512,17],[501,12,501,13],[501,14,501,15],[501,16,501,17],[502,12,502,13],[502,14,502,15],[502,16,502,17],[503,12,503,13],[503,14,503,15],[503,16,503,17],[504,12,504,13],[504,14,504,15],[504,16,504,17],[505,12,505,13],[505,14,505,15],[505,16,505,17],[506,12,506,13],[506,14,506,15],[506,16,506,17],[495,12,495,13],[495,14,495,15],[495,16,495,17],[496,12,496,13],[496,14,496,15],[496,16,496,17],[497,12,497,13],[497,14,497,15],[497,16,497,17],[498,12,498,13],[498,14,498,15],[498,16,498,17],[499,12,499,13],[499,14,499,15],[499,16,499,17],[500,12,500,13],[500,14,500,15],[500,16,500,17],[489,12,489,13],[489,14,489,15],[489,16,489,17],[490,12,490,13],[490,14,490,15],[490,16,490,17],[491,12,491,13],[491,14,491,15],[491,16,491,17],[492,12,492,13],[492,14,492,15],[492,16,492,17],[493,12,493,13],[493,14,493,15],[493,16,493,17],[494,12,494,13],[494,14,494,15],[494,16,494,17],[483,12,483,13],[483,14,483,15],[483,16,483,17],[484,12,484,13],[484,14,484,15],[484,16,484,17],[485,12,485,13],[485,14,485,15],[485,16,485,17],[486,12,486,13],[486,14,486,15],[486,16,486,17],[487,12,487,13],[487,14,487,15],[487,16,487,17],[488,12,488,13],[488,14,488,15],[488,16,488,17],[477,12,477,13],[477,14,477,15],[477,16,477,17],[478,12,478,13],[478,14,478,15],[478,16,478,17],[479,12,479,13],[479,14,479,15],[479,16,479,17],[480,12,480,13],[480,14,480,15],[480,16,480,17],[481,12,481,13],[481,14,481,15],[481,16,481,17],[482,12,482,13],[482,14,482,15],[482,16,482,17],[471,12,471,13],[471,14,471,15],[471,16,471,17],[472,12,472,13],[472,14,472,15],[472,16,472,17],[473,12,473,13],[473,14,473,15],[473,16,473,17],[474,12,474,13],[474,14,474,15],[474,16,474,17],[475,12,475,13],[475,14,475,15],[475,16,475,17],[476,12,476,13],[476,14,476,15],[476,16,476,17],[465,12,465,13],[465,14,465,15],[465,16,465,17],[466,12,466,13],[466,14,466,15],[466,16,466,17],[467,12,467,13],[467,14,467,15],[467,16,467,17],[468,12,468,13],[468,14,468,15],[468,16,468,17],[469,12,469,13],[469,14,469,15],[469,16,469,17],[470,12,470,13],[470,14,470,15],[470,16,470,17],[459,12,459,13],[459,14,459,15],[459,16,459,17],[460,12,460,13],[460,14,460,15],[460,16,460,17],[461,12,461,13],[461,14,461,15],[461,16,461,17],[462,12,462,13],[462,14,462,15],[462,16,462,17],[463,12,463,13],[463,14,463,15],[463,16,463,17],[464,12,464,13],[464,14,464,15],[464,16,464,17],[453,12,453,13],[453,14,453,15],[453,16,453,17],[454,12,454,13],[454,14,454,15],[454,16,454,17],[455,12,455,13],[455,14,455,15],[455,16,455,17],[456,12,456,13],[456,14,456,15],[456,16,456,17],[457,12,457,13],[457,14,457,15],[457,16,457,17],[458,12,458,13],[458,14,458,15],[458,16,458,17],[447,12,447,13],[447,14,447,15],[447,16,447,17],[448,12,448,13],[448,14,448,15],[448,16,448,17],[449,12,449,13],[449,14,449,15],[449,16,449,17],[450,12,450,13],[450,14,450,15],[450,16,450,17],[451,12,451,13],[451,14,451,15],[451,16,451,17],[452,12,452,13],[452,14,452,15],[452,16,452,17],[441,12,441,13],[441,14,441,15],[441,16,441,17],[442,12,442,13],[442,14,442,15],[442,16,442,17],[443,12,443,13],[443,14,443,15],[443,16,443,17],[444,12,444,13],[444,14,444,15],[444,16,444,17],[445,12,445,13],[445,14,445,15],[445,16,445,17],[446,12,446,13],[446,14,446,15],[446,16,446,17],[435,12,435,13],[435,14,435,15],[435,16,435,17],[436,12,436,13],[436,14,436,15],[436,16,436,17],[437,12,437,13],[437,14,437,15],[437,16,437,17],[438,12,438,13],[438,14,438,15],[438,16,438,17],[439,12,439,13],[439,14,439,15],[439,16,439,17],[440,12,440,13],[440,14,440,15],[440,16,440,17],[429,12,429,13],[429,14,429,15],[429,16,429,17],[430,12,430,13],[430,14,430,15],[430,16,430,17],[431,12,431,13],[431,14,431,15],[431,16,431,17],[432,12,432,13],[432,14,432,15],[432,16,432,17],[433,12,433,13],[433,14,433,15],[433,16,433,17],[434,12,434,13],[434,14,434,15],[434,16,434,17],[423,12,423,13],[423,14,423,15],[423,16,423,17],[424,12,424,13],[424,14,424,15],[424,16,424,17],[425,12,425,13],[425,14,425,15],[425,16,425,17],[426,12,426,13],[426,14,426,15],[426,16,426,17],[427,12,427,13],[427,14,427,15],[427,16,427,17],[428,12,428,13],[428,14,428,15],[428,16,428,17],[417,12,417,13],[417,14,417,15],[417,16,417,17],[418,12,418,13],[418,14,418,15],[418,16,418,17],[419,12,419,13],[419,14,419,15],[419,16,419,17],[420,12,420,13],[420,14,420,15],[420,16,420,17],[421,12,421,13],[421,14,421,15],[421,16,421,17],[422,12,422,13],[422,14,422,15],[422,16,422,17],[411,12,411,13],[411,14,411,15],[411,16,411,17],[412,12,412,13],[412,14,412,15],[412,16,412,17],[413,12,413,13],[413,14,413,15],[413,16,413,17],[414,12,414,13],[414,14,414,15],[414,16,414,17],[415,12,415,13],[415,14,415,15],[415,16,415,17],[416,12,416,13],[416,14,416,15],[416,16,416,17],[405,12,405,13],[405,14,405,15],[405,16,405,17],[406,12,406,13],[406,14,406,15],[406,16,406,17],[407,12,407,13],[407,14,407,15],[407,16,407,17],[408,12,408,13],[408,14,408,15],[408,16,408,17],[409,12,409,13],[409,14,409,15],[409,16,409,17],[410,12,410,13],[410,14,410,15],[410,16,410,17],[399,12,399,13],[399,14,399,15],[399,16,399,17],[400,12,400,13],[400,14,400,15],[400,16,400,17],[401,12,401,13],[401,14,401,15],[401,16,401,17],[402,12,402,13],[402,14,402,15],[402,16,402,17],[403,12,403,13],[403,14,403,15],[403,16,403,17],[404,12,404,13],[404,14,404,15],[404,16,404,17],[393,12,393,13],[393,14,393,15],[393,16,393,17],[394,12,394,13],[394,14,394,15],[394,16,394,17],[395,12,395,13],[395,14,395,15],[395,16,395,17],[396,12,396,13],[396,14,396,15],[396,16,396,17],[397,12,397,13],[397,14,397,15],[397,16,397,17],[398,12,398,13],[398,14,398,15],[398,16,398,17],[387,12,387,13],[387,14,387,15],[387,16,387,17],[388,12,388,13],[388,14,388,15],[388,16,388,17],[389,12,389,13],[389,14,389,15],[389,16,389,17],[390,12,390,13],[390,14,390,15],[390,16,390,17],[391,12,391,13],[391,14,391,15],[391,16,391,17],[392,12,392,13],[392,14,392,15],[392,16,392,17],[381,12,381,13],[381,14,381,15],[381,16,381,17],[382,12,382,13],[382,14,382,15],[382,16,382,17],[383,12,383,13],[383,14,383,15],[383,16,383,17],[384,12,384,13],[384,14,384,15],[384,16,384,17],[385,12,385,13],[385,14,385,15],[385,16,385,17],[386,12,386,13],[386,14,386,15],[386,16,386,17],[375,12,375,13],[375,14,375,15],[375,16,375,17],[376,12,376,13],[376,14,376,15],[376,16,376,17],[377,12,377,13],[377,14,377,15],[377,16,377,17],[378,12,378,13],[378,14,378,15],[378,16,378,17],[379,12,379,13],[379,14,379,15],[379,16,379,17],[380,12,380,13],[380,14,380,15],[380,16,380,17],[369,12,369,13],[369,14,369,15],[369,16,369,17],[370,12,370,13],[370,14,370,15],[370,16,370,17],[371,12,371,13],[371,14,371,15],[371,16,371,17],[372,12,372,13],[372,14,372,15],[372,16,372,17],[373,12,373,13],[373,14,373,15],[373,16,373,17],[374,12,374,13],[374,14,374,15],[374,16,374,17],[363,12,363,13],[363,14,363,15],[363,16,363,17],[364,12,364,13],[364,14,364,15],[364,16,364,17],[365,12,365,13],[365,14,365,15],[365,16,365,17],[366,12,366,13],[366,14,366,15],[366,16,366,17],[367,12,367,13],[367,14,367,15],[367,16,367,17],[368,12,368,13],[368,14,368,15],[368,16,368,17],[357,12,357,13],[357,14,357,15],[357,16,357,17],[358,12,358,13],[358,14,358,15],[358,16,358,17],[359,12,359,13],[359,14,359,15],[359,16,359,17],[360,12,360,13],[360,14,360,15],[360,16,360,17],[361,12,361,13],[361,14,361,15],[361,16,361,17],[362,12,362,13],[362,14,362,15],[362,16,362,17],[351,12,351,13],[351,14,351,15],[351,16,351,17],[352,12,352,13],[352,14,352,15],[352,16,352,17],[353,12,353,13],[353,14,353,15],[353,16,353,17],[354,12,354,13],[354,14,354,15],[354,16,354,17],[355,12,355,13],[355,14,355,15],[355,16,355,17],[356,12,356,13],[356,14,356,15],[356,16,356,17],[345,12,345,13],[345,14,345,15],[345,16,345,17],[346,12,346,13],[346,14,346,15],[346,16,346,17],[347,12,347,13],[347,14,347,15],[347,16,347,17],[348,12,348,13],[348,14,348,15],[348,16,348,17],[349,12,349,13],[349,14,349,15],[349,16,349,17],[350,12,350,13],[350,14,350,15],[350,16,350,17],[339,12,339,13],[339,14,339,15],[339,16,339,17],[340,12,340,13],[340,14,340,15],[340,16,340,17],[341,12,341,13],[341,14,341,15],[341,16,341,17],[342,12,342,13],[342,14,342,15],[342,16,342,17],[343,12,343,13],[343,14,343,15],[343,16,343,17],[344,12,344,13],[344,14,344,15],[344,16,344,17],[333,12,333,13],[333,14,333,15],[333,16,333,17],[334,12,334,13],[334,14,334,15],[334,16,334,17],[335,12,335,13],[335,14,335,15],[335,16,335,17],[336,12,336,13],[336,14,336,15],[336,16,336,17],[337,12,337,13],[337,14,337,15],[337,16,337,17],[338,12,338,13],[338,14,338,15],[338,16,338,17],[327,12,327,13],[327,14,327,15],[327,16,327,17],[328,12,328,13],[328,14,328,15],[328,16,328,17],[329,12,329,13],[329,14,329,15],[329,16,329,17],[330,12,330,13],[330,14,330,15],[330,16,330,17],[331,12,331,13],[331,14,331,15],[331,16,331,17],[332,12,332,13],[332,14,332,15],[332,16,332,17],[321,12,321,13],[321,14,321,15],[321,16,321,17],[322,12,322,13],[322,14,322,15],[322,16,322,17],[323,12,323,13],[323,14,323,15],[323,16,323,17],[324,12,324,13],[324,14,324,15],[324,16,324,17],[325,12,325,13],[325,14,325,15],[325,16,325,17],[326,12,326,13],[326,14,326,15],[326,16,326,17],[315,12,315,13],[315,14,315,15],[315,16,315,17],[316,12,316,13],[316,14,316,15],[316,16,316,17],[317,12,317,13],[317,14,317,15],[317,16,317,17],[318,12,318,13],[318,14,318,15],[318,16,318,17],[319,12,319,13],[319,14,319,15],[319,16,319,17],[320,12,320,13],[320,14,320,15],[320,16,320,17],[309,12,309,13],[309,14,309,15],[309,16,309,17],[310,12,310,13],[310,14,310,15],[310,16,310,17],[311,12,311,13],[311,14,311,15],[311,16,311,17],[312,12,312,13],[312,14,312,15],[312,16,312,17],[313,12,313,13],[313,14,313,15],[313,16,313,17],[314,12,314,13],[314,14,314,15],[314,16,314,17],[303,12,303,13],[303,14,303,15],[303,16,303,17],[304,12,304,13],[304,14,304,15],[304,16,304,17],[305,12,305,13],[305,14,305,15],[305,16,305,17],[306,12,306,13],[306,14,306,15],[306,16,306,17],[307,12,307,13],[307,14,307,15],[307,16,307,17],[308,12,308,13],[308,14,308,15],[308,16,308,17],[297,12,297,13],[297,14,297,15],[297,16,297,17],[298,12,298,13],[298,14,298,15],[298,16,298,17],[299,12,299,13],[299,14,299,15],[299,16,299,17],[300,12,300,13],[300,14,300,15],[300,16,300,17],[301,12,301,13],[301,14,301,15],[301,16,301,17],[302,12,302,13],[302,14,302,15],[302,16,302,17],[291,12,291,13],[291,14,291,15],[291,16,291,17],[292,12,292,13],[292,14,292,15],[292,16,292,17],[293,12,293,13],[293,14,293,15],[293,16,293,17],[294,12,294,13],[294,14,294,15],[294,16,294,17],[295,12,295,13],[295,14,295,15],[295,16,295,17],[296,12,296,13],[296,14,296,15],[296,16,296,17],[285,12,285,13],[285,14,285,15],[285,16,285,17],[286,12,286,13],[286,14,286,15],[286,16,286,17],[287,12,287,13],[287,14,287,15],[287,16,287,17],[288,12,288,13],[288,14,288,15],[288,16,288,17],[289,12,289,13],[289,14,289,15],[289,16,289,17],[290,12,290,13],[290,14,290,15],[290,16,290,17],[279,12,279,13],[279,14,279,15],[279,16,279,17],[280,12,280,13],[280,14,280,15],[280,16,280,17],[281,12,281,13],[281,14,281,15],[281,16,281,17],[282,12,282,13],[282,14,282,15],[282,16,282,17],[283,12,283,13],[283,14,283,15],[283,16,283,17],[284,12,284,13],[284,14,284,15],[284,16,284,17],[273,12,273,13],[273,14,273,15],[273,16,273,17],[274,12,274,13],[274,14,274,15],[274,16,274,17],[275,12,275,13],[275,14,275,15],[275,16,275,17],[276,12,276,13],[276,14,276,15],[276,16,276,17],[277,12,277,13],[277,14,277,15],[277,16,277,17],[278,12,278,13],[278,14,278,15],[278,16,278,17],[267,12,267,13],[267,14,267,15],[267,16,267,17],[268,12,268,13],[268,14,268,15],[268,16,268,17],[269,12,269,13],[269,14,269,15],[269,16,269,17],[270,12,270,13],[270,14,270,15],[270,16,270,17],[271,12,271,13],[271,14,271,15],[271,16,271,17],[272,12,272,13],[272,14,272,15],[272,16,272,17],[261,12,261,13],[261,14,261,15],[261,16,261,17],[262,12,262,13],[262,14,262,15],[262,16,262,17],[263,12,263,13],[263,14,263,15],[263,16,263,17],[264,12,264,13],[264,14,264,15],[264,16,264,17],[265,12,265,13],[265,14,265,15],[265,16,265,17],[266,12,266,13],[266,14,266,15],[266,16,266,17],[255,12,255,13],[255,14,255,15],[255,16,255,17],[256,12,256,13],[256,14,256,15],[256,16,256,17],[257,12,257,13],[257,14,257,15],[257,16,257,17],[258,12,258,13],[258,14,258,15],[258,16,258,17],[259,12,259,13],[259,14,259,15],[259,16,259,17],[260,12,260,13],[260,14,260,15],[260,16,260,17],[249,12,249,13],[249,14,249,15],[249,16,249,17],[250,12,250,13],[250,14,250,15],[250,16,250,17],[251,12,251,13],[251,14,251,15],[251,16,251,17],[252,12,252,13],[252,14,252,15],[252,16,252,17],[253,12,253,13],[253,14,253,15],[253,16,253,17],[254,12,254,13],[254,14,254,15],[254,16,254,17],[243,12,243,13],[243,14,243,15],[243,16,243,17],[244,12,244,13],[244,14,244,15],[244,16,244,17],[245,12,245,13],[245,14,245,15],[245,16,245,17],[246,12,246,13],[246,14,246,15],[246,16,246,17],[247,12,247,13],[247,14,247,15],[247,16,247,17],[248,12,248,13],[248,14,248,15],[248,16,248,17],[237,12,237,13],[237,14,237,15],[237,16,237,17],[238,12,238,13],[238,14,238,15],[238,16,238,17],[239,12,239,13],[239,14,239,15],[239,16,239,17],[240,12,240,13],[240,14,240,15],[240,16,240,17],[241,12,241,13],[241,14,241,15],[241,16,241,17],[242,12,242,13],[242,14,242,15],[242,16,242,17],[231,12,231,13],[231,14,231,15],[231,16,231,17],[232,12,232,13],[232,14,232,15],[232,16,232,17],[233,12,233,13],[233,14,233,15],[233,16,233,17],[234,12,234,13],[234,14,234,15],[234,16,234,17],[235,12,235,13],[235,14,235,15],[235,16,235,17],[236,12,236,13],[236,14,236,15],[236,16,236,17],[225,12,225,13],[225,14,225,15],[225,16,225,17],[226,12,226,13],[226,14,226,15],[226,16,226,17],[227,12,227,13],[227,14,227,15],[227,16,227,17],[228,12,228,13],[228,14,228,15],[228,16,228,17],[229,12,229,13],[229,14,229,15],[229,16,229,17],[230,12,230,13],[230,14,230,15],[230,16,230,17],[219,12,219,13],[219,14,219,15],[219,16,219,17],[220,12,220,13],[220,14,220,15],[220,16,220,17],[221,12,221,13],[221,14,221,15],[221,16,221,17],[222,12,222,13],[222,14,222,15],[222,16,222,17],[223,12,223,13],[223,14,223,15],[223,16,223,17],[224,12,224,13],[224,14,224,15],[224,16,224,17],[213,12,213,13],[213,14,213,15],[213,16,213,17],[214,12,214,13],[214,14,214,15],[214,16,214,17],[215,12,215,13],[215,14,215,15],[215,16,215,17],[216,12,216,13],[216,14,216,15],[216,16,216,17],[217,12,217,13],[217,14,217,15],[217,16,217,17],[218,12,218,13],[218,14,218,15],[218,16,218,17],[207,12,207,13],[207,14,207,15],[207,16,207,17],[208,12,208,13],[208,14,208,15],[208,16,208,17],[209,12,209,13],[209,14,209,15],[209,16,209,17],[210,12,210,13],[210,14,210,15],[210,16,210,17],[211,12,211,13],[211,14,211,15],[211,16,211,17],[212,12,212,13],[212,14,212,15],[212,16,212,17],[201,12,201,13],[201,14,201,15],[201,16,201,17],[202,12,202,13],[202,14,202,15],[202,16,202,17],[203,12,203,13],[203,14,203,15],[203,16,203,17],[204,12,204,13],[204,14,204,15],[204,16,204,17],[205,12,205,13],[205,14,205,15],[205,16,205,17],[206,12,206,13],[206,14,206,15],[206,16,206,17],[195,12,195,13],[195,14,195,15],[195,16,195,17],[196,12,196,13],[196,14,196,15],[196,16,196,17],[197,12,197,13],[197,14,197,15],[197,16,197,17],[198,12,198,13],[198,14,198,15],[198,16,198,17],[199,12,199,13],[199,14,199,15],[199,16,199,17],[200,12,200,13],[200,14,200,15],[200,16,200,17],[189,12,189,13],[189,14,189,15],[189,16,189,17],[190,12,190,13],[190,14,190,15],[190,16,190,17],[191,12,191,13],[191,14,191,15],[191,16,191,17],[192,12,192,13],[192,14,192,15],[192,16,192,17],[193,12,193,13],[193,14,193,15],[193,16,193,17],[194,12,194,13],[194,14,194,15],[194,16,194,17],[183,12,183,13],[183,14,183,15],[183,16,183,17],[184,12,184,13],[184,14,184,15],[184,16,184,17],[185,12,185,13],[185,14,185,15],[185,16,185,17],[186,12,186,13]],"merged_total":1532,"flags":["merged_cut"]}
["出力日時",{"$f":"NOW()","v":"2025-07-16T14:53:12.980"}]
["2025年度　健康診断予約表（東振協加入企業・団体用）",null,null,null,null,null,null,null,null,"※ご所属の組合によって記載箇所が異なる可能性がございます"]
["団体番号",null,"（当院入力箇所）"]
[null,null,"以下お客様にてすべてご入力ください"]
["健康保険組合名"]
["企業名"]
["ご担当者名",null,null,null,null,null,null,null,null,null,null,null,null,null,null,null,null,null,null,null,null,null,null,null,null,null,null,null,null,null,null,null,null,null,null,null,null,null,null,null,null,null,null,null,null,"A1",{"$f":"COUNTIF(J20:J519,\"A1\")","v":0},"MDL",{"$f":"COUNTIF(K20:K519,\"バリウム\")","v":0}]
["電話番号",null,null,null,null,null,null,null,null,null,null,null,null,null,null,null,null,null,null,null,null,null,null,null,null,null,null,null,null,null,null,null,null,null,null,null,null,null,null,null,null,null,null,null,null,"A2",{"$f":"COUNTIF(J20:J519,\"A2\")","v":0},"GF鎮静有",{"$f":"COUNTIF(K20:K519,\"胃カメラ(口/鎮静剤あり)\")","v":0}]
["保険者番号",null,null,null,null,null,null,null,null,null,null,null,null,null,null,null,null,null,null,null,null,null,null,null,null,null,null,null,null,null,null,null,null,null,null,null,null,null,null,null,null,null,null,null,null,"B",{"$f":"COUNTIF(J20:J519,\"B\")","v":0},"GF鎮静無",{"$f":"COUNTIF(K20:K519,\"胃カメラ(口/鎮静剤なし)\")+COUNTIF(K20:K519,\"胃カメラ(鼻/鎮静剤なし)\")","v":0}]
["保険者記号",null,null,null,null,null,null,null,null,null,null,null,null,null,null,null,null,null,null,null,null,null,null,null,null,null,null,null,null,null,null,null,null,null,null,null,null,null,null,null,null,null,null,null,null,"B1",{"$f":"COUNTIF(J20:J519,\"B1\")","v":0},"子宮",{"$f":"COUNTIF(#REF!,\"○\")","v":{"$error":"#REF!"}}]
["希望受診時期",null,null,null,"例）4月～5月、特になし等",null,null,null,null,null,null,null,null,null,null,null,null,null,null,null,null,null,null,null,null,null,null,null,null,null,null,null,null,null,null,null,null,null,null,null,null,null,null,null,null,"D1",{"$f":"COUNTIF(J20:J519,\"D1\")","v":0},"マンモ",{"$f":"COUNTIF(#REF!,\"1方向\")+COUNTIF(#REF!,\"2方向\")","v":{"$error":"#REF!"}}]
["受診NG曜日",null,null,null,"例）土曜、特になし等",null,null,null,null,null,null,null,null,null,null,null,null,null,null,null,null,null,null,null,null,null,null,null,null,null,null,null,null,null,null,null,null,null,null,null,null,null,null,null,null,"D2",{"$f":"COUNTIF(J20:J519,\"D2\")","v":0},"乳エコー",{"$f":"COUNTIF(#REF!,\"○\")","v":{"$error":"#REF!"}}]
["希望受付開始時間",null,null,null,"例）8：00、特になし等",null,null,null,null,null,null,null,null,null,null,null,null,null,null,null,null,null,null,null,null,null,null,null,null,null,null,null,null,null,null,null,null,null,null,null,null,null,null,null,null,"雇用時",{"$f":"COUNTIF(J20:J519,\"雇用時健診\")","v":0}]
["受診可能人数(1日あたり)",null,null,null,"例）5名、制限なし等",null,null,null,"起算日",null,null,null,null,null,null,null,null,null,null,null,null,null,null,null,null,null,null,null,null,null,null,null,null,null,null,null,null,null,null,null,null,null,null,null,null,"その他",{"$f":"COUNTIFS(J20:J519,\"<>A1\",J20:J519,\"<>A2\",J20:J519,\"<>B\",J20:J519,\"<>B1\",J20:J519,\"<>D1\",J20:J519,\"<>D2\",J20:J519,\"<>雇用時健診\",J20:J519,\"<>\"&\"\")","v":0}]
[null,null,null,null,null,null,null,null,"2026-04-01",null,null,null,null,null,null,null,null,null,null,null,null,null,null,null,null,null,null,null,null,null,null,null,null,null,null,null,null,null,null,null,null,null,null,null,null,"合計",{"$f":"SUM(AU7:AU14)","v":0}]
["自動","自動",null,null,null,null,null,null,"自動",null,null,null,null,null,null,null,null,null,null,"※当院入力欄"]
["NO.","当院ID","施設","保険証番号","保険証氏名\n氏名間全角スペース","フリガナ（全角）\n氏名間全角スペース","性別","生年月日","年齢","コース","胃部検査","追加オプション　　　　　　　　　　　　　　　　　　　　　","第1希望",null,"第2希望",null,"第3希望",null,"備考欄【当院へお伝えしたいこと】\n例）転籍により保険証番号変更あり、苗字変更あり、FCF会員の場合は会員番号","決定受診日","曜日","時間","当院からのご連絡事項",null,null,null,null,null,null,null,null,null,null,null,null,null,null,null,null,null,null,null,null,null,null,null,null,null,null,null,null,"システムで使ってます\n消さないでください\n※最大3000人","システムで使ってます\n消さないでください\n※最大3000人"]
[null,null,"桜十字福岡病院",1,"桜十字　太郎","サクラジュウジ　タロウ","男","1989-08-25",{"$f":"DATEDIF(H18,$I$15,\"y\")","v":36},"A1",null,"内臓脂肪CT,ヘリコバクターピロリIgG","2025-04-21",null,"2025-05-07",null,"2025-05-22",null,null,"／",{"$f":"TEXT(T18,\"(aaa)\")","v":"／"},"／",null,null,null,null,null,null,null,null,null,null,null,null,null,null,null,null,null,null,null,null,null,null,null,{"$f":"SUBSTITUTE(SUBSTITUTE(#REF!,\"　\",\"\"),\" \",\"\")","v":{"$error":"#REF!"}},{"$f":"AT18&H18","v":{"$error":"#REF!"}}]
[null,null,"桜十字博多駅健診CL",12,"桜十字　花子","サクラジュウジ　ハナコ","女","1980-05-15",45,"雇用時健診","胃カメラ(口/鎮静剤あり)","骨密度検査","2025-04-02",null,"2025-04-09",null,"2025-04-16",null,null,"／",{"$f":"TEXT(T19,\"(aaa)\")","v":"／"},"／",null,null,null,null,null,null,null,null,null,null,null,null,null,null,null,null,null,null,null,null,null,null,null,{"$f":"SUBSTITUTE(SUBSTITUTE(#REF!,\"　\",\"\"),\" \",\"\")","v":{"$error":"#REF!"}},{"$f":"AT19&H19","v":{"$error":"#REF!"}}]
[{"$f":"ROW()-19","v":1},{"$f":"IFERROR(VLOOKUP(BA20,'[1]ID(当院入力シート)'!E:F,2,FALSE)&\"\",\"\")","v":""},null,null,null,null,null,null,126,null,null,null,"／",null,"／",null,"／",null,null,"／","／",null,null,null,null,null,null,null,null,null,null,null,null,null,null,null,null,null,null,null,null,null,null,null,null,null,null,null,null,null,null,{"$f":"SUBSTITUTE(SUBSTITUTE(E20,\"　\",\"\"),\" \",\"\")","v":""},{"$f":"AZ20&H20","v":""}]
[{"$f":"ROW()-19","v":2},{"$f":"IFERROR(VLOOKUP(BA21,'[1]ID(当院入力シート)'!E:F,2,FALSE)&\"\",\"\")","v":""},null,null,null,null,null,null,126,null,null,null,"／",null,"／",null,"／",null,null,"／","／",null,null,null,null,null,null,null,null,null,null,null,null,null,null,null,null,null,null,null,null,null,null,null,null,null,null,null,null,null,null,"",""]
[{"$f":"ROW()-19","v":3},{"$f":"IFERROR(VLOOKUP(BA22,'[1]ID(当院入力シート)'!E:F,2,FALSE)&\"\",\"\")","v":""},null,null,null,null,null,null,126,null,null,null,"／",null,"／",null,"／",null,null,"／","／",null,null,null,null,null,null,null,null,null,null,null,null,null,null,null,null,null,null,null,null,null,null,null,null,null,null,null,null,null,null,"",""]
[4,{"$f":"IFERROR(VLOOKUP(BA23,'[1]ID(当院入力シート)'!E:F,2,FALSE)&\"\",\"\")","v":""},null,null,null,null,null,null,126,null,null,null,"／",null,"／",null,"／",null,null,"／","／",null,null,null,null,null,null,null,null,null,null,null,null,null,null,null,null,null,null,null,null,null,null,null,null,null,null,null,null,null,null,"",""]
[5,{"$f":"IFERROR(VLOOKUP(BA24,'[1]ID(当院入力シート)'!E:F,2,FALSE)&\"\",\"\")","v":""},null,null,null,null,null,null,126,null,null,null,"／",null,"／",null,"／",null,null,"／","／",null,null,null,null,null,null,null,null,null,null,null,null,null,null,null,null,null,null,null,null,null,null,null,null,null,null,null,null,null,null,"",""]
[6,{"$f":"IFERROR(VLOOKUP(BA25,'[1]ID(当院入力シート)'!E:F,2,FALSE)&\"\",\"\")","v":""},null,null,null,null,null,null,126,null,null,null,"／",null,"／",null,"／",null,null,"／","／",null,null,null,null,null,null,null,null,null,null,null,null,null,null,null,null,null,null,null,null,null,null,null,null,null,null,null,null,null,null,"",""]
[7,{"$f":"IFERROR(VLOOKUP(BA26,'[1]ID(当院入力シート)'!E:F,2,FALSE)&\"\",\"\")","v":""},null,null,null,null,null,null,126,null,null,null,"／",null,"／",null,"／",null,null,"／","／",null,null,null,null,null,null,null,null,null,null,null,null,null,null,null,null,null,null,null,null,null,null,null,null,null,null,null,null,null,null,"",""]
[8,{"$f":"IFERROR(VLOOKUP(BA27,'[1]ID(当院入力シート)'!E:F,2,FALSE)&\"\",\"\")","v":""},null,null,null,null,null,null,126,null,null,null,"／",null,"／",null,"／",null,null,"／","／",null,null,null,null,null,null,null,null,null,null,null,null,null,null,null,null,null,null,null,null,null,null,null,null,null,null,null,null,null,null,"",""]
[9,{"$f":"IFERROR(VLOOKUP(BA28,'[1]ID(当院入力シート)'!E:F,2,FALSE)&\"\",\"\")","v":""},null,null,null,null,null,null,126,null,null,null,"／",null,"／",null,"／",null,null,"／","／",null,null,null,null,null,null,null,null,null,null,null,null,null,null,null,null,null,null,null,null,null,null,null,null,null,null,null,null,null,null,"",""]
[10,{"$f":"IFERROR(VLOOKUP(BA29,'[1]ID(当院入力シート)'!E:F,2,FALSE)&\"\",\"\")","v":""},null,null,null,null,null,null,126,null,null,null,"／",null,"／",null,"／",null,null,"／","／",null,null,null,null,null,null,null,null,null,null,null,null,null,null,null,null,null,null,null,null,null,null,null,null,null,null,null,null,null,null,"",""]
[11,{"$f":"IFERROR(VLOOKUP(BA30,'[1]ID(当院入力シート)'!E:F,2,FALSE)&\"\",\"\")","v":""},null,null,null,null,null,null,126,null,null,null,"／",null,"／",null,"／",null,null,"／","／",null,null,null,null,null,null,null,null,null,null,null,null,null,null,null,null,null,null,null,null,null,null,null,null,null,null,null,null,null,null,"",""]
[12,{"$f":"IFERROR(VLOOKUP(BA31,'[1]ID(当院入力シート)'!E:F,2,FALSE)&\"\",\"\")","v":""},null,null,null,null,null,null,126,null,null,null,"／",null,"／",null,"／",null,null,"／","／",null,null,null,null,null,null,null,null,null,null,null,null,null,null,null,null,null,null,null,null,null,null,null,null,null,null,null,null,null,null,"",""]
[13,{"$f":"IFERROR(VLOOKUP(BA32,'[1]ID(当院入力シート)'!E:F,2,FALSE)&\"\",\"\")","v":""},null,null,null,null,null,null,126,null,null,null,"／",null,"／",null,"／",null,null,"／","／",null,null,null,null,null,null,null,null,null,null,null,null,null,null,null,null,null,null,null,null,null,null,null,null,null,null,null,null,null,null,"",""]
[14,{"$f":"IFERROR(VLOOKUP(BA33,'[1]ID(当院入力シート)'!E:F,2,FALSE)&\"\",\"\")","v":""},null,null,null,null,null,null,126,null,null,null,"／",null,"／",null,"／",null,null,"／","／",null,null,null,null,null,null,null,null,null,null,null,null,null,null,null,null,null,null,null,null,null,null,null,null,null,null,null,null,null,null,"",""]
[15,{"$f":"IFERROR(VLOOKUP(BA34,'[1]ID(当院入力シート)'!E:F,2,FALSE)&\"\",\"\")","v":""},null,null,null,null,null,null,126,null,null,null,"／",null,"／",null,"／",null,null,"／","／",null,null,null,null,null,null,null,null,null,null,null,null,null,null,null,null,null,null,null,null,null,null,null,null,null,null,null,null,null,null,"",""]
[16,{"$f":"IFERROR(VLOOKUP(BA35,'[1]ID(当院入力シート)'!E:F,2,FALSE)&\"\",\"\")","v":""},null,null,null,null,null,null,126,null,null,null,"／",null,"／",null,"／",null,null,"／","／",null,null,null,null,null,null,null,null,null,null,null,null,null,null,null,null,null,null,null,null,null,null,null,null,null,null,null,null,null,null,"",""]
[17,{"$f":"IFERROR(VLOOKUP(BA36,'[1]ID(当院入力シート)'!E:F,2,FALSE)&\"\",\"\")","v":""},null,null,null,null,null,null,126,null,null,null,"／",null,"／",null,"／",null,null,"／","／",null,null,null,null,null,null,null,null,null,null,null,null,null,null,null,null,null,null,null,null,null,null,null,null,null,null,null,null,null,null,"",""]
[18,{"$f":"IFERROR(VLOOKUP(BA37,'[1]ID(当院入力シート)'!E:F,2,FALSE)&\"\",\"\")","v":""},null,null,null,null,null,null,126,null,null,null,"／",null,"／",null,"／",null,null,"／","／",null,null,null,null,null,null,null,null,null,null,null,null,null,null,null,null,null,null,null,null,null,null,null,null,null,null,null,null,null,null,"",""]
[19,{"$f":"IFERROR(VLOOKUP(BA38,'[1]ID(当院入力シート)'!E:F,2,FALSE)&\"\",\"\")","v":""},null,null,null,null,null,null,126,null,null,null,"／",null,"／",null,"／",null,null,"／","／",null,null,null,null,null,null,null,null,null,null,null,null,null,null,null,null,null,null,null,null,null,null,null,null,null,null,null,null,null,null,"",""]
[20,{"$f":"IFERROR(VLOOKUP(BA39,'[1]ID(当院入力シート)'!E:F,2,FALSE)&\"\",\"\")","v":""},null,null,null,null,null,null,126,null,null,null,"／",null,"／",null,"／",null,null,"／","／",null,null,null,null,null,null,null,null,null,null,null,null,null,null,null,null,null,null,null,null,null,null,null,null,null,null,null,null,null,null,"",""]
[21,{"$f":"IFERROR(VLOOKUP(BA40,'[1]ID(当院入力シート)'!E:F,2,FALSE)&\"\",\"\")","v":""},null,null,null,null,null,null,126,null,null,null,"／",null,"／",null,"／",null,null,"／","／",null,null,null,null,null,null,null,null,null,null,null,null,null,null,null,null,null,null,null,null,null,null,null,null,null,null,null,null,null,null,"",""]
[22,{"$f":"IFERROR(VLOOKUP(BA41,'[1]ID(当院入力シート)'!E:F,2,FALSE)&\"\",\"\")","v":""},null,null,null,null,null,null,126,null,null,null,"／",null,"／",null,"／",null,null,"／","／",null,null,null,null,null,null,null,null,null,null,null,null,null,null,null,null,null,null,null,null,null,null,null,null,null,null,null,null,null,null,"",""]
[23,{"$f":"IFERROR(VLOOKUP(BA42,'[1]ID(当院入力シート)'!E:F,2,FALSE)&\"\",\"\")","v":""},null,null,null,null,null,null,126,null,null,null,"／",null,"／",null,"／",null,null,"／","／",null,null,null,null,null,null,null,null,null,null,null,null,null,null,null,null,null,null,null,null,null,null,null,null,null,null,null,null,null,null,"",""]
[24,{"$f":"IFERROR(VLOOKUP(BA43,'[1]ID(当院入力シート)'!E:F,2,FALSE)&\"\",\"\")","v":""},null,null,null,null,null,null,126,null,null,null,"／",null,"／",null,"／",null,null,"／","／",null,null,null,null,null,null,null,null,null,null,null,null,null,null,null,null,null,null,null,null,null,null,null,null,null,null,null,null,null,null,"",""]
[25,{"$f":"IFERROR(VLOOKUP(BA44,'[1]ID(当院入力シート)'!E:F,2,FALSE)&\"\",\"\")","v":""},null,null,null,null,null,null,126,null,null,null,"／",null,"／",null,"／",null,null,"／","／",null,null,null,null,null,null,null,null,null,null,null,null,null,null,null,null,null,null,null,null,null,null,null,null,null,null,null,null,null,null,"",""]
[26,{"$f":"IFERROR(VLOOKUP(BA45,'[1]ID(当院入力シート)'!E:F,2,FALSE)&\"\",\"\")","v":""},null,null,null,null,null,null,126,null,null,null,"／",null,"／",null,"／",null,null,"／","／",null,null,null,null,null,null,null,null,null,null,null,null,null,null,null,null,null,null,null,null,null,null,null,null,null,null,null,null,null,null,"",""]
[27,{"$f":"IFERROR(VLOOKUP(BA46,'[1]ID(当院入力シート)'!E:F,2,FALSE)&\"\",\"\")","v":""},null,null,null,null,null,null,126,null,null,null,"／",null,"／",null,"／",null,null,"／","／",null,null,null,null,null,null,null,null,null,null,null,null,null,null,null,null,null,null,null,null,null,null,null,null,null,null,null,null,null,null,"",""]
[28,{"$f":"IFERROR(VLOOKUP(BA47,'[1]ID(当院入力シート)'!E:F,2,FALSE)&\"\",\"\")","v":""},null,null,null,null,null,null,126,null,null,null,"／",null,"／",null,"／",null,null,"／","／",null,null,null,null,null,null,null,null,null,null,null,null,null,null,null,null,null,null,null,null,null,null,null,null,null,null,null,null,null,null,"",""]
[29,{"$f":"IFERROR(VLOOKUP(BA48,'[1]ID(当院入力シート)'!E:F,2,FALSE)&\"\",\"\")","v":""},null,null,null,null,null,null,126,null,null,null,"／",null,"／",null,"／",null,null,"／","／",null,null,null,null,null,null,null,null,null,null,null,null,null,null,null,null,null,null,null,null,null,null,null,null,null,null,null,null,null,null,"",""]
[30,{"$f":"IFERROR(VLOOKUP(BA49,'[1]ID(当院入力シート)'!E:F,2,FALSE)&\"\",\"\")","v":""},null,null,null,null,null,null,126,null,null,null,"／",null,"／",null,"／",null,null,"／","／",null,null,null,null,null,null,null,null,null,null,null,null,null,null,null,null,null,null,null,null,null,null,null,null,null,null,null,null,null,null,"",""]
[31,{"$f":"IFERROR(VLOOKUP(BA50,'[1]ID(当院入力シート)'!E:F,2,FALSE)&\"\",\"\")","v":""},null,null,null,null,null,null,126,null,null,null,"／",null,"／",null,"／",null,null,"／","／",null,null,null,null,null,null,null,null,null,null,null,null,null,null,null,null,null,null,null,null,null,null,null,null,null,null,null,null,null,null,"",""]
[32,{"$f":"IFERROR(VLOOKUP(BA51,'[1]ID(当院入力シート)'!E:F,2,FALSE)&\"\",\"\")","v":""},null,null,null,null,null,null,126,null,null,null,"／",null,"／",null,"／",null,null,"／","／",null,null,null,null,null,null,null,null,null,null,null,null,null,null,null,null,null,null,null,null,null,null,null,null,null,null,null,null,null,null,"",""]
[33,{"$f":"IFERROR(VLOOKUP(BA52,'[1]ID(当院入力シート)'!E:F,2,FALSE)&\"\",\"\")","v":""},null,null,null,null,null,null,126,null,null,null,"／",null,"／",null,"／",null,null,"／","／",null,null,null,null,null,null,null,null,null,null,null,null,null,null,null,null,null,null,null,null,null,null,null,null,null,null,null,null,null,null,"",""]
[34,{"$f":"IFERROR(VLOOKUP(BA53,'[1]ID(当院入力シート)'!E:F,2,FALSE)&\"\",\"\")","v":""},null,null,null,null,null,null,126,null,null,null,"／",null,"／",null,"／",null,null,"／","／",null,null,null,null,null,null,null,null,null,null,null,null,null,null,null,null,null,null,null,null,null,null,null,null,null,null,null,null,null,null,"",""]
[35,{"$f":"IFERROR(VLOOKUP(BA54,'[1]ID(当院入力シート)'!E:F,2,FALSE)&\"\",\"\")","v":""},null,null,null,null,null,null,126,null,null,null,"／",null,"／",null,"／",null,null,"／","／",null,null,null,null,null,null,null,null,null,null,null,null,null,null,null,null,null,null,null,null,null,null,null,null,null,null,null,null,null,null,"",""]
[36,{"$f":"IFERROR(VLOOKUP(BA55,'[1]ID(当院入力シート)'!E:F,2,FALSE)&\"\",\"\")","v":""},null,null,null,null,null,null,126,null,null,null,"／",null,"／",null,"／",null,null,"／","／",null,null,null,null,null,null,null,null,null,null,null,null,null,null,null,null,null,null,null,null,null,null,null,null,null,null,null,null,null,null,"",""]
[37,{"$f":"IFERROR(VLOOKUP(BA56,'[1]ID(当院入力シート)'!E:F,2,FALSE)&\"\",\"\")","v":""},null,null,null,null,null,null,126,null,null,null,"／",null,"／",null,"／",null,null,"／","／",null,null,null,null,null,null,null,null,null,null,null,null,null,null,null,null,null,null,null,null,null,null,null,null,null,null,null,null,null,null,"",""]
[38,{"$f":"IFERROR(VLOOKUP(BA57,'[1]ID(当院入力シート)'!E:F,2,FALSE)&\"\",\"\")","v":""},null,null,null,null,null,null,126,null,null,null,"／",null,"／",null,"／",null,null,"／","／",null,null,null,null,null,null,null,null,null,null,null,null,null,null,null,null,null,null,null,null,null,null,null,null,null,null,null,null,null,null,"",""]
[39,{"$f":"IFERROR(VLOOKUP(BA58,'[1]ID(当院入力シート)'!E:F,2,FALSE)&\"\",\"\")","v":""},null,null,null,null,null,null,126,null,null,null,"／",null,"／",null,"／",null,null,"／","／",null,null,null,null,null,null,null,null,null,null,null,null,null,null,null,null,null,null,null,null,null,null,null,null,null,null,null,null,null,null,"",""]
[40,{"$f":"IFERROR(VLOOKUP(BA59,'[1]ID(当院入力シート)'!E:F,2,FALSE)&\"\",\"\")","v":""},null,null,null,null,null,null,126,null,null,null,"／",null,"／",null,"／",null,null,"／","／",null,null,null,null,null,null,null,null,null,null,null,null,null,null,null,null,null,null,null,null,null,null,null,null,null,null,null,null,null,null,"",""]
[41,{"$f":"IFERROR(VLOOKUP(BA60,'[1]ID(当院入力シート)'!E:F,2,FALSE)&\"\",\"\")","v":""},null,null,null,null,null,null,126,null,null,null,"／",null,"／",null,"／",null,null,"／","／",null,null,null,null,null,null,null,null,null,null,null,null,null,null,null,null,null,null,null,null,null,null,null,null,null,null,null,null,null,null,"",""]
[42,{"$f":"IFERROR(VLOOKUP(BA61,'[1]ID(当院入力シート)'!E:F,2,FALSE)&\"\",\"\")","v":""},null,null,null,null,null,null,126,null,null,null,"／",null,"／",null,"／",null,null,"／","／",null,null,null,null,null,null,null,null,null,null,null,null,null,null,null,null,null,null,null,null,null,null,null,null,null,null,null,null,null,null,"",""]
[43,{"$f":"IFERROR(VLOOKUP(BA62,'[1]ID(当院入力シート)'!E:F,2,FALSE)&\"\",\"\")","v":""},null,null,null,null,null,null,126,null,null,null,"／",null,"／",null,"／",null,null,"／","／",null,null,null,null,null,null,null,null,null,null,null,null,null,null,null,null,null,null,null,null,null,null,null,null,null,null,null,null,null,null,"",""]
[44,{"$f":"IFERROR(VLOOKUP(BA63,'[1]ID(当院入力シート)'!E:F,2,FALSE)&\"\",\"\")","v":""},null,null,null,null,null,null,126,null,null,null,"／",null,"／",null,"／",null,null,"／","／",null,null,null,null,null,null,null,null,null,null,null,null,null,null,null,null,null,null,null,null,null,null,null,null,null,null,null,null,null,null,"",""]
[45,{"$f":"IFERROR(VLOOKUP(BA64,'[1]ID(当院入力シート)'!E:F,2,FALSE)&\"\",\"\")","v":""},null,null,null,null,null,null,126,null,null,null,"／",null,"／",null,"／",null,null,"／","／",null,null,null,null,null,null,null,null,null,null,null,null,null,null,null,null,null,null,null,null,null,null,null,null,null,null,null,null,null,null,"",""]
[46,{"$f":"IFERROR(VLOOKUP(BA65,'[1]ID(当院入力シート)'!E:F,2,FALSE)&\"\",\"\")","v":""},null,null,null,null,null,null,126,null,null,null,"／",null,"／",null,"／",null,null,"／","／",null,null,null,null,null,null,null,null,null,null,null,null,null,null,null,null,null,null,null,null,null,null,null,null,null,null,null,null,null,null,"",""]
[47,{"$f":"IFERROR(VLOOKUP(BA66,'[1]ID(当院入力シート)'!E:F,2,FALSE)&\"\",\"\")","v":""},null,null,null,null,null,null,126,null,null,null,"／",null,"／",null,"／",null,null,"／","／",null,null,null,null,null,null,null,null,null,null,null,null,null,null,null,null,null,null,null,null,null,null,null,null,null,null,null,null,null,null,"",""]
[48,{"$f":"IFERROR(VLOOKUP(BA67,'[1]ID(当院入力シート)'!E:F,2,FALSE)&\"\",\"\")","v":""},null,null,null,null,null,null,126,null,null,null,"／",null,"／",null,"／",null,null,"／","／",null,null,null,null,null,null,null,null,null,null,null,null,null,null,null,null,null,null,null,null,null,null,null,null,null,null,null,null,null,null,"",""]
[49,{"$f":"IFERROR(VLOOKUP(BA68,'[1]ID(当院入力シート)'!E:F,2,FALSE)&\"\",\"\")","v":""},null,null,null,null,null,null,126,null,null,null,"／",null,"／",null,"／",null,null,"／","／",null,null,null,null,null,null,null,null,null,null,null,null,null,null,null,null,null,null,null,null,null,null,null,null,null,null,null,null,null,null,"",""]
[50,{"$f":"IFERROR(VLOOKUP(BA69,'[1]ID(当院入力シート)'!E:F,2,FALSE)&\"\",\"\")","v":""},null,null,null,null,null,null,126,null,null,null,"／",null,"／",null,"／",null,null,"／","／",null,null,null,null,null,null,null,null,null,null,null,null,null,null,null,null,null,null,null,null,null,null,null,null,null,null,null,null,null,null,"",""]
[51,{"$f":"IFERROR(VLOOKUP(BA70,'[1]ID(当院入力シート)'!E:F,2,FALSE)&\"\",\"\")","v":""},null,null,null,null,null,null,126,null,null,null,"／",null,"／",null,"／",null,null,"／","／",null,null,null,null,null,null,null,null,null,null,null,null,null,null,null,null,null,null,null,null,null,null,null,null,null,null,null,null,null,null,"",""]
[52,{"$f":"IFERROR(VLOOKUP(BA71,'[1]ID(当院入力シート)'!E:F,2,FALSE)&\"\",\"\")","v":""},null,null,null,null,null,null,126,null,null,null,"／",null,"／",null,"／",null,null,"／","／",null,null,null,null,null,null,null,null,null,null,null,null,null,null,null,null,null,null,null,null,null,null,null,null,null,null,null,null,null,null,"",""]
[53,{"$f":"IFERROR(VLOOKUP(BA72,'[1]ID(当院入力シート)'!E:F,2,FALSE)&\"\",\"\")","v":""},null,null,null,null,null,null,126,null,null,null,"／",null,"／",null,"／",null,null,"／","／",null,null,null,null,null,null,null,null,null,null,null,null,null,null,null,null,null,null,null,null,null,null,null,null,null,null,null,null,null,null,"",""]
[54,{"$f":"IFERROR(VLOOKUP(BA73,'[1]ID(当院入力シート)'!E:F,2,FALSE)&\"\",\"\")","v":""},null,null,null,null,null,null,126,null,null,null,"／",null,"／",null,"／",null,null,"／","／",null,null,null,null,null,null,null,null,null,null,null,null,null,null,null,null,null,null,null,null,null,null,null,null,null,null,null,null,null,null,"",""]
[55,{"$f":"IFERROR(VLOOKUP(BA74,'[1]ID(当院入力シート)'!E:F,2,FALSE)&\"\",\"\")","v":""},null,null,null,null,null,null,126,null,null,null,"／",null,"／",null,"／",null,null,"／","／",null,null,null,null,null,null,null,null,null,null,null,null,null,null,null,null,null,null,null,null,null,null,null,null,null,null,null,null,null,null,"",""]
[56,{"$f":"IFERROR(VLOOKUP(BA75,'[1]ID(当院入力シート)'!E:F,2,FALSE)&\"\",\"\")","v":""},null,null,null,null,null,null,126,null,null,null,"／",null,"／",null,"／",null,null,"／","／",null,null,null,null,null,null,null,null,null,null,null,null,null,null,null,null,null,null,null,null,null,null,null,null,null,null,null,null,null,null,"",""]
[57,{"$f":"IFERROR(VLOOKUP(BA76,'[1]ID(当院入力シート)'!E:F,2,FALSE)&\"\",\"\")","v":""},null,null,null,null,null,null,126,null,null,null,"／",null,"／",null,"／",null,null,"／","／",null,null,null,null,null,null,null,null,null,null,null,null,null,null,null,null,null,null,null,null,null,null,null,null,null,null,null,null,null,null,"",""]
[58,{"$f":"IFERROR(VLOOKUP(BA77,'[1]ID(当院入力シート)'!E:F,2,FALSE)&\"\",\"\")","v":""},null,null,null,null,null,null,126,null,null,null,"／",null,"／",null,"／",null,null,"／","／",null,null,null,null,null,null,null,null,null,null,null,null,null,null,null,null,null,null,null,null,null,null,null,null,null,null,null,null,null,null,"",""]
[59,{"$f":"IFERROR(VLOOKUP(BA78,'[1]ID(当院入力シート)'!E:F,2,FALSE)&\"\",\"\")","v":""},null,null,null,null,null,null,126,null,null,null,"／",null,"／",null,"／",null,null,"／","／",null,null,null,null,null,null,null,null,null,null,null,null,null,null,null,null,null,null,null,null,null,null,null,null,null,null,null,null,null,null,"",""]
[60,{"$f":"IFERROR(VLOOKUP(BA79,'[1]ID(当院入力シート)'!E:F,2,FALSE)&\"\",\"\")","v":""},null,null,null,null,null,null,126,null,null,null,"／",null,"／",null,"／",null,null,"／","／",null,null,null,null,null,null,null,null,null,null,null,null,null,null,null,null,null,null,null,null,null,null,null,null,null,null,null,null,null,null,"",""]
[61,{"$f":"IFERROR(VLOOKUP(BA80,'[1]ID(当院入力シート)'!E:F,2,FALSE)&\"\",\"\")","v":""},null,null,null,null,null,null,126,null,null,null,"／",null,"／",null,"／",null,null,"／","／",null,null,null,null,null,null,null,null,null,null,null,null,null,null,null,null,null,null,null,null,null,null,null,null,null,null,null,null,null,null,"",""]
[62,{"$f":"IFERROR(VLOOKUP(BA81,'[1]ID(当院入力シート)'!E:F,2,FALSE)&\"\",\"\")","v":""},null,null,null,null,null,null,126,null,null,null,"／",null,"／",null,"／",null,null,"／","／",null,null,null,null,null,null,null,null,null,null,null,null,null,null,null,null,null,null,null,null,null,null,null,null,null,null,null,null,null,null,"",""]
[63,{"$f":"IFERROR(VLOOKUP(BA82,'[1]ID(当院入力シート)'!E:F,2,FALSE)&\"\",\"\")","v":""},null,null,null,null,null,null,{"$f":"DATEDIF(H82,$I$15,\"y\")","v":126},null,null,null,"／",null,"／",null,"／",null,null,"／","／",null,null,null,null,null,null,null,null,null,null,null,null,null,null,null,null,null,null,null,null,null,null,null,null,null,null,null,null,null,null,"",""]
[64,{"$f":"IFERROR(VLOOKUP(BA83,'[1]ID(当院入力シート)'!E:F,2,FALSE)&\"\",\"\")","v":""},null,null,null,null,null,null,126,null,null,null,"／",null,"／",null,"／",null,null,"／",{"$f":"TEXT(T83,\"(aaa)\")","v":"／"},null,null,null,null,null,null,null,null,null,null,null,null,null,null,null,null,null,null,null,null,null,null,null,null,null,null,null,null,null,null,"",""]
[65,{"$f":"IFERROR(VLOOKUP(BA84,'[1]ID(当院入力シート)'!E:F,2,FALSE)&\"\",\"\")","v":""},null,null,null,null,null,null,126,null,null,null,"／",null,"／",null,"／",null,null,"／","／",null,null,null,null,null,null,null,null,null,null,null,null,null,null,null,null,null,null,null,null,null,null,null,null,null,null,null,null,null,null,{"$f":"SUBSTITUTE(SUBSTITUTE(E84,\"　\",\"\"),\" \",\"\")","v":""},{"$f":"AZ84&H84","v":""}]
[66,{"$f":"IFERROR(VLOOKUP(BA85,'[1]ID(当院入力シート)'!E:F,2,FALSE)&\"\",\"\")","v":""},null,null,null,null,null,null,126,null,null,null,"／",null,"／",null,"／",null,null,"／","／",null,null,null,null,null,null,null,null,null,null,null,null,null,null,null,null,null,null,null,null,null,null,null,null,null,null,null,null,null,null,"",""]
[{"$f":"ROW()-19","v":67},{"$f":"IFERROR(VLOOKUP(BA86,'[1]ID(当院入力シート)'!E:F,2,FALSE)&\"\",\"\")","v":""},null,null,null,null,null,null,126,null,null,null,"／",null,"／",null,"／",null,null,"／","／",null,null,null,null,null,null,null,null,null,null,null,null,null,null,null,null,null,null,null,null,null,null,null,null,null,null,null,null,null,null,"",""]
[68,{"$f":"IFERROR(VLOOKUP(BA87,'[1]ID(当院入力シート)'!E:F,2,FALSE)&\"\",\"\")","v":""},null,null,null,null,null,null,126,null,null,null,"／",null,"／",null,"／",null,null,"／","／",null,null,null,null,null,null,null,null,null,null,null,null,null,null,null,null,null,null,null,null,null,null,null,null,null,null,null,null,null,null,"",""]
[69,{"$f":"IFERROR(VLOOKUP(BA88,'[1]ID(当院入力シート)'!E:F,2,FALSE)&\"\",\"\")","v":""},null,null,null,null,null,null,126,null,null,null,"／",null,"／",null,"／",null,null,"／","／",null,null,null,null,null,null,null,null,null,null,null,null,null,null,null,null,null,null,null,null,null,null,null,null,null,null,null,null,null,null,"",""]
[70,{"$f":"IFERROR(VLOOKUP(BA89,'[1]ID(当院入力シート)'!E:F,2,FALSE)&\"\",\"\")","v":""},null,null,null,null,null,null,126,null,null,null,"／",null,"／",null,"／",null,null,"／","／",null,null,null,null,null,null,null,null,null,null,null,null,null,null,null,null,null,null,null,null,null,null,null,null,null,null,null,null,null,null,"",""]
[71,{"$f":"IFERROR(VLOOKUP(BA90,'[1]ID(当院入力シート)'!E:F,2,FALSE)&\"\",\"\")","v":""},null,null,null,null,null,null,126,null,null,null,"／",null,"／",null,"／",null,null,"／","／",null,null,null,null,null,null,null,null,null,null,null,null,null,null,null,null,null,null,null,null,null,null,null,null,null,null,null,null,null,null,"",""]
[72,{"$f":"IFERROR(VLOOKUP(BA91,'[1]ID(当院入力シート)'!E:F,2,FALSE)&\"\",\"\")","v":""},null,null,null,null,null,null,126,null,null,null,"／",null,"／",null,"／",null,null,"／","／",null,null,null,null,null,null,null,null,null,null,null,null,null,null,null,null,null,null,null,null,null,null,null,null,null,null,null,null,null,null,"",""]
[73,{"$f":"IFERROR(VLOOKUP(BA92,'[1]ID(当院入力シート)'!E:F,2,FALSE)&\"\",\"\")","v":""},null,null,null,null,null,null,126,null,null,null,"／",null,"／",null,"／",null,null,"／","／",null,null,null,null,null,null,null,null,null,null,null,null,null,null,null,null,null,null,null,null,null,null,null,null,null,null,null,null,null,null,"",""]
[74,{"$f":"IFERROR(VLOOKUP(BA93,'[1]ID(当院入力シート)'!E:F,2,FALSE)&\"\",\"\")","v":""},null,null,null,null,null,null,126,null,null,null,"／",null,"／",null,"／",null,null,"／","／",null,null,null,null,null,null,null,null,null,null,null,null,null,null,null,null,null,null,null,null,null,null,null,null,null,null,null,null,null,null,"",""]
[75,{"$f":"IFERROR(VLOOKUP(BA94,'[1]ID(当院入力シート)'!E:F,2,FALSE)&\"\",\"\")","v":""},null,null,null,null,null,null,126,null,null,null,"／",null,"／",null,"／",null,null,"／","／",null,null,null,null,null,null,null,null,null,null,null,null,null,null,null,null,null,null,null,null,null,null,null,null,null,null,null,null,null,null,"",""]
[76,{"$f":"IFERROR(VLOOKUP(BA95,'[1]ID(当院入力シート)'!E:F,2,FALSE)&\"\",\"\")","v":""},null,null,null,null,null,null,126,null,null,null,"／",null,"／",null,"／",null,null,"／","／",null,null,null,null,null,null,null,null,null,null,null,null,null,null,null,null,null,null,null,null,null,null,null,null,null,null,null,null,null,null,"",""]
[77,{"$f":"IFERROR(VLOOKUP(BA96,'[1]ID(当院入力シート)'!E:F,2,FALSE)&\"\",\"\")","v":""},null,null,null,null,null,null,126,null,null,null,"／",null,"／",null,"／",null,null,"／","／",null,null,null,null,null,null,null,null,null,null,null,null,null,null,null,null,null,null,null,null,null,null,null,null,null,null,null,null,null,null,"",""]
[78,{"$f":"IFERROR(VLOOKUP(BA97,'[1]ID(当院入力シート)'!E:F,2,FALSE)&\"\",\"\")","v":""},null,null,null,null,null,null,126,null,null,null,"／",null,"／",null,"／",null,null,"／","／",null,null,null,null,null,null,null,null,null,null,null,null,null,null,null,null,null,null,null,null,null,null,null,null,null,null,null,null,null,null,"",""]
[79,{"$f":"IFERROR(VLOOKUP(BA98,'[1]ID(当院入力シート)'!E:F,2,FALSE)&\"\",\"\")","v":""},null,null,null,null,null,null,126,null,null,null,"／",null,"／",null,"／",null,null,"／","／",null,null,null,null,null,null,null,null,null,null,null,null,null,null,null,null,null,null,null,null,null,null,null,null,null,null,null,null,null,null,"",""]
[80,{"$f":"IFERROR(VLOOKUP(BA99,'[1]ID(当院入力シート)'!E:F,2,FALSE)&\"\",\"\")","v":""},null,null,null,null,null,null,126,null,null,null,"／",null,"／",null,"／",null,null,"／","／",null,null,null,null,null,null,null,null,null,null,null,null,null,null,null,null,null,null,null,null,null,null,null,null,null,null,null,null,null,null,"",""]
[81,{"$f":"IFERROR(VLOOKUP(BA100,'[1]ID(当院入力シート)'!E:F,2,FALSE)&\"\",\"\")","v":""},null,null,null,null,null,null,126,null,null,null,"／",null,"／",null,"／",null,null,"／","／",null,null,null,null,null,null,null,null,null,null,null,null,null,null,null,null,null,null,null,null,null,null,null,null,null,null,null,null,null,null,"",""]
[82,{"$f":"IFERROR(VLOOKUP(BA101,'[1]ID(当院入力シート)'!E:F,2,FALSE)&\"\",\"\")","v":""},null,null,null,null,null,null,126,null,null,null,"／",null,"／",null,"／",null,null,"／","／",null,null,null,null,null,null,null,null,null,null,null,null,null,null,null,null,null,null,null,null,null,null,null,null,null,null,null,null,null,null,"",""]
[83,{"$f":"IFERROR(VLOOKUP(BA102,'[1]ID(当院入力シート)'!E:F,2,FALSE)&\"\",\"\")","v":""},null,null,null,null,null,null,126,null,null,null,"／",null,"／",null,"／",null,null,"／","／",null,null,null,null,null,null,null,null,null,null,null,null,null,null,null,null,null,null,null,null,null,null,null,null,null,null,null,null,null,null,"",""]
[84,{"$f":"IFERROR(VLOOKUP(BA103,'[1]ID(当院入力シート)'!E:F,2,FALSE)&\"\",\"\")","v":""},null,null,null,null,null,null,126,null,null,null,"／",null,"／",null,"／",null,null,"／","／",null,null,null,null,null,null,null,null,null,null,null,null,null,null,null,null,null,null,null,null,null,null,null,null,null,null,null,null,null,null,"",""]
[85,{"$f":"IFERROR(VLOOKUP(BA104,'[1]ID(当院入力シート)'!E:F,2,FALSE)&\"\",\"\")","v":""},null,null,null,null,null,null,126,null,null,null,"／",null,"／",null,"／",null,null,"／","／",null,null,null,null,null,null,null,null,null,null,null,null,null,null,null,null,null,null,null,null,null,null,null,null,null,null,null,null,null,null,"",""]
[86,{"$f":"IFERROR(VLOOKUP(BA105,'[1]ID(当院入力シート)'!E:F,2,FALSE)&\"\",\"\")","v":""},null,null,null,null,null,null,126,null,null,null,"／",null,"／",null,"／",null,null,"／","／",null,null,null,null,null,null,null,null,null,null,null,null,null,null,null,null,null,null,null,null,null,null,null,null,null,null,null,null,null,null,"",""]
[87,{"$f":"IFERROR(VLOOKUP(BA106,'[1]ID(当院入力シート)'!E:F,2,FALSE)&\"\",\"\")","v":""},null,null,null,null,null,null,126,null,null,null,"／",null,"／",null,"／",null,null,"／","／",null,null,null,null,null,null,null,null,null,null,null,null,null,null,null,null,null,null,null,null,null,null,null,null,null,null,null,null,null,null,"",""]
[88,{"$f":"IFERROR(VLOOKUP(BA107,'[1]ID(当院入力シート)'!E:F,2,FALSE)&\"\",\"\")","v":""},null,null,null,null,null,null,126,null,null,null,"／",null,"／",null,"／",null,null,"／","／",null,null,null,null,null,null,null,null,null,null,null,null,null,null,null,null,null,null,null,null,null,null,null,null,null,null,null,null,null,null,"",""]
[89,{"$f":"IFERROR(VLOOKUP(BA108,'[1]ID(当院入力シート)'!E:F,2,FALSE)&\"\",\"\")","v":""},null,null,null,null,null,null,126,null,null,null,"／",null,"／",null,"／",null,null,"／","／",null,null,null,null,null,null,null,null,null,null,null,null,null,null,null,null,null,null,null,null,null,null,null,null,null,null,null,null,null,null,"",""]
[90,{"$f":"IFERROR(VLOOKUP(BA109,'[1]ID(当院入力シート)'!E:F,2,FALSE)&\"\",\"\")","v":""},null,null,null,null,null,null,126,null,null,null,"／",null,"／",null,"／",null,null,"／","／",null,null,null,null,null,null,null,null,null,null,null,null,null,null,null,null,null,null,null,null,null,null,null,null,null,null,null,null,null,null,"",""]
[91,{"$f":"IFERROR(VLOOKUP(BA110,'[1]ID(当院入力シート)'!E:F,2,FALSE)&\"\",\"\")","v":""},null,null,null,null,null,null,126,null,null,null,"／",null,"／",null,"／",null,null,"／","／",null,null,null,null,null,null,null,null,null,null,null,null,null,null,null,null,null,null,null,null,null,null,null,null,null,null,null,null,null,null,"",""]
[92,{"$f":"IFERROR(VLOOKUP(BA111,'[1]ID(当院入力シート)'!E:F,2,FALSE)&\"\",\"\")","v":""},null,null,null,null,null,null,126,null,null,null,"／",null,"／",null,"／",null,null,"／","／",null,null,null,null,null,null,null,null,null,null,null,null,null,null,null,null,null,null,null,null,null,null,null,null,null,null,null,null,null,null,"",""]
[93,{"$f":"IFERROR(VLOOKUP(BA112,'[1]ID(当院入力シート)'!E:F,2,FALSE)&\"\",\"\")","v":""},null,null,null,null,null,null,126,null,null,null,"／",null,"／",null,"／",null,null,"／","／",null,null,null,null,null,null,null,null,null,null,null,null,null,null,null,null,null,null,null,null,null,null,null,null,null,null,null,null,null,null,"",""]
[94,{"$f":"IFERROR(VLOOKUP(BA113,'[1]ID(当院入力シート)'!E:F,2,FALSE)&\"\",\"\")","v":""},null,null,null,null,null,null,126,null,null,null,"／",null,"／",null,"／",null,null,"／","／",null,null,null,null,null,null,null,null,null,null,null,null,null,null,null,null,null,null,null,null,null,null,null,null,null,null,null,null,null,null,"",""]
[95,{"$f":"IFERROR(VLOOKUP(BA114,'[1]ID(当院入力シート)'!E:F,2,FALSE)&\"\",\"\")","v":""},null,null,null,null,null,null,126,null,null,null,"／",null,"／",null,"／",null,null,"／","／",null,null,null,null,null,null,null,null,null,null,null,null,null,null,null,null,null,null,null,null,null,null,null,null,null,null,null,null,null,null,"",""]
[96,{"$f":"IFERROR(VLOOKUP(BA115,'[1]ID(当院入力シート)'!E:F,2,FALSE)&\"\",\"\")","v":""},null,null,null,null,null,null,126,null,null,null,"／",null,"／",null,"／",null,null,"／","／",null,null,null,null,null,null,null,null,null,null,null,null,null,null,null,null,null,null,null,null,null,null,null,null,null,null,null,null,null,null,"",""]
[97,{"$f":"IFERROR(VLOOKUP(BA116,'[1]ID(当院入力シート)'!E:F,2,FALSE)&\"\",\"\")","v":""},null,null,null,null,null,null,126,null,null,null,"／",null,"／",null,"／",null,null,"／","／",null,null,null,null,null,null,null,null,null,null,null,null,null,null,null,null,null,null,null,null,null,null,null,null,null,null,null,null,null,null,"",""]
[98,{"$f":"IFERROR(VLOOKUP(BA117,'[1]ID(当院入力シート)'!E:F,2,FALSE)&\"\",\"\")","v":""},null,null,null,null,null,null,126,null,null,null,"／",null,"／",null,"／",null,null,"／","／",null,null,null,null,null,null,null,null,null,null,null,null,null,null,null,null,null,null,null,null,null,null,null,null,null,null,null,null,null,null,"",""]
[99,{"$f":"IFERROR(VLOOKUP(BA118,'[1]ID(当院入力シート)'!E:F,2,FALSE)&\"\",\"\")","v":""},null,null,null,null,null,null,126,null,null,null,"／",null,"／",null,"／",null,null,"／","／",null,null,null,null,null,null,null,null,null,null,null,null,null,null,null,null,null,null,null,null,null,null,null,null,null,null,null,null,null,null,"",""]
[100,{"$f":"IFERROR(VLOOKUP(BA119,'[1]ID(当院入力シート)'!E:F,2,FALSE)&\"\",\"\")","v":""},null,null,null,null,null,null,126,null,null,null,"／",null,"／",null,"／",null,null,"／","／",null,null,null,null,null,null,null,null,null,null,null,null,null,null,null,null,null,null,null,null,null,null,null,null,null,null,null,null,null,null,"",""]
[101,{"$f":"IFERROR(VLOOKUP(BA120,'[1]ID(当院入力シート)'!E:F,2,FALSE)&\"\",\"\")","v":""},null,null,null,null,null,null,126,null,null,null,"／",null,"／",null,"／",null,null,"／","／",null,null,null,null,null,null,null,null,null,null,null,null,null,null,null,null,null,null,null,null,null,null,null,null,null,null,null,null,null,null,"",""]
[102,{"$f":"IFERROR(VLOOKUP(BA121,'[1]ID(当院入力シート)'!E:F,2,FALSE)&\"\",\"\")","v":""},null,null,null,null,null,null,126,null,null,null,"／",null,"／",null,"／",null,null,"／","／",null,null,null,null,null,null,null,null,null,null,null,null,null,null,null,null,null,null,null,null,null,null,null,null,null,null,null,null,null,null,"",""]
[103,{"$f":"IFERROR(VLOOKUP(BA122,'[1]ID(当院入力シート)'!E:F,2,FALSE)&\"\",\"\")","v":""},null,null,null,null,null,null,126,null,null,null,"／",null,"／",null,"／",null,null,"／","／",null,null,null,null,null,null,null,null,null,null,null,null,null,null,null,null,null,null,null,null,null,null,null,null,null,null,null,null,null,null,"",""]
[104,{"$f":"IFERROR(VLOOKUP(BA123,'[1]ID(当院入力シート)'!E:F,2,FALSE)&\"\",\"\")","v":""},null,null,null,null,null,null,126,null,null,null,"／",null,"／",null,"／",null,null,"／","／",null,null,null,null,null,null,null,null,null,null,null,null,null,null,null,null,null,null,null,null,null,null,null,null,null,null,null,null,null,null,"",""]
[105,{"$f":"IFERROR(VLOOKUP(BA124,'[1]ID(当院入力シート)'!E:F,2,FALSE)&\"\",\"\")","v":""},null,null,null,null,null,null,126,null,null,null,"／",null,"／",null,"／",null,null,"／","／",null,null,null,null,null,null,null,null,null,null,null,null,null,null,null,null,null,null,null,null,null,null,null,null,null,null,null,null,null,null,"",""]
[106,{"$f":"IFERROR(VLOOKUP(BA125,'[1]ID(当院入力シート)'!E:F,2,FALSE)&\"\",\"\")","v":""},null,null,null,null,null,null,126,null,null,null,"／",null,"／",null,"／",null,null,"／","／",null,null,null,null,null,null,null,null,null,null,null,null,null,null,null,null,null,null,null,null,null,null,null,null,null,null,null,null,null,null,"",""]
[107,{"$f":"IFERROR(VLOOKUP(BA126,'[1]ID(当院入力シート)'!E:F,2,FALSE)&\"\",\"\")","v":""},null,null,null,null,null,null,126,null,null,null,"／",null,"／",null,"／",null,null,"／","／",null,null,null,null,null,null,null,null,null,null,null,null,null,null,null,null,null,null,null,null,null,null,null,null,null,null,null,null,null,null,"",""]
[108,{"$f":"IFERROR(VLOOKUP(BA127,'[1]ID(当院入力シート)'!E:F,2,FALSE)&\"\",\"\")","v":""},null,null,null,null,null,null,126,null,null,null,"／",null,"／",null,"／",null,null,"／","／",null,null,null,null,null,null,null,null,null,null,null,null,null,null,null,null,null,null,null,null,null,null,null,null,null,null,null,null,null,null,"",""]
[109,{"$f":"IFERROR(VLOOKUP(BA128,'[1]ID(当院入力シート)'!E:F,2,FALSE)&\"\",\"\")","v":""},null,null,null,null,null,null,126,null,null,null,"／",null,"／",null,"／",null,null,"／","／",null,null,null,null,null,null,null,null,null,null,null,null,null,null,null,null,null,null,null,null,null,null,null,null,null,null,null,null,null,null,"",""]
[110,{"$f":"IFERROR(VLOOKUP(BA129,'[1]ID(当院入力シート)'!E:F,2,FALSE)&\"\",\"\")","v":""},null,null,null,null,null,null,126,null,null,null,"／",null,"／",null,"／",null,null,"／","／",null,null,null,null,null,null,null,null,null,null,null,null,null,null,null,null,null,null,null,null,null,null,null,null,null,null,null,null,null,null,"",""]
[111,{"$f":"IFERROR(VLOOKUP(BA130,'[1]ID(当院入力シート)'!E:F,2,FALSE)&\"\",\"\")","v":""},null,null,null,null,null,null,126,null,null,null,"／",null,"／",null,"／",null,null,"／","／",null,null,null,null,null,null,null,null,null,null,null,null,null,null,null,null,null,null,null,null,null,null,null,null,null,null,null,null,null,null,"",""]
[112,{"$f":"IFERROR(VLOOKUP(BA131,'[1]ID(当院入力シート)'!E:F,2,FALSE)&\"\",\"\")","v":""},null,null,null,null,null,null,126,null,null,null,"／",null,"／",null,"／",null,null,"／","／",null,null,null,null,null,null,null,null,null,null,null,null,null,null,null,null,null,null,null,null,null,null,null,null,null,null,null,null,null,null,"",""]
[113,{"$f":"IFERROR(VLOOKUP(BA132,'[1]ID(当院入力シート)'!E:F,2,FALSE)&\"\",\"\")","v":""},null,null,null,null,null,null,126,null,null,null,"／",null,"／",null,"／",null,null,"／","／",null,null,null,null,null,null,null,null,null,null,null,null,null,null,null,null,null,null,null,null,null,null,null,null,null,null,null,null,null,null,"",""]
[114,{"$f":"IFERROR(VLOOKUP(BA133,'[1]ID(当院入力シート)'!E:F,2,FALSE)&\"\",\"\")","v":""},null,null,null,null,null,null,126,null,null,null,"／",null,"／",null,"／",null,null,"／","／",null,null,null,null,null,null,null,null,null,null,null,null,null,null,null,null,null,null,null,null,null,null,null,null,null,null,null,null,null,null,"",""]
[115,{"$f":"IFERROR(VLOOKUP(BA134,'[1]ID(当院入力シート)'!E:F,2,FALSE)&\"\",\"\")","v":""},null,null,null,null,null,null,126,null,null,null,"／",null,"／",null,"／",null,null,"／","／",null,null,null,null,null,null,null,null,null,null,null,null,null,null,null,null,null,null,null,null,null,null,null,null,null,null,null,null,null,null,"",""]
[116,{"$f":"IFERROR(VLOOKUP(BA135,'[1]ID(当院入力シート)'!E:F,2,FALSE)&\"\",\"\")","v":""},null,null,null,null,null,null,126,null,null,null,"／",null,"／",null,"／",null,null,"／","／",null,null,null,null,null,null,null,null,null,null,null,null,null,null,null,null,null,null,null,null,null,null,null,null,null,null,null,null,null,null,"",""]
[117,{"$f":"IFERROR(VLOOKUP(BA136,'[1]ID(当院入力シート)'!E:F,2,FALSE)&\"\",\"\")","v":""},null,null,null,null,null,null,126,null,null,null,"／",null,"／",null,"／",null,null,"／","／",null,null,null,null,null,null,null,null,null,null,null,null,null,null,null,null,null,null,null,null,null,null,null,null,null,null,null,null,null,null,"",""]
[118,{"$f":"IFERROR(VLOOKUP(BA137,'[1]ID(当院入力シート)'!E:F,2,FALSE)&\"\",\"\")","v":""},null,null,null,null,null,null,126,null,null,null,"／",null,"／",null,"／",null,null,"／","／",null,null,null,null,null,null,null,null,null,null,null,null,null,null,null,null,null,null,null,null,null,null,null,null,null,null,null,null,null,null,"",""]
[119,{"$f":"IFERROR(VLOOKUP(BA138,'[1]ID(当院入力シート)'!E:F,2,FALSE)&\"\",\"\")","v":""},null,null,null,null,null,null,126,null,null,null,"／",null,"／",null,"／",null,null,"／","／",null,null,null,null,null,null,null,null,null,null,null,null,null,null,null,null,null,null,null,null,null,null,null,null,null,null,null,null,null,null,"",""]
[120,{"$f":"IFERROR(VLOOKUP(BA139,'[1]ID(当院入力シート)'!E:F,2,FALSE)&\"\",\"\")","v":""},null,null,null,null,null,null,126,null,null,null,"／",null,"／",null,"／",null,null,"／","／",null,null,null,null,null,null,null,null,null,null,null,null,null,null,null,null,null,null,null,null,null,null,null,null,null,null,null,null,null,null,"",""]
[121,{"$f":"IFERROR(VLOOKUP(BA140,'[1]ID(当院入力シート)'!E:F,2,FALSE)&\"\",\"\")","v":""},null,null,null,null,null,null,126,null,null,null,"／",null,"／",null,"／",null,null,"／","／",null,null,null,null,null,null,null,null,null,null,null,null,null,null,null,null,null,null,null,null,null,null,null,null,null,null,null,null,null,null,"",""]
[122,{"$f":"IFERROR(VLOOKUP(BA141,'[1]ID(当院入力シート)'!E:F,2,FALSE)&\"\",\"\")","v":""},null,null,null,null,null,null,126,null,null,null,"／",null,"／",null,"／",null,null,"／","／",null,null,null,null,null,null,null,null,null,null,null,null,null,null,null,null,null,null,null,null,null,null,null,null,null,null,null,null,null,null,"",""]
[123,{"$f":"IFERROR(VLOOKUP(BA142,'[1]ID(当院入力シート)'!E:F,2,FALSE)&\"\",\"\")","v":""},null,null,null,null,null,null,126,null,null,null,"／",null,"／",null,"／",null,null,"／","／",null,null,null,null,null,null,null,null,null,null,null,null,null,null,null,null,null,null,null,null,null,null,null,null,null,null,null,null,null,null,"",""]
[124,{"$f":"IFERROR(VLOOKUP(BA143,'[1]ID(当院入力シート)'!E:F,2,FALSE)&\"\",\"\")","v":""},null,null,null,null,null,null,126,null,null,null,"／",null,"／",null,"／",null,null,"／","／",null,null,null,null,null,null,null,null,null,null,null,null,null,null,null,null,null,null,null,null,null,null,null,null,null,null,null,null,null,null,"",""]
[125,{"$f":"IFERROR(VLOOKUP(BA144,'[1]ID(当院入力シート)'!E:F,2,FALSE)&\"\",\"\")","v":""},null,null,null,null,null,null,126,null,null,null,"／",null,"／",null,"／",null,null,"／","／",null,null,null,null,null,null,null,null,null,null,null,null,null,null,null,null,null,null,null,null,null,null,null,null,null,null,null,null,null,null,"",""]
[126,{"$f":"IFERROR(VLOOKUP(BA145,'[1]ID(当院入力シート)'!E:F,2,FALSE)&\"\",\"\")","v":""},null,null,null,null,null,null,126,null,null,null,"／",null,"／",null,"／",null,null,"／","／",null,null,null,null,null,null,null,null,null,null,null,null,null,null,null,null,null,null,null,null,null,null,null,null,null,null,null,null,null,null,"",""]
[127,{"$f":"IFERROR(VLOOKUP(BA146,'[1]ID(当院入力シート)'!E:F,2,FALSE)&\"\",\"\")","v":""},null,null,null,null,null,null,{"$f":"DATEDIF(H146,$I$15,\"y\")","v":126},null,null,null,"／",null,"／",null,"／",null,null,"／","／",null,null,null,null,null,null,null,null,null,null,null,null,null,null,null,null,null,null,null,null,null,null,null,null,null,null,null,null,null,null,"",""]
[128,{"$f":"IFERROR(VLOOKUP(BA147,'[1]ID(当院入力シート)'!E:F,2,FALSE)&\"\",\"\")","v":""},null,null,null,null,null,null,126,null,null,null,"／",null,"／",null,"／",null,null,"／",{"$f":"TEXT(T147,\"(aaa)\")","v":"／"},null,null,null,null,null,null,null,null,null,null,null,null,null,null,null,null,null,null,null,null,null,null,null,null,null,null,null,null,null,null,"",""]
[129,{"$f":"IFERROR(VLOOKUP(BA148,'[1]ID(当院入力シート)'!E:F,2,FALSE)&\"\",\"\")","v":""},null,null,null,null,null,null,126,null,null,null,"／",null,"／",null,"／",null,null,"／","／",null,null,null,null,null,null,null,null,null,null,null,null,null,null,null,null,null,null,null,null,null,null,null,null,null,null,null,null,null,null,{"$f":"SUBSTITUTE(SUBSTITUTE(E148,\"　\",\"\"),\" \",\"\")","v":""},{"$f":"AZ148&H148","v":""}]
[130,{"$f":"IFERROR(VLOOKUP(BA149,'[1]ID(当院入力シート)'!E:F,2,FALSE)&\"\",\"\")","v":""},null,null,null,null,null,null,126,null,null,null,"／",null,"／",null,"／",null,null,"／","／",null,null,null,null,null,null,null,null,null,null,null,null,null,null,null,null,null,null,null,null,null,null,null,null,null,null,null,null,null,null,"",""]
[{"$f":"ROW()-19","v":131},{"$f":"IFERROR(VLOOKUP(BA150,'[1]ID(当院入力シート)'!E:F,2,FALSE)&\"\",\"\")","v":""},null,null,null,null,null,null,126,null,null,null,"／",null,"／",null,"／",null,null,"／","／",null,null,null,null,null,null,null,null,null,null,null,null,null,null,null,null,null,null,null,null,null,null,null,null,null,null,null,null,null,null,"",""]
[132,{"$f":"IFERROR(VLOOKUP(BA151,'[1]ID(当院入力シート)'!E:F,2,FALSE)&\"\",\"\")","v":""},null,null,null,null,null,null,126,null,null,null,"／",null,"／",null,"／",null,null,"／","／",null,null,null,null,null,null,null,null,null,null,null,null,null,null,null,null,null,null,null,null,null,null,null,null,null,null,null,null,null,null,"",""]
[133,{"$f":"IFERROR(VLOOKUP(BA152,'[1]ID(当院入力シート)'!E:F,2,FALSE)&\"\",\"\")","v":""},null,null,null,null,null,null,126,null,null,null,"／",null,"／",null,"／",null,null,"／","／",null,null,null,null,null,null,null,null,null,null,null,null,null,null,null,null,null,null,null,null,null,null,null,null,null,null,null,null,null,null,"",""]
[134,{"$f":"IFERROR(VLOOKUP(BA153,'[1]ID(当院入力シート)'!E:F,2,FALSE)&\"\",\"\")","v":""},null,null,null,null,null,null,126,null,null,null,"／",null,"／",null,"／",null,null,"／","／",null,null,null,null,null,null,null,null,null,null,null,null,null,null,null,null,null,null,null,null,null,null,null,null,null,null,null,null,null,null,"",""]
[135,{"$f":"IFERROR(VLOOKUP(BA154,'[1]ID(当院入力シート)'!E:F,2,FALSE)&\"\",\"\")","v":""},null,null,null,null,null,null,126,null,null,null,"／",null,"／",null,"／",null,null,"／","／",null,null,null,null,null,null,null,null,null,null,null,null,null,null,null,null,null,null,null,null,null,null,null,null,null,null,null,null,null,null,"",""]
[136,{"$f":"IFERROR(VLOOKUP(BA155,'[1]ID(当院入力シート)'!E:F,2,FALSE)&\"\",\"\")","v":""},null,null,null,null,null,null,126,null,null,null,"／",null,"／",null,"／",null,null,"／","／",null,null,null,null,null,null,null,null,null,null,null,null,null,null,null,null,null,null,null,null,null,null,null,null,null,null,null,null,null,null,"",""]
[137,{"$f":"IFERROR(VLOOKUP(BA156,'[1]ID(当院入力シート)'!E:F,2,FALSE)&\"\",\"\")","v":""},null,null,null,null,null,null,126,null,null,null,"／",null,"／",null,"／",null,null,"／","／",null,null,null,null,null,null,null,null,null,null,null,null,null,null,null,null,null,null,null,null,null,null,null,null,null,null,null,null,null,null,"",""]
[138,{"$f":"IFERROR(VLOOKUP(BA157,'[1]ID(当院入力シート)'!E:F,2,FALSE)&\"\",\"\")","v":""},null,null,null,null,null,null,126,null,null,null,"／",null,"／",null,"／",null,null,"／","／",null,null,null,null,null,null,null,null,null,null,null,null,null,null,null,null,null,null,null,null,null,null,null,null,null,null,null,null,null,null,"",""]
[139,{"$f":"IFERROR(VLOOKUP(BA158,'[1]ID(当院入力シート)'!E:F,2,FALSE)&\"\",\"\")","v":""},null,null,null,null,null,null,126,null,null,null,"／",null,"／",null,"／",null,null,"／","／",null,null,null,null,null,null,null,null,null,null,null,null,null,null,null,null,null,null,null,null,null,null,null,null,null,null,null,null,null,null,"",""]
[140,{"$f":"IFERROR(VLOOKUP(BA159,'[1]ID(当院入力シート)'!E:F,2,FALSE)&\"\",\"\")","v":""},null,null,null,null,null,null,126,null,null,null,"／",null,"／",null,"／",null,null,"／","／",null,null,null,null,null,null,null,null,null,null,null,null,null,null,null,null,null,null,null,null,null,null,null,null,null,null,null,null,null,null,"",""]
[141,{"$f":"IFERROR(VLOOKUP(BA160,'[1]ID(当院入力シート)'!E:F,2,FALSE)&\"\",\"\")","v":""},null,null,null,null,null,null,126,null,null,null,"／",null,"／",null,"／",null,null,"／","／",null,null,null,null,null,null,null,null,null,null,null,null,null,null,null,null,null,null,null,null,null,null,null,null,null,null,null,null,null,null,"",""]
[142,{"$f":"IFERROR(VLOOKUP(BA161,'[1]ID(当院入力シート)'!E:F,2,FALSE)&\"\",\"\")","v":""},null,null,null,null,null,null,126,null,null,null,"／",null,"／",null,"／",null,null,"／","／",null,null,null,null,null,null,null,null,null,null,null,null,null,null,null,null,null,null,null,null,null,null,null,null,null,null,null,null,null,null,"",""]
[143,{"$f":"IFERROR(VLOOKUP(BA162,'[1]ID(当院入力シート)'!E:F,2,FALSE)&\"\",\"\")","v":""},null,null,null,null,null,null,126,null,null,null,"／",null,"／",null,"／",null,null,"／","／",null,null,null,null,null,null,null,null,null,null,null,null,null,null,null,null,null,null,null,null,null,null,null,null,null,null,null,null,null,null,"",""]
[144,{"$f":"IFERROR(VLOOKUP(BA163,'[1]ID(当院入力シート)'!E:F,2,FALSE)&\"\",\"\")","v":""},null,null,null,null,null,null,126,null,null,null,"／",null,"／",null,"／",null,null,"／","／",null,null,null,null,null,null,null,null,null,null,null,null,null,null,null,null,null,null,null,null,null,null,null,null,null,null,null,null,null,null,"",""]
[145,{"$f":"IFERROR(VLOOKUP(BA164,'[1]ID(当院入力シート)'!E:F,2,FALSE)&\"\",\"\")","v":""},null,null,null,null,null,null,126,null,null,null,"／",null,"／",null,"／",null,null,"／","／",null,null,null,null,null,null,null,null,null,null,null,null,null,null,null,null,null,null,null,null,null,null,null,null,null,null,null,null,null,null,"",""]
[146,{"$f":"IFERROR(VLOOKUP(BA165,'[1]ID(当院入力シート)'!E:F,2,FALSE)&\"\",\"\")","v":""},null,null,null,null,null,null,126,null,null,null,"／",null,"／",null,"／",null,null,"／","／",null,null,null,null,null,null,null,null,null,null,null,null,null,null,null,null,null,null,null,null,null,null,null,null,null,null,null,null,null,null,"",""]
[147,{"$f":"IFERROR(VLOOKUP(BA166,'[1]ID(当院入力シート)'!E:F,2,FALSE)&\"\",\"\")","v":""},null,null,null,null,null,null,126,null,null,null,"／",null,"／",null,"／",null,null,"／","／",null,null,null,null,null,null,null,null,null,null,null,null,null,null,null,null,null,null,null,null,null,null,null,null,null,null,null,null,null,null,"",""]
[148,{"$f":"IFERROR(VLOOKUP(BA167,'[1]ID(当院入力シート)'!E:F,2,FALSE)&\"\",\"\")","v":""},null,null,null,null,null,null,126,null,null,null,"／",null,"／",null,"／",null,null,"／","／",null,null,null,null,null,null,null,null,null,null,null,null,null,null,null,null,null,null,null,null,null,null,null,null,null,null,null,null,null,null,"",""]
[149,{"$f":"IFERROR(VLOOKUP(BA168,'[1]ID(当院入力シート)'!E:F,2,FALSE)&\"\",\"\")","v":""},null,null,null,null,null,null,126,null,null,null,"／",null,"／",null,"／",null,null,"／","／",null,null,null,null,null,null,null,null,null,null,null,null,null,null,null,null,null,null,null,null,null,null,null,null,null,null,null,null,null,null,"",""]
[150,{"$f":"IFERROR(VLOOKUP(BA169,'[1]ID(当院入力シート)'!E:F,2,FALSE)&\"\",\"\")","v":""},null,null,null,null,null,null,126,null,null,null,"／",null,"／",null,"／",null,null,"／","／",null,null,null,null,null,null,null,null,null,null,null,null,null,null,null,null,null,null,null,null,null,null,null,null,null,null,null,null,null,null,"",""]
[151,{"$f":"IFERROR(VLOOKUP(BA170,'[1]ID(当院入力シート)'!E:F,2,FALSE)&\"\",\"\")","v":""},null,null,null,null,null,null,126,null,null,null,"／",null,"／",null,"／",null,null,"／","／",null,null,null,null,null,null,null,null,null,null,null,null,null,null,null,null,null,null,null,null,null,null,null,null,null,null,null,null,null,null,"",""]
[152,{"$f":"IFERROR(VLOOKUP(BA171,'[1]ID(当院入力シート)'!E:F,2,FALSE)&\"\",\"\")","v":""},null,null,null,null,null,null,126,null,null,null,"／",null,"／",null,"／",null,null,"／","／",null,null,null,null,null,null,null,null,null,null,null,null,null,null,null,null,null,null,null,null,null,null,null,null,null,null,null,null,null,null,"",""]
[153,{"$f":"IFERROR(VLOOKUP(BA172,'[1]ID(当院入力シート)'!E:F,2,FALSE)&\"\",\"\")","v":""},null,null,null,null,null,null,126,null,null,null,"／",null,"／",null,"／",null,null,"／","／",null,null,null,null,null,null,null,null,null,null,null,null,null,null,null,null,null,null,null,null,null,null,null,null,null,null,null,null,null,null,"",""]
[154,{"$f":"IFERROR(VLOOKUP(BA173,'[1]ID(当院入力シート)'!E:F,2,FALSE)&\"\",\"\")","v":""},null,null,null,null,null,null,126,null,null,null,"／",null,"／",null,"／",null,null,"／","／",null,null,null,null,null,null,null,null,null,null,null,null,null,null,null,null,null,null,null,null,null,null,null,null,null,null,null,null,null,null,"",""]
[155,{"$f":"IFERROR(VLOOKUP(BA174,'[1]ID(当院入力シート)'!E:F,2,FALSE)&\"\",\"\")","v":""},null,null,null,null,null,null,126,null,null,null,"／",null,"／",null,"／",null,null,"／","／",null,null,null,null,null,null,null,null,null,null,null,null,null,null,null,null,null,null,null,null,null,null,null,null,null,null,null,null,null,null,"",""]
[156,{"$f":"IFERROR(VLOOKUP(BA175,'[1]ID(当院入力シート)'!E:F,2,FALSE)&\"\",\"\")","v":""},null,null,null,null,null,null,126,null,null,null,"／",null,"／",null,"／",null,null,"／","／",null,null,null,null,null,null,null,null,null,null,null,null,null,null,null,null,null,null,null,null,null,null,null,null,null,null,null,null,null,null,"",""]
[157,{"$f":"IFERROR(VLOOKUP(BA176,'[1]ID(当院入力シート)'!E:F,2,FALSE)&\"\",\"\")","v":""},null,null,null,null,null,null,126,null,null,null,"／",null,"／",null,"／",null,null,"／","／",null,null,null,null,null,null,null,null,null,null,null,null,null,null,null,null,null,null,null,null,null,null,null,null,null,null,null,null,null,null,"",""]
[158,{"$f":"IFERROR(VLOOKUP(BA177,'[1]ID(当院入力シート)'!E:F,2,FALSE)&\"\",\"\")","v":""},null,null,null,null,null,null,126,null,null,null,"／",null,"／",null,"／",null,null,"／","／",null,null,null,null,null,null,null,null,null,null,null,null,null,null,null,null,null,null,null,null,null,null,null,null,null,null,null,null,null,null,"",""]
[159,{"$f":"IFERROR(VLOOKUP(BA178,'[1]ID(当院入力シート)'!E:F,2,FALSE)&\"\",\"\")","v":""},null,null,null,null,null,null,126,null,null,null,"／",null,"／",null,"／",null,null,"／","／",null,null,null,null,null,null,null,null,null,null,null,null,null,null,null,null,null,null,null,null,null,null,null,null,null,null,null,null,null,null,"",""]
[160,{"$f":"IFERROR(VLOOKUP(BA179,'[1]ID(当院入力シート)'!E:F,2,FALSE)&\"\",\"\")","v":""},null,null,null,null,null,null,126,null,null,null,"／",null,"／",null,"／",null,null,"／","／",null,null,null,null,null,null,null,null,null,null,null,null,null,null,null,null,null,null,null,null,null,null,null,null,null,null,null,null,null,null,"",""]
[161,{"$f":"IFERROR(VLOOKUP(BA180,'[1]ID(当院入力シート)'!E:F,2,FALSE)&\"\",\"\")","v":""},null,null,null,null,null,null,126,null,null,null,"／",null,"／",null,"／",null,null,"／","／",null,null,null,null,null,null,null,null,null,null,null,null,null,null,null,null,null,null,null,null,null,null,null,null,null,null,null,null,null,null,"",""]
[162,{"$f":"IFERROR(VLOOKUP(BA181,'[1]ID(当院入力シート)'!E:F,2,FALSE)&\"\",\"\")","v":""},null,null,null,null,null,null,126,null,null,null,"／",null,"／",null,"／",null,null,"／","／",null,null,null,null,null,null,null,null,null,null,null,null,null,null,null,null,null,null,null,null,null,null,null,null,null,null,null,null,null,null,"",""]
[163,{"$f":"IFERROR(VLOOKUP(BA182,'[1]ID(当院入力シート)'!E:F,2,FALSE)&\"\",\"\")","v":""},null,null,null,null,null,null,126,null,null,null,"／",null,"／",null,"／",null,null,"／","／",null,null,null,null,null,null,null,null,null,null,null,null,null,null,null,null,null,null,null,null,null,null,null,null,null,null,null,null,null,null,"",""]
[164,{"$f":"IFERROR(VLOOKUP(BA183,'[1]ID(当院入力シート)'!E:F,2,FALSE)&\"\",\"\")","v":""},null,null,null,null,null,null,126,null,null,null,"／",null,"／",null,"／",null,null,"／","／",null,null,null,null,null,null,null,null,null,null,null,null,null,null,null,null,null,null,null,null,null,null,null,null,null,null,null,null,null,null,"",""]
[165,{"$f":"IFERROR(VLOOKUP(BA184,'[1]ID(当院入力シート)'!E:F,2,FALSE)&\"\",\"\")","v":""},null,null,null,null,null,null,126,null,null,null,"／",null,"／",null,"／",null,null,"／","／",null,null,null,null,null,null,null,null,null,null,null,null,null,null,null,null,null,null,null,null,null,null,null,null,null,null,null,null,null,null,"",""]
[166,{"$f":"IFERROR(VLOOKUP(BA185,'[1]ID(当院入力シート)'!E:F,2,FALSE)&\"\",\"\")","v":""},null,null,null,null,null,null,126,null,null,null,"／",null,"／",null,"／",null,null,"／","／",null,null,null,null,null,null,null,null,null,null,null,null,null,null,null,null,null,null,null,null,null,null,null,null,null,null,null,null,null,null,"",""]
[167,{"$f":"IFERROR(VLOOKUP(BA186,'[1]ID(当院入力シート)'!E:F,2,FALSE)&\"\",\"\")","v":""},null,null,null,null,null,null,126,null,null,null,"／",null,"／",null,"／",null,null,"／","／",null,null,null,null,null,null,null,null,null,null,null,null,null,null,null,null,null,null,null,null,null,null,null,null,null,null,null,null,null,null,"",""]
[168,{"$f":"IFERROR(VLOOKUP(BA187,'[1]ID(当院入力シート)'!E:F,2,FALSE)&\"\",\"\")","v":""},null,null,null,null,null,null,126,null,null,null,"／",null,"／",null,"／",null,null,"／","／",null,null,null,null,null,null,null,null,null,null,null,null,null,null,null,null,null,null,null,null,null,null,null,null,null,null,null,null,null,null,"",""]
[169,{"$f":"IFERROR(VLOOKUP(BA188,'[1]ID(当院入力シート)'!E:F,2,FALSE)&\"\",\"\")","v":""},null,null,null,null,null,null,126,null,null,null,"／",null,"／",null,"／",null,null,"／","／",null,null,null,null,null,null,null,null,null,null,null,null,null,null,null,null,null,null,null,null,null,null,null,null,null,null,null,null,null,null,"",""]
[170,{"$f":"IFERROR(VLOOKUP(BA189,'[1]ID(当院入力シート)'!E:F,2,FALSE)&\"\",\"\")","v":""},null,null,null,null,null,null,126,null,null,null,"／",null,"／",null,"／",null,null,"／","／",null,null,null,null,null,null,null,null,null,null,null,null,null,null,null,null,null,null,null,null,null,null,null,null,null,null,null,null,null,null,"",""]
[171,{"$f":"IFERROR(VLOOKUP(BA190,'[1]ID(当院入力シート)'!E:F,2,FALSE)&\"\",\"\")","v":""},null,null,null,null,null,null,126,null,null,null,"／",null,"／",null,"／",null,null,"／","／",null,null,null,null,null,null,null,null,null,null,null,null,null,null,null,null,null,null,null,null,null,null,null,null,null,null,null,null,null,null,"",""]
[172,{"$f":"IFERROR(VLOOKUP(BA191,'[1]ID(当院入力シート)'!E:F,2,FALSE)&\"\",\"\")","v":""},null,null,null,null,null,null,126,null,null,null,"／",null,"／",null,"／",null,null,"／","／",null,null,null,null,null,null,null,null,null,null,null,null,null,null,null,null,null,null,null,null,null,null,null,null,null,null,null,null,null,null,"",""]
[173,{"$f":"IFERROR(VLOOKUP(BA192,'[1]ID(当院入力シート)'!E:F,2,FALSE)&\"\",\"\")","v":""},null,null,null,null,null,null,126,null,null,null,"／",null,"／",null,"／",null,null,"／","／",null,null,null,null,null,null,null,null,null,null,null,null,null,null,null,null,null,null,null,null,null,null,null,null,null,null,null,null,null,null,"",""]
[174,{"$f":"IFERROR(VLOOKUP(BA193,'[1]ID(当院入力シート)'!E:F,2,FALSE)&\"\",\"\")","v":""},null,null,null,null,null,null,126,null,null,null,"／",null,"／",null,"／",null,null,"／","／",null,null,null,null,null,null,null,null,null,null,null,null,null,null,null,null,null,null,null,null,null,null,null,null,null,null,null,null,null,null,"",""]
[175,{"$f":"IFERROR(VLOOKUP(BA194,'[1]ID(当院入力シート)'!E:F,2,FALSE)&\"\",\"\")","v":""},null,null,null,null,null,null,126,null,null,null,"／",null,"／",null,"／",null,null,"／","／",null,null,null,null,null,null,null,null,null,null,null,null,null,null,null,null,null,null,null,null,null,null,null,null,null,null,null,null,null,null,"",""]
[176,{"$f":"IFERROR(VLOOKUP(BA195,'[1]ID(当院入力シート)'!E:F,2,FALSE)&\"\",\"\")","v":""},null,null,null,null,null,null,126,null,null,null,"／",null,"／",null,"／",null,null,"／","／",null,null,null,null,null,null,null,null,null,null,null,null,null,null,null,null,null,null,null,null,null,null,null,null,null,null,null,null,null,null,"",""]
[177,{"$f":"IFERROR(VLOOKUP(BA196,'[1]ID(当院入力シート)'!E:F,2,FALSE)&\"\",\"\")","v":""},null,null,null,null,null,null,126,null,null,null,"／",null,"／",null,"／",null,null,"／","／",null,null,null,null,null,null,null,null,null,null,null,null,null,null,null,null,null,null,null,null,null,null,null,null,null,null,null,null,null,null,"",""]
[178,{"$f":"IFERROR(VLOOKUP(BA197,'[1]ID(当院入力シート)'!E:F,2,FALSE)&\"\",\"\")","v":""},null,null,null,null,null,null,126,null,null,null,"／",null,"／",null,"／",null,null,"／","／",null,null,null,null,null,null,null,null,null,null,null,null,null,null,null,null,null,null,null,null,null,null,null,null,null,null,null,null,null,null,"",""]
[179,{"$f":"IFERROR(VLOOKUP(BA198,'[1]ID(当院入力シート)'!E:F,2,FALSE)&\"\",\"\")","v":""},null,null,null,null,null,null,126,null,null,null,"／",null,"／",null,"／",null,null,"／","／",null,null,null,null,null,null,null,null,null,null,null,null,null,null,null,null,null,null,null,null,null,null,null,null,null,null,null,null,null,null,"",""]
[180,{"$f":"IFERROR(VLOOKUP(BA199,'[1]ID(当院入力シート)'!E:F,2,FALSE)&\"\",\"\")","v":""},null,null,null,null,null,null,126,null,null,null,"／",null,"／",null,"／",null,null,"／","／",null,null,null,null,null,null,null,null,null,null,null,null,null,null,null,null,null,null,null,null,null,null,null,null,null,null,null,null,null,null,"",""]
[181,{"$f":"IFERROR(VLOOKUP(BA200,'[1]ID(当院入力シート)'!E:F,2,FALSE)&\"\",\"\")","v":""},null,null,null,null,null,null,126,null,null,null,"／",null,"／",null,"／",null,null,"／","／",null,null,null,null,null,null,null,null,null,null,null,null,null,null,null,null,null,null,null,null,null,null,null,null,null,null,null,null,null,null,"",""]
[182,{"$f":"IFERROR(VLOOKUP(BA201,'[1]ID(当院入力シート)'!E:F,2,FALSE)&\"\",\"\")","v":""},null,null,null,null,null,null,126,null,null,null,"／",null,"／",null,"／",null,null,"／","／",null,null,null,null,null,null,null,null,null,null,null,null,null,null,null,null,null,null,null,null,null,null,null,null,null,null,null,null,null,null,"",""]
[183,{"$f":"IFERROR(VLOOKUP(BA202,'[1]ID(当院入力シート)'!E:F,2,FALSE)&\"\",\"\")","v":""},null,null,null,null,null,null,126,null,null,null,"／",null,"／",null,"／",null,null,"／","／",null,null,null,null,null,null,null,null,null,null,null,null,null,null,null,null,null,null,null,null,null,null,null,null,null,null,null,null,null,null,"",""]
[184,{"$f":"IFERROR(VLOOKUP(BA203,'[1]ID(当院入力シート)'!E:F,2,FALSE)&\"\",\"\")","v":""},null,null,null,null,null,null,126,null,null,null,"／",null,"／",null,"／",null,null,"／","／",null,null,null,null,null,null,null,null,null,null,null,null,null,null,null,null,null,null,null,null,null,null,null,null,null,null,null,null,null,null,"",""]
[185,{"$f":"IFERROR(VLOOKUP(BA204,'[1]ID(当院入力シート)'!E:F,2,FALSE)&\"\",\"\")","v":""},null,null,null,null,null,null,126,null,null,null,"／",null,"／",null,"／",null,null,"／","／",null,null,null,null,null,null,null,null,null,null,null,null,null,null,null,null,null,null,null,null,null,null,null,null,null,null,null,null,null,null,"",""]
[186,{"$f":"IFERROR(VLOOKUP(BA205,'[1]ID(当院入力シート)'!E:F,2,FALSE)&\"\",\"\")","v":""},null,null,null,null,null,null,126,null,null,null,"／",null,"／",null,"／",null,null,"／","／",null,null,null,null,null,null,null,null,null,null,null,null,null,null,null,null,null,null,null,null,null,null,null,null,null,null,null,null,null,null,"",""]
[187,{"$f":"IFERROR(VLOOKUP(BA206,'[1]ID(当院入力シート)'!E:F,2,FALSE)&\"\",\"\")","v":""},null,null,null,null,null,null,126,null,null,null,"／",null,"／",null,"／",null,null,"／","／",null,null,null,null,null,null,null,null,null,null,null,null,null,null,null,null,null,null,null,null,null,null,null,null,null,null,null,null,null,null,"",""]
[188,{"$f":"IFERROR(VLOOKUP(BA207,'[1]ID(当院入力シート)'!E:F,2,FALSE)&\"\",\"\")","v":""},null,null,null,null,null,null,126,null,null,null,"／",null,"／",null,"／",null,null,"／","／",null,null,null,null,null,null,null,null,null,null,null,null,null,null,null,null,null,null,null,null,null,null,null,null,null,null,null,null,null,null,"",""]
[189,{"$f":"IFERROR(VLOOKUP(BA208,'[1]ID(当院入力シート)'!E:F,2,FALSE)&\"\",\"\")","v":""},null,null,null,null,null,null,126,null,null,null,"／",null,"／",null,"／",null,null,"／","／",null,null,null,null,null,null,null,null,null,null,null,null,null,null,null,null,null,null,null,null,null,null,null,null,null,null,null,null,null,null,"",""]
[190,{"$f":"IFERROR(VLOOKUP(BA209,'[1]ID(当院入力シート)'!E:F,2,FALSE)&\"\",\"\")","v":""},null,null,null,null,null,null,126,null,null,null,"／",null,"／",null,"／",null,null,"／","／",null,null,null,null,null,null,null,null,null,null,null,null,null,null,null,null,null,null,null,null,null,null,null,null,null,null,null,null,null,null,"",""]
[191,{"$f":"IFERROR(VLOOKUP(BA210,'[1]ID(当院入力シート)'!E:F,2,FALSE)&\"\",\"\")","v":""},null,null,null,null,null,null,{"$f":"DATEDIF(H210,$I$15,\"y\")","v":126},null,null,null,"／",null,"／",null,"／",null,null,"／","／",null,null,null,null,null,null,null,null,null,null,null,null,null,null,null,null,null,null,null,null,null,null,null,null,null,null,null,null,null,null,"",""]
[192,{"$f":"IFERROR(VLOOKUP(BA211,'[1]ID(当院入力シート)'!E:F,2,FALSE)&\"\",\"\")","v":""},null,null,null,null,null,null,126,null,null,null,"／",null,"／",null,"／",null,null,"／",{"$f":"TEXT(T211,\"(aaa)\")","v":"／"},null,null,null,null,null,null,null,null,null,null,null,null,null,null,null,null,null,null,null,null,null,null,null,null,null,null,null,null,null,null,"",""]
[193,{"$f":"IFERROR(VLOOKUP(BA212,'[1]ID(当院入力シート)'!E:F,2,FALSE)&\"\",\"\")","v":""},null,null,null,null,null,null,126,null,null,null,"／",null,"／",null,"／",null,null,"／","／",null,null,null,null,null,null,null,null,null,null,null,null,null,null,null,null,null,null,null,null,null,null,null,null,null,null,null,null,null,null,{"$f":"SUBSTITUTE(SUBSTITUTE(E212,\"　\",\"\"),\" \",\"\")","v":""},{"$f":"AZ212&H212","v":""}]
[194,{"$f":"IFERROR(VLOOKUP(BA213,'[1]ID(当院入力シート)'!E:F,2,FALSE)&\"\",\"\")","v":""},null,null,null,null,null,null,126,null,null,null,"／",null,"／",null,"／",null,null,"／","／",null,null,null,null,null,null,null,null,null,null,null,null,null,null,null,null,null,null,null,null,null,null,null,null,null,null,null,null,null,null,"",""]
[{"$f":"ROW()-19","v":195},{"$f":"IFERROR(VLOOKUP(BA214,'[1]ID(当院入力シート)'!E:F,2,FALSE)&\"\",\"\")","v":""},null,null,null,null,null,null,126,null,null,null,"／",null,"／",null,"／",null,null,"／","／",null,null,null,null,null,null,null,null,null,null,null,null,null,null,null,null,null,null,null,null,null,null,null,null,null,null,null,null,null,null,"",""]
[196,{"$f":"IFERROR(VLOOKUP(BA215,'[1]ID(当院入力シート)'!E:F,2,FALSE)&\"\",\"\")","v":""},null,null,null,null,null,null,126,null,null,null,"／",null,"／",null,"／",null,null,"／","／",null,null,null,null,null,null,null,null,null,null,null,null,null,null,null,null,null,null,null,null,null,null,null,null,null,null,null,null,null,null,"",""]
[197,{"$f":"IFERROR(VLOOKUP(BA216,'[1]ID(当院入力シート)'!E:F,2,FALSE)&\"\",\"\")","v":""},null,null,null,null,null,null,126,null,null,null,"／",null,"／",null,"／",null,null,"／","／",null,null,null,null,null,null,null,null,null,null,null,null,null,null,null,null,null,null,null,null,null,null,null,null,null,null,null,null,null,null,"",""]
[198,{"$f":"IFERROR(VLOOKUP(BA217,'[1]ID(当院入力シート)'!E:F,2,FALSE)&\"\",\"\")","v":""},null,null,null,null,null,null,126,null,null,null,"／",null,"／",null,"／",null,null,"／","／",null,null,null,null,null,null,null,null,null,null,null,null,null,null,null,null,null,null,null,null,null,null,null,null,null,null,null,null,null,null,"",""]
[199,{"$f":"IFERROR(VLOOKUP(BA218,'[1]ID(当院入力シート)'!E:F,2,FALSE)&\"\",\"\")","v":""},null,null,null,null,null,null,126,null,null,null,"／",null,"／",null,"／",null,null,"／","／",null,null,null,null,null,null,null,null,null,null,null,null,null,null,null,null,null,null,null,null,null,null,null,null,null,null,null,null,null,null,"",""]
[200,{"$f":"IFERROR(VLOOKUP(BA219,'[1]ID(当院入力シート)'!E:F,2,FALSE)&\"\",\"\")","v":""},null,null,null,null,null,null,126,null,null,null,"／",null,"／",null,"／",null,null,"／","／",null,null,null,null,null,null,null,null,null,null,null,null,null,null,null,null,null,null,null,null,null,null,null,null,null,null,null,null,null,null,"",""]
[201,{"$f":"IFERROR(VLOOKUP(BA220,'[1]ID(当院入力シート)'!E:F,2,FALSE)&\"\",\"\")","v":""},null,null,null,null,null,null,126,null,null,null,"／",null,"／",null,"／",null,null,"／","／",null,null,null,null,null,null,null,null,null,null,null,null,null,null,null,null,null,null,null,null,null,null,null,null,null,null,null,null,null,null,"",""]
[202,{"$f":"IFERROR(VLOOKUP(BA221,'[1]ID(当院入力シート)'!E:F,2,FALSE)&\"\",\"\")","v":""},null,null,null,null,null,null,126,null,null,null,"／",null,"／",null,"／",null,null,"／","／",null,null,null,null,null,null,null,null,null,null,null,null,null,null,null,null,null,null,null,null,null,null,null,null,null,null,null,null,null,null,"",""]
[203,{"$f":"IFERROR(VLOOKUP(BA222,'[1]ID(当院入力シート)'!E:F,2,FALSE)&\"\",\"\")","v":""},null,null,null,null,null,null,126,null,null,null,"／",null,"／",null,"／",null,null,"／","／",null,null,null,null,null,null,null,null,null,null,null,null,null,null,null,null,null,null,null,null,null,null,null,null,null,null,null,null,null,null,"",""]
[204,{"$f":"IFERROR(VLOOKUP(BA223,'[1]ID(当院入力シート)'!E:F,2,FALSE)&\"\",\"\")","v":""},null,null,null,null,null,null,126,null,null,null,"／",null,"／",null,"／",null,null,"／","／",null,null,null,null,null,null,null,null,null,null,null,null,null,null,null,null,null,null,null,null,null,null,null,null,null,null,null,null,null,null,"",""]
[205,{"$f":"IFERROR(VLOOKUP(BA224,'[1]ID(当院入力シート)'!E:F,2,FALSE)&\"\",\"\")","v":""},null,null,null,null,null,null,126,null,null,null,"／",null,"／",null,"／",null,null,"／","／",null,null,null,null,null,null,null,null,null,null,null,null,null,null,null,null,null,null,null,null,null,null,null,null,null,null,null,null,null,null,"",""]
[206,{"$f":"IFERROR(VLOOKUP(BA225,'[1]ID(当院入力シート)'!E:F,2,FALSE)&\"\",\"\")","v":""},null,null,null,null,null,null,126,null,null,null,"／",null,"／",null,"／",null,null,"／","／",null,null,null,null,null,null,null,null,null,null,null,null,null,null,null,null,null,null,null,null,null,null,null,null,null,null,null,null,null,null,"",""]
[207,{"$f":"IFERROR(VLOOKUP(BA226,'[1]ID(当院入力シート)'!E:F,2,FALSE)&\"\",\"\")","v":""},null,null,null,null,null,null,126,null,null,null,"／",null,"／",null,"／",null,null,"／","／",null,null,null,null,null,null,null,null,null,null,null,null,null,null,null,null,null,null,null,null,null,null,null,null,null,null,null,null,null,null,"",""]
[208,{"$f":"IFERROR(VLOOKUP(BA227,'[1]ID(当院入力シート)'!E:F,2,FALSE)&\"\",\"\")","v":""},null,null,null,null,null,null,126,null,null,null,"／",null,"／",null,"／",null,null,"／","／",null,null,null,null,null,null,null,null,null,null,null,null,null,null,null,null,null,null,null,null,null,null,null,null,null,null,null,null,null,null,"",""]
[209,{"$f":"IFERROR(VLOOKUP(BA228,'[1]ID(当院入力シート)'!E:F,2,FALSE)&\"\",\"\")","v":""},null,null,null,null,null,null,126,null,null,null,"／",null,"／",null,"／",null,null,"／","／",null,null,null,null,null,null,null,null,null,null,null,null,null,null,null,null,null,null,null,null,null,null,null,null,null,null,null,null,null,null,"",""]
[210,{"$f":"IFERROR(VLOOKUP(BA229,'[1]ID(当院入力シート)'!E:F,2,FALSE)&\"\",\"\")","v":""},null,null,null,null,null,null,126,null,null,null,"／",null,"／",null,"／",null,null,"／","／",null,null,null,null,null,null,null,null,null,null,null,null,null,null,null,null,null,null,null,null,null,null,null,null,null,null,null,null,null,null,"",""]
[211,{"$f":"IFERROR(VLOOKUP(BA230,'[1]ID(当院入力シート)'!E:F,2,FALSE)&\"\",\"\")","v":""},null,null,null,null,null,null,126,null,null,null,"／",null,"／",null,"／",null,null,"／","／",null,null,null,null,null,null,null,null,null,null,null,null,null,null,null,null,null,null,null,null,null,null,null,null,null,null,null,null,null,null,"",""]
[212,{"$f":"IFERROR(VLOOKUP(BA231,'[1]ID(当院入力シート)'!E:F,2,FALSE)&\"\",\"\")","v":""},null,null,null,null,null,null,126,null,null,null,"／",null,"／",null,"／",null,null,"／","／",null,null,null,null,null,null,null,null,null,null,null,null,null,null,null,null,null,null,null,null,null,null,null,null,null,null,null,null,null,null,"",""]
[213,{"$f":"IFERROR(VLOOKUP(BA232,'[1]ID(当院入力シート)'!E:F,2,FALSE)&\"\",\"\")","v":""},null,null,null,null,null,null,126,null,null,null,"／",null,"／",null,"／",null,null,"／","／",null,null,null,null,null,null,null,null,null,null,null,null,null,null,null,null,null,null,null,null,null,null,null,null,null,null,null,null,null,null,"",""]
[214,{"$f":"IFERROR(VLOOKUP(BA233,'[1]ID(当院入力シート)'!E:F,2,FALSE)&\"\",\"\")","v":""},null,null,null,null,null,null,126,null,null,null,"／",null,"／",null,"／",null,null,"／","／",null,null,null,null,null,null,null,null,null,null,null,null,null,null,null,null,null,null,null,null,null,null,null,null,null,null,null,null,null,null,"",""]
[215,{"$f":"IFERROR(VLOOKUP(BA234,'[1]ID(当院入力シート)'!E:F,2,FALSE)&\"\",\"\")","v":""},null,null,null,null,null,null,126,null,null,null,"／",null,"／",null,"／",null,null,"／","／",null,null,null,null,null,null,null,null,null,null,null,null,null,null,null,null,null,null,null,null,null,null,null,null,null,null,null,null,null,null,"",""]
[216,{"$f":"IFERROR(VLOOKUP(BA235,'[1]ID(当院入力シート)'!E:F,2,FALSE)&\"\",\"\")","v":""},null,null,null,null,null,null,126,null,null,null,"／",null,"／",null,"／",null,null,"／","／",null,null,null,null,null,null,null,null,null,null,null,null,null,null,null,null,null,null,null,null,null,null,null,null,null,null,null,null,null,null,"",""]
[217,{"$f":"IFERROR(VLOOKUP(BA236,'[1]ID(当院入力シート)'!E:F,2,FALSE)&\"\",\"\")","v":""},null,null,null,null,null,null,126,null,null,null,"／",null,"／",null,"／",null,null,"／","／",null,null,null,null,null,null,null,null,null,null,null,null,null,null,null,null,null,null,null,null,null,null,null,null,null,null,null,null,null,null,"",""]
[218,{"$f":"IFERROR(VLOOKUP(BA237,'[1]ID(当院入力シート)'!E:F,2,FALSE)&\"\",\"\")","v":""},null,null,null,null,null,null,126,null,null,null,"／",null,"／",null,"／",null,null,"／","／",null,null,null,null,null,null,null,null,null,null,null,null,null,null,null,null,null,null,null,null,null,null,null,null,null,null,null,null,null,null,"",""]
[219,{"$f":"IFERROR(VLOOKUP(BA238,'[1]ID(当院入力シート)'!E:F,2,FALSE)&\"\",\"\")","v":""},null,null,null,null,null,null,126,null,null,null,"／",null,"／",null,"／",null,null,"／","／",null,null,null,null,null,null,null,null,null,null,null,null,null,null,null,null,null,null,null,null,null,null,null,null,null,null,null,null,null,null,"",""]
[220,{"$f":"IFERROR(VLOOKUP(BA239,'[1]ID(当院入力シート)'!E:F,2,FALSE)&\"\",\"\")","v":""},null,null,null,null,null,null,126,null,null,null,"／",null,"／",null,"／",null,null,"／","／",null,null,null,null,null,null,null,null,null,null,null,null,null,null,null,null,null,null,null,null,null,null,null,null,null,null,null,null,null,null,"",""]
[221,{"$f":"IFERROR(VLOOKUP(BA240,'[1]ID(当院入力シート)'!E:F,2,FALSE)&\"\",\"\")","v":""},null,null,null,null,null,null,126,null,null,null,"／",null,"／",null,"／",null,null,"／","／",null,null,null,null,null,null,null,null,null,null,null,null,null,null,null,null,null,null,null,null,null,null,null,null,null,null,null,null,null,null,"",""]
[222,{"$f":"IFERROR(VLOOKUP(BA241,'[1]ID(当院入力シート)'!E:F,2,FALSE)&\"\",\"\")","v":""},null,null,null,null,null,null,126,null,null,null,"／",null,"／",null,"／",null,null,"／","／",null,null,null,null,null,null,null,null,null,null,null,null,null,null,null,null,null,null,null,null,null,null,null,null,null,null,null,null,null,null,"",""]
[223,{"$f":"IFERROR(VLOOKUP(BA242,'[1]ID(当院入力シート)'!E:F,2,FALSE)&\"\",\"\")","v":""},null,null,null,null,null,null,126,null,null,null,"／",null,"／",null,"／",null,null,"／","／",null,null,null,null,null,null,null,null,null,null,null,null,null,null,null,null,null,null,null,null,null,null,null,null,null,null,null,null,null,null,"",""]
[224,{"$f":"IFERROR(VLOOKUP(BA243,'[1]ID(当院入力シート)'!E:F,2,FALSE)&\"\",\"\")","v":""},null,null,null,null,null,null,126,null,null,null,"／",null,"／",null,"／",null,null,"／","／",null,null,null,null,null,null,null,null,null,null,null,null,null,null,null,null,null,null,null,null,null,null,null,null,null,null,null,null,null,null,"",""]
[225,{"$f":"IFERROR(VLOOKUP(BA244,'[1]ID(当院入力シート)'!E:F,2,FALSE)&\"\",\"\")","v":""},null,null,null,null,null,null,126,null,null,null,"／",null,"／",null,"／",null,null,"／","／",null,null,null,null,null,null,null,null,null,null,null,null,null,null,null,null,null,null,null,null,null,null,null,null,null,null,null,null,null,null,"",""]
[226,{"$f":"IFERROR(VLOOKUP(BA245,'[1]ID(当院入力シート)'!E:F,2,FALSE)&\"\",\"\")","v":""},null,null,null,null,null,null,126,null,null,null,"／",null,"／",null,"／",null,null,"／","／",null,null,null,null,null,null,null,null,null,null,null,null,null,null,null,null,null,null,null,null,null,null,null,null,null,null,null,null,null,null,"",""]
[227,{"$f":"IFERROR(VLOOKUP(BA246,'[1]ID(当院入力シート)'!E:F,2,FALSE)&\"\",\"\")","v":""},null,null,null,null,null,null,126,null,null,null,"／",null,"／",null,"／",null,null,"／","／",null,null,null,null,null,null,null,null,null,null,null,null,null,null,null,null,null,null,null,null,null,null,null,null,null,null,null,null,null,null,"",""]
[228,{"$f":"IFERROR(VLOOKUP(BA247,'[1]ID(当院入力シート)'!E:F,2,FALSE)&\"\",\"\")","v":""},null,null,null,null,null,null,126,null,null,null,"／",null,"／",null,"／",null,null,"／","／",null,null,null,null,null,null,null,null,null,null,null,null,null,null,null,null,null,null,null,null,null,null,null,null,null,null,null,null,null,null,"",""]
[229,{"$f":"IFERROR(VLOOKUP(BA248,'[1]ID(当院入力シート)'!E:F,2,FALSE)&\"\",\"\")","v":""},null,null,null,null,null,null,126,null,null,null,"／",null,"／",null,"／",null,null,"／","／",null,null,null,null,null,null,null,null,null,null,null,null,null,null,null,null,null,null,null,null,null,null,null,null,null,null,null,null,null,null,"",""]
[230,{"$f":"IFERROR(VLOOKUP(BA249,'[1]ID(当院入力シート)'!E:F,2,FALSE)&\"\",\"\")","v":""},null,null,null,null,null,null,126,null,null,null,"／",null,"／",null,"／",null,null,"／","／",null,null,null,null,null,null,null,null,null,null,null,null,null,null,null,null,null,null,null,null,null,null,null,null,null,null,null,null,null,null,"",""]
[231,{"$f":"IFERROR(VLOOKUP(BA250,'[1]ID(当院入力シート)'!E:F,2,FALSE)&\"\",\"\")","v":""},null,null,null,null,null,null,126,null,null,null,"／",null,"／",null,"／",null,null,"／","／",null,null,null,null,null,null,null,null,null,null,null,null,null,null,null,null,null,null,null,null,null,null,null,null,null,null,null,null,null,null,"",""]
[232,{"$f":"IFERROR(VLOOKUP(BA251,'[1]ID(当院入力シート)'!E:F,2,FALSE)&\"\",\"\")","v":""},null,null,null,null,null,null,126,null,null,null,"／",null,"／",null,"／",null,null,"／","／",null,null,null,null,null,null,null,null,null,null,null,null,null,null,null,null,null,null,null,null,null,null,null,null,null,null,null,null,null,null,"",""]
[233,{"$f":"IFERROR(VLOOKUP(BA252,'[1]ID(当院入力シート)'!E:F,2,FALSE)&\"\",\"\")","v":""},null,null,null,null,null,null,126,null,null,null,"／",null,"／",null,"／",null,null,"／","／",null,null,null,null,null,null,null,null,null,null,null,null,null,null,null,null,null,null,null,null,null,null,null,null,null,null,null,null,null,null,"",""]
[234,{"$f":"IFERROR(VLOOKUP(BA253,'[1]ID(当院入力シート)'!E:F,2,FALSE)&\"\",\"\")","v":""},null,null,null,null,null,null,126,null,null,null,"／",null,"／",null,"／",null,null,"／","／",null,null,null,null,null,null,null,null,null,null,null,null,null,null,null,null,null,null,null,null,null,null,null,null,null,null,null,null,null,null,"",""]
[235,{"$f":"IFERROR(VLOOKUP(BA254,'[1]ID(当院入力シート)'!E:F,2,FALSE)&\"\",\"\")","v":""},null,null,null,null,null,null,126,null,null,null,"／",null,"／",null,"／",null,null,"／","／",null,null,null,null,null,null,null,null,null,null,null,null,null,null,null,null,null,null,null,null,null,null,null,null,null,null,null,null,null,null,"",""]
[236,{"$f":"IFERROR(VLOOKUP(BA255,'[1]ID(当院入力シート)'!E:F,2,FALSE)&\"\",\"\")","v":""},null,null,null,null,null,null,126,null,null,null,"／",null,"／",null,"／",null,null,"／","／",null,null,null,null,null,null,null,null,null,null,null,null,null,null,null,null,null,null,null,null,null,null,null,null,null,null,null,null,null,null,"",""]
[237,{"$f":"IFERROR(VLOOKUP(BA256,'[1]ID(当院入力シート)'!E:F,2,FALSE)&\"\",\"\")","v":""},null,null,null,null,null,null,126,null,null,null,"／",null,"／",null,"／",null,null,"／","／",null,null,null,null,null,null,null,null,null,null,null,null,null,null,null,null,null,null,null,null,null,null,null,null,null,null,null,null,null,null,"",""]
[238,{"$f":"IFERROR(VLOOKUP(BA257,'[1]ID(当院入力シート)'!E:F,2,FALSE)&\"\",\"\")","v":""},null,null,null,null,null,null,126,null,null,null,"／",null,"／",null,"／",null,null,"／","／",null,null,null,null,null,null,null,null,null,null,null,null,null,null,null,null,null,null,null,null,null,null,null,null,null,null,null,null,null,null,"",""]
[239,{"$f":"IFERROR(VLOOKUP(BA258,'[1]ID(当院入力シート)'!E:F,2,FALSE)&\"\",\"\")","v":""},null,null,null,null,null,null,126,null,null,null,"／",null,"／",null,"／",null,null,"／","／",null,null,null,null,null,null,null,null,null,null,null,null,null,null,null,null,null,null,null,null,null,null,null,null,null,null,null,null,null,null,"",""]
[240,{"$f":"IFERROR(VLOOKUP(BA259,'[1]ID(当院入力シート)'!E:F,2,FALSE)&\"\",\"\")","v":""},null,null,null,null,null,null,126,null,null,null,"／",null,"／",null,"／",null,null,"／","／",null,null,null,null,null,null,null,null,null,null,null,null,null,null,null,null,null,null,null,null,null,null,null,null,null,null,null,null,null,null,"",""]
[241,{"$f":"IFERROR(VLOOKUP(BA260,'[1]ID(当院入力シート)'!E:F,2,FALSE)&\"\",\"\")","v":""},null,null,null,null,null,null,126,null,null,null,"／",null,"／",null,"／",null,null,"／","／",null,null,null,null,null,null,null,null,null,null,null,null,null,null,null,null,null,null,null,null,null,null,null,null,null,null,null,null,null,null,"",""]
[242,{"$f":"IFERROR(VLOOKUP(BA261,'[1]ID(当院入力シート)'!E:F,2,FALSE)&\"\",\"\")","v":""},null,null,null,null,null,null,126,null,null,null,"／",null,"／",null,"／",null,null,"／","／",null,null,null,null,null,null,null,null,null,null,null,null,null,null,null,null,null,null,null,null,null,null,null,null,null,null,null,null,null,null,"",""]
[243,{"$f":"IFERROR(VLOOKUP(BA262,'[1]ID(当院入力シート)'!E:F,2,FALSE)&\"\",\"\")","v":""},null,null,null,null,null,null,126,null,null,null,"／",null,"／",null,"／",null,null,"／","／",null,null,null,null,null,null,null,null,null,null,null,null,null,null,null,null,null,null,null,null,null,null,null,null,null,null,null,null,null,null,"",""]
[244,{"$f":"IFERROR(VLOOKUP(BA263,'[1]ID(当院入力シート)'!E:F,2,FALSE)&\"\",\"\")","v":""},null,null,null,null,null,null,126,null,null,null,"／",null,"／",null,"／",null,null,"／","／",null,null,null,null,null,null,null,null,null,null,null,null,null,null,null,null,null,null,null,null,null,null,null,null,null,null,null,null,null,null,"",""]
[245,{"$f":"IFERROR(VLOOKUP(BA264,'[1]ID(当院入力シート)'!E:F,2,FALSE)&\"\",\"\")","v":""},null,null,null,null,null,null,126,null,null,null,"／",null,"／",null,"／",null,null,"／","／",null,null,null,null,null,null,null,null,null,null,null,null,null,null,null,null,null,null,null,null,null,null,null,null,null,null,null,null,null,null,"",""]
[246,{"$f":"IFERROR(VLOOKUP(BA265,'[1]ID(当院入力シート)'!E:F,2,FALSE)&\"\",\"\")","v":""},null,null,null,null,null,null,126,null,null,null,"／",null,"／",null,"／",null,null,"／","／",null,null,null,null,null,null,null,null,null,null,null,null,null,null,null,null,null,null,null,null,null,null,null,null,null,null,null,null,null,null,"",""]
[247,{"$f":"IFERROR(VLOOKUP(BA266,'[1]ID(当院入力シート)'!E:F,2,FALSE)&\"\",\"\")","v":""},null,null,null,null,null,null,126,null,null,null,"／",null,"／",null,"／",null,null,"／","／",null,null,null,null,null,null,null,null,null,null,null,null,null,null,null,null,null,null,null,null,null,null,null,null,null,null,null,null,null,null,"",""]
[248,{"$f":"IFERROR(VLOOKUP(BA267,'[1]ID(当院入力シート)'!E:F,2,FALSE)&\"\",\"\")","v":""},null,null,null,null,null,null,126,null,null,null,"／",null,"／",null,"／",null,null,"／","／",null,null,null,null,null,null,null,null,null,null,null,null,null,null,null,null,null,null,null,null,null,null,null,null,null,null,null,null,null,null,"",""]
[249,{"$f":"IFERROR(VLOOKUP(BA268,'[1]ID(当院入力シート)'!E:F,2,FALSE)&\"\",\"\")","v":""},null,null,null,null,null,null,126,null,null,null,"／",null,"／",null,"／",null,null,"／","／",null,null,null,null,null,null,null,null,null,null,null,null,null,null,null,null,null,null,null,null,null,null,null,null,null,null,null,null,null,null,"",""]
[250,{"$f":"IFERROR(VLOOKUP(BA269,'[1]ID(当院入力シート)'!E:F,2,FALSE)&\"\",\"\")","v":""},null,null,null,null,null,null,126,null,null,null,"／",null,"／",null,"／",null,null,"／","／",null,null,null,null,null,null,null,null,null,null,null,null,null,null,null,null,null,null,null,null,null,null,null,null,null,null,null,null,null,null,"",""]
[251,{"$f":"IFERROR(VLOOKUP(BA270,'[1]ID(当院入力シート)'!E:F,2,FALSE)&\"\",\"\")","v":""},null,null,null,null,null,null,126,null,null,null,"／",null,"／",null,"／",null,null,"／","／",null,null,null,null,null,null,null,null,null,null,null,null,null,null,null,null,null,null,null,null,null,null,null,null,null,null,null,null,null,null,"",""]
[252,{"$f":"IFERROR(VLOOKUP(BA271,'[1]ID(当院入力シート)'!E:F,2,FALSE)&\"\",\"\")","v":""},null,null,null,null,null,null,126,null,null,null,"／",null,"／",null,"／",null,null,"／","／",null,null,null,null,null,null,null,null,null,null,null,null,null,null,null,null,null,null,null,null,null,null,null,null,null,null,null,null,null,null,"",""]
[253,{"$f":"IFERROR(VLOOKUP(BA272,'[1]ID(当院入力シート)'!E:F,2,FALSE)&\"\",\"\")","v":""},null,null,null,null,null,null,126,null,null,null,"／",null,"／",null,"／",null,null,"／","／",null,null,null,null,null,null,null,null,null,null,null,null,null,null,null,null,null,null,null,null,null,null,null,null,null,null,null,null,null,null,"",""]
[254,{"$f":"IFERROR(VLOOKUP(BA273,'[1]ID(当院入力シート)'!E:F,2,FALSE)&\"\",\"\")","v":""},null,null,null,null,null,null,126,null,null,null,"／",null,"／",null,"／",null,null,"／","／",null,null,null,null,null,null,null,null,null,null,null,null,null,null,null,null,null,null,null,null,null,null,null,null,null,null,null,null,null,null,"",""]
[255,{"$f":"IFERROR(VLOOKUP(BA274,'[1]ID(当院入力シート)'!E:F,2,FALSE)&\"\",\"\")","v":""},null,null,null,null,null,null,{"$f":"DATEDIF(H274,$I$15,\"y\")","v":126},null,null,null,"／",null,"／",null,"／",null,null,"／","／",null,null,null,null,null,null,null,null,null,null,null,null,null,null,null,null,null,null,null,null,null,null,null,null,null,null,null,null,null,null,"",""]
[256,{"$f":"IFERROR(VLOOKUP(BA275,'[1]ID(当院入力シート)'!E:F,2,FALSE)&\"\",\"\")","v":""},null,null,null,null,null,null,126,null,null,null,"／",null,"／",null,"／",null,null,"／",{"$f":"TEXT(T275,\"(aaa)\")","v":"／"},null,null,null,null,null,null,null,null,null,null,null,null,null,null,null,null,null,null,null,null,null,null,null,null,null,null,null,null,null,null,"",""]
[257,{"$f":"IFERROR(VLOOKUP(BA276,'[1]ID(当院入力シート)'!E:F,2,FALSE)&\"\",\"\")","v":""},null,null,null,null,null,null,126,null,null,null,"／",null,"／",null,"／",null,null,"／","／",null,null,null,null,null,null,null,null,null,null,null,null,null,null,null,null,null,null,null,null,null,null,null,null,null,null,null,null,null,null,{"$f":"SUBSTITUTE(SUBSTITUTE(E276,\"　\",\"\"),\" \",\"\")","v":""},{"$f":"AZ276&H276","v":""}]
[258,{"$f":"IFERROR(VLOOKUP(BA277,'[1]ID(当院入力シート)'!E:F,2,FALSE)&\"\",\"\")","v":""},null,null,null,null,null,null,126,null,null,null,"／",null,"／",null,"／",null,null,"／","／",null,null,null,null,null,null,null,null,null,null,null,null,null,null,null,null,null,null,null,null,null,null,null,null,null,null,null,null,null,null,"",""]
[{"$f":"ROW()-19","v":259},{"$f":"IFERROR(VLOOKUP(BA278,'[1]ID(当院入力シート)'!E:F,2,FALSE)&\"\",\"\")","v":""},null,null,null,null,null,null,126,null,null,null,"／",null,"／",null,"／",null,null,"／","／",null,null,null,null,null,null,null,null,null,null,null,null,null,null,null,null,null,null,null,null,null,null,null,null,null,null,null,null,null,null,"",""]
[260,{"$f":"IFERROR(VLOOKUP(BA279,'[1]ID(当院入力シート)'!E:F,2,FALSE)&\"\",\"\")","v":""},null,null,null,null,null,null,126,null,null,null,"／",null,"／",null,"／",null,null,"／","／",null,null,null,null,null,null,null,null,null,null,null,null,null,null,null,null,null,null,null,null,null,null,null,null,null,null,null,null,null,null,"",""]
[261,{"$f":"IFERROR(VLOOKUP(BA280,'[1]ID(当院入力シート)'!E:F,2,FALSE)&\"\",\"\")","v":""},null,null,null,null,null,null,126,null,null,null,"／",null,"／",null,"／",null,null,"／","／",null,null,null,null,null,null,null,null,null,null,null,null,null,null,null,null,null,null,null,null,null,null,null,null,null,null,null,null,null,null,"",""]
[262,{"$f":"IFERROR(VLOOKUP(BA281,'[1]ID(当院入力シート)'!E:F,2,FALSE)&\"\",\"\")","v":""},null,null,null,null,null,null,126,null,null,null,"／",null,"／",null,"／",null,null,"／","／",null,null,null,null,null,null,null,null,null,null,null,null,null,null,null,null,null,null,null,null,null,null,null,null,null,null,null,null,null,null,"",""]
[263,{"$f":"IFERROR(VLOOKUP(BA282,'[1]ID(当院入力シート)'!E:F,2,FALSE)&\"\",\"\")","v":""},null,null,null,null,null,null,126,null,null,null,"／",null,"／",null,"／",null,null,"／","／",null,null,null,null,null,null,null,null,null,null,null,null,null,null,null,null,null,null,null,null,null,null,null,null,null,null,null,null,null,null,"",""]
[264,{"$f":"IFERROR(VLOOKUP(BA283,'[1]ID(当院入力シート)'!E:F,2,FALSE)&\"\",\"\")","v":""},null,null,null,null,null,null,126,null,null,null,"／",null,"／",null,"／",null,null,"／","／",null,null,null,null,null,null,null,null,null,null,null,null,null,null,null,null,null,null,null,null,null,null,null,null,null,null,null,null,null,null,"",""]
[265,{"$f":"IFERROR(VLOOKUP(BA284,'[1]ID(当院入力シート)'!E:F,2,FALSE)&\"\",\"\")","v":""},null,null,null,null,null,null,126,null,null,null,"／",null,"／",null,"／",null,null,"／","／",null,null,null,null,null,null,null,null,null,null,null,null,null,null,null,null,null,null,null,null,null,null,null,null,null,null,null,null,null,null,"",""]
[266,{"$f":"IFERROR(VLOOKUP(BA285,'[1]ID(当院入力シート)'!E:F,2,FALSE)&\"\",\"\")","v":""},null,null,null,null,null,null,126,null,null,null,"／",null,"／",null,"／",null,null,"／","／",null,null,null,null,null,null,null,null,null,null,null,null,null,null,null,null,null,null,null,null,null,null,null,null,null,null,null,null,null,null,"",""]
[267,{"$f":"IFERROR(VLOOKUP(BA286,'[1]ID(当院入力シート)'!E:F,2,FALSE)&\"\",\"\")","v":""},null,null,null,null,null,null,126,null,null,null,"／",null,"／",null,"／",null,null,"／","／",null,null,null,null,null,null,null,null,null,null,null,null,null,null,null,null,null,null,null,null,null,null,null,null,null,null,null,null,null,null,"",""]
[268,{"$f":"IFERROR(VLOOKUP(BA287,'[1]ID(当院入力シート)'!E:F,2,FALSE)&\"\",\"\")","v":""},null,null,null,null,null,null,126,null,null,null,"／",null,"／",null,"／",null,null,"／","／",null,null,null,null,null,null,null,null,null,null,null,null,null,null,null,null,null,null,null,null,null,null,null,null,null,null,null,null,null,null,"",""]
[269,{"$f":"IFERROR(VLOOKUP(BA288,'[1]ID(当院入力シート)'!E:F,2,FALSE)&\"\",\"\")","v":""},null,null,null,null,null,null,126,null,null,null,"／",null,"／",null,"／",null,null,"／","／",null,null,null,null,null,null,null,null,null,null,null,null,null,null,null,null,null,null,null,null,null,null,null,null,null,null,null,null,null,null,"",""]
[270,{"$f":"IFERROR(VLOOKUP(BA289,'[1]ID(当院入力シート)'!E:F,2,FALSE)&\"\",\"\")","v":""},null,null,null,null,null,null,126,null,null,null,"／",null,"／",null,"／",null,null,"／","／",null,null,null,null,null,null,null,null,null,null,null,null,null,null,null,null,null,null,null,null,null,null,null,null,null,null,null,null,null,null,"",""]
[271,{"$f":"IFERROR(VLOOKUP(BA290,'[1]ID(当院入力シート)'!E:F,2,FALSE)&\"\",\"\")","v":""},null,null,null,null,null,null,126,null,null,null,"／",null,"／",null,"／",null,null,"／","／",null,null,null,null,null,null,null,null,null,null,null,null,null,null,null,null,null,null,null,null,null,null,null,null,null,null,null,null,null,null,"",""]
[272,{"$f":"IFERROR(VLOOKUP(BA291,'[1]ID(当院入力シート)'!E:F,2,FALSE)&\"\",\"\")","v":""},null,null,null,null,null,null,126,null,null,null,"／",null,"／",null,"／",null,null,"／","／",null,null,null,null,null,null,null,null,null,null,null,null,null,null,null,null,null,null,null,null,null,null,null,null,null,null,null,null,null,null,"",""]
[273,{"$f":"IFERROR(VLOOKUP(BA292,'[1]ID(当院入力シート)'!E:F,2,FALSE)&\"\",\"\")","v":""},null,null,null,null,null,null,126,null,null,null,"／",null,"／",null,"／",null,null,"／","／",null,null,null,null,null,null,null,null,null,null,null,null,null,null,null,null,null,null,null,null,null,null,null,null,null,null,null,null,null,null,"",""]
[274,{"$f":"IFERROR(VLOOKUP(BA293,'[1]ID(当院入力シート)'!E:F,2,FALSE)&\"\",\"\")","v":""},null,null,null,null,null,null,126,null,null,null,"／",null,"／",null,"／",null,null,"／","／",null,null,null,null,null,null,null,null,null,null,null,null,null,null,null,null,null,null,null,null,null,null,null,null,null,null,null,null,null,null,"",""]
[275,{"$f":"IFERROR(VLOOKUP(BA294,'[1]ID(当院入力シート)'!E:F,2,FALSE)&\"\",\"\")","v":""},null,null,null,null,null,null,126,null,null,null,"／",null,"／",null,"／",null,null,"／","／",null,null,null,null,null,null,null,null,null,null,null,null,null,null,null,null,null,null,null,null,null,null,null,null,null,null,null,null,null,null,"",""]
[276,{"$f":"IFERROR(VLOOKUP(BA295,'[1]ID(当院入力シート)'!E:F,2,FALSE)&\"\",\"\")","v":""},null,null,null,null,null,null,126,null,null,null,"／",null,"／",null,"／",null,null,"／","／",null,null,null,null,null,null,null,null,null,null,null,null,null,null,null,null,null,null,null,null,null,null,null,null,null,null,null,null,null,null,"",""]
[277,{"$f":"IFERROR(VLOOKUP(BA296,'[1]ID(当院入力シート)'!E:F,2,FALSE)&\"\",\"\")","v":""},null,null,null,null,null,null,126,null,null,null,"／",null,"／",null,"／",null,null,"／","／",null,null,null,null,null,null,null,null,null,null,null,null,null,null,null,null,null,null,null,null,null,null,null,null,null,null,null,null,null,null,"",""]
[278,{"$f":"IFERROR(VLOOKUP(BA297,'[1]ID(当院入力シート)'!E:F,2,FALSE)&\"\",\"\")","v":""},null,null,null,null,null,null,126,null,null,null,"／",null,"／",null,"／",null,null,"／","／",null,null,null,null,null,null,null,null,null,null,null,null,null,null,null,null,null,null,null,null,null,null,null,null,null,null,null,null,null,null,"",""]
[279,{"$f":"IFERROR(VLOOKUP(BA298,'[1]ID(当院入力シート)'!E:F,2,FALSE)&\"\",\"\")","v":""},null,null,null,null,null,null,126,null,null,null,"／",null,"／",null,"／",null,null,"／","／",null,null,null,null,null,null,null,null,null,null,null,null,null,null,null,null,null,null,null,null,null,null,null,null,null,null,null,null,null,null,"",""]
[280,{"$f":"IFERROR(VLOOKUP(BA299,'[1]ID(当院入力シート)'!E:F,2,FALSE)&\"\",\"\")","v":""},null,null,null,null,null,null,126,null,null,null,"／",null,"／",null,"／",null,null,"／","／",null,null,null,null,null,null,null,null,null,null,null,null,null,null,null,null,null,null,null,null,null,null,null,null,null,null,null,null,null,null,"",""]
[281,{"$f":"IFERROR(VLOOKUP(BA300,'[1]ID(当院入力シート)'!E:F,2,FALSE)&\"\",\"\")","v":""},null,null,null,null,null,null,126,null,null,null,"／",null,"／",null,"／",null,null,"／","／",null,null,null,null,null,null,null,null,null,null,null,null,null,null,null,null,null,null,null,null,null,null,null,null,null,null,null,null,null,null,"",""]
[282,{"$f":"IFERROR(VLOOKUP(BA301,'[1]ID(当院入力シート)'!E:F,2,FALSE)&\"\",\"\")","v":""},null,null,null,null,null,null,126,null,null,null,"／",null,"／",null,"／",null,null,"／","／",null,null,null,null,null,null,null,null,null,null,null,null,null,null,null,null,null,null,null,null,null,null,null,null,null,null,null,null,null,null,"",""]
[283,{"$f":"IFERROR(VLOOKUP(BA302,'[1]ID(当院入力シート)'!E:F,2,FALSE)&\"\",\"\")","v":""},null,null,null,null,null,null,126,null,null,null,"／",null,"／",null,"／",null,null,"／","／",null,null,null,null,null,null,null,null,null,null,null,null,null,null,null,null,null,null,null,null,null,null,null,null,null,null,null,null,null,null,"",""]
[284,{"$f":"IFERROR(VLOOKUP(BA303,'[1]ID(当院入力シート)'!E:F,2,FALSE)&\"\",\"\")","v":""},null,null,null,null,null,null,126,null,null,null,"／",null,"／",null,"／",null,null,"／","／",null,null,null,null,null,null,null,null,null,null,null,null,null,null,null,null,null,null,null,null,null,null,null,null,null,null,null,null,null,null,"",""]
[285,{"$f":"IFERROR(VLOOKUP(BA304,'[1]ID(当院入力シート)'!E:F,2,FALSE)&\"\",\"\")","v":""},null,null,null,null,null,null,126,null,null,null,"／",null,"／",null,"／",null,null,"／","／",null,null,null,null,null,null,null,null,null,null,null,null,null,null,null,null,null,null,null,null,null,null,null,null,null,null,null,null,null,null,"",""]
[286,{"$f":"IFERROR(VLOOKUP(BA305,'[1]ID(当院入力シート)'!E:F,2,FALSE)&\"\",\"\")","v":""},null,null,null,null,null,null,126,null,null,null,"／",null,"／",null,"／",null,null,"／","／",null,null,null,null,null,null,null,null,null,null,null,null,null,null,null,null,null,null,null,null,null,null,null,null,null,null,null,null,null,null,"",""]
[287,{"$f":"IFERROR(VLOOKUP(BA306,'[1]ID(当院入力シート)'!E:F,2,FALSE)&\"\",\"\")","v":""},null,null,null,null,null,null,126,null,null,null,"／",null,"／",null,"／",null,null,"／","／",null,null,null,null,null,null,null,null,null,null,null,null,null,null,null,null,null,null,null,null,null,null,null,null,null,null,null,null,null,null,"",""]
[288,{"$f":"IFERROR(VLOOKUP(BA307,'[1]ID(当院入力シート)'!E:F,2,FALSE)&\"\",\"\")","v":""},null,null,null,null,null,null,126,null,null,null,"／",null,"／",null,"／",null,null,"／","／",null,null,null,null,null,null,null,null,null,null,null,null,null,null,null,null,null,null,null,null,null,null,null,null,null,null,null,null,null,null,"",""]
[289,{"$f":"IFERROR(VLOOKUP(BA308,'[1]ID(当院入力シート)'!E:F,2,FALSE)&\"\",\"\")","v":""},null,null,null,null,null,null,126,null,null,null,"／",null,"／",null,"／",null,null,"／","／",null,null,null,null,null,null,null,null,null,null,null,null,null,null,null,null,null,null,null,null,null,null,null,null,null,null,null,null,null,null,"",""]
[290,{"$f":"IFERROR(VLOOKUP(BA309,'[1]ID(当院入力シート)'!E:F,2,FALSE)&\"\",\"\")","v":""},null,null,null,null,null,null,126,null,null,null,"／",null,"／",null,"／",null,null,"／","／",null,null,null,null,null,null,null,null,null,null,null,null,null,null,null,null,null,null,null,null,null,null,null,null,null,null,null,null,null,null,"",""]
[291,{"$f":"IFERROR(VLOOKUP(BA310,'[1]ID(当院入力シート)'!E:F,2,FALSE)&\"\",\"\")","v":""},null,null,null,null,null,null,126,null,null,null,"／",null,"／",null,"／",null,null,"／","／",null,null,null,null,null,null,null,null,null,null,null,null,null,null,null,null,null,null,null,null,null,null,null,null,null,null,null,null,null,null,"",""]
[292,{"$f":"IFERROR(VLOOKUP(BA311,'[1]ID(当院入力シート)'!E:F,2,FALSE)&\"\",\"\")","v":""},null,null,null,null,null,null,126,null,null,null,"／",null,"／",null,"／",null,null,"／","／",null,null,null,null,null,null,null,null,null,null,null,null,null,null,null,null,null,null,null,null,null,null,null,null,null,null,null,null,null,null,"",""]
[293,{"$f":"IFERROR(VLOOKUP(BA312,'[1]ID(当院入力シート)'!E:F,2,FALSE)&\"\",\"\")","v":""},null,null,null,null,null,null,126,null,null,null,"／",null,"／",null,"／",null,null,"／","／",null,null,null,null,null,null,null,null,null,null,null,null,null,null,null,null,null,null,null,null,null,null,null,null,null,null,null,null,null,null,"",""]
[294,{"$f":"IFERROR(VLOOKUP(BA313,'[1]ID(当院入力シート)'!E:F,2,FALSE)&\"\",\"\")","v":""},null,null,null,null,null,null,126,null,null,null,"／",null,"／",null,"／",null,null,"／","／",null,null,null,null,null,null,null,null,null,null,null,null,null,null,null,null,null,null,null,null,null,null,null,null,null,null,null,null,null,null,"",""]
[295,{"$f":"IFERROR(VLOOKUP(BA314,'[1]ID(当院入力シート)'!E:F,2,FALSE)&\"\",\"\")","v":""},null,null,null,null,null,null,126,null,null,null,"／",null,"／",null,"／",null,null,"／","／",null,null,null,null,null,null,null,null,null,null,null,null,null,null,null,null,null,null,null,null,null,null,null,null,null,null,null,null,null,null,"",""]
[296,{"$f":"IFERROR(VLOOKUP(BA315,'[1]ID(当院入力シート)'!E:F,2,FALSE)&\"\",\"\")","v":""},null,null,null,null,null,null,126,null,null,null,"／",null,"／",null,"／",null,null,"／","／",null,null,null,null,null,null,null,null,null,null,null,null,null,null,null,null,null,null,null,null,null,null,null,null,null,null,null,null,null,null,"",""]
[297,{"$f":"IFERROR(VLOOKUP(BA316,'[1]ID(当院入力シート)'!E:F,2,FALSE)&\"\",\"\")","v":""},null,null,null,null,null,null,126,null,null,null,"／",null,"／",null,"／",null,null,"／","／",null,null,null,null,null,null,null,null,null,null,null,null,null,null,null,null,null,null,null,null,null,null,null,null,null,null,null,null,null,null,"",""]
[298,{"$f":"IFERROR(VLOOKUP(BA317,'[1]ID(当院入力シート)'!E:F,2,FALSE)&\"\",\"\")","v":""},null,null,null,null,null,null,126,null,null,null,"／",null,"／",null,"／",null,null,"／","／",null,null,null,null,null,null,null,null,null,null,null,null,null,null,null,null,null,null,null,null,null,null,null,null,null,null,null,null,null,null,"",""]
[299,{"$f":"IFERROR(VLOOKUP(BA318,'[1]ID(当院入力シート)'!E:F,2,FALSE)&\"\",\"\")","v":""},null,null,null,null,null,null,126,null,null,null,"／",null,"／",null,"／",null,null,"／","／",null,null,null,null,null,null,null,null,null,null,null,null,null,null,null,null,null,null,null,null,null,null,null,null,null,null,null,null,null,null,"",""]
[300,{"$f":"IFERROR(VLOOKUP(BA319,'[1]ID(当院入力シート)'!E:F,2,FALSE)&\"\",\"\")","v":""},null,null,null,null,null,null,126,null,null,null,"／",null,"／",null,"／",null,null,"／","／",null,null,null,null,null,null,null,null,null,null,null,null,null,null,null,null,null,null,null,null,null,null,null,null,null,null,null,null,null,null,"",""]
[301,{"$f":"IFERROR(VLOOKUP(BA320,'[1]ID(当院入力シート)'!E:F,2,FALSE)&\"\",\"\")","v":""},null,null,null,null,null,null,126,null,null,null,"／",null,"／",null,"／",null,null,"／","／",null,null,null,null,null,null,null,null,null,null,null,null,null,null,null,null,null,null,null,null,null,null,null,null,null,null,null,null,null,null,"",""]
[302,{"$f":"IFERROR(VLOOKUP(BA321,'[1]ID(当院入力シート)'!E:F,2,FALSE)&\"\",\"\")","v":""},null,null,null,null,null,null,126,null,null,null,"／",null,"／",null,"／",null,null,"／","／",null,null,null,null,null,null,null,null,null,null,null,null,null,null,null,null,null,null,null,null,null,null,null,null,null,null,null,null,null,null,"",""]
[303,{"$f":"IFERROR(VLOOKUP(BA322,'[1]ID(当院入力シート)'!E:F,2,FALSE)&\"\",\"\")","v":""},null,null,null,null,null,null,126,null,null,null,"／",null,"／",null,"／",null,null,"／","／",null,null,null,null,null,null,null,null,null,null,null,null,null,null,null,null,null,null,null,null,null,null,null,null,null,null,null,null,null,null,"",""]
[304,{"$f":"IFERROR(VLOOKUP(BA323,'[1]ID(当院入力シート)'!E:F,2,FALSE)&\"\",\"\")","v":""},null,null,null,null,null,null,126,null,null,null,"／",null,"／",null,"／",null,null,"／","／",null,null,null,null,null,null,null,null,null,null,null,null,null,null,null,null,null,null,null,null,null,null,null,null,null,null,null,null,null,null,"",""]
[305,{"$f":"IFERROR(VLOOKUP(BA324,'[1]ID(当院入力シート)'!E:F,2,FALSE)&\"\",\"\")","v":""},null,null,null,null,null,null,126,null,null,null,"／",null,"／",null,"／",null,null,"／","／",null,null,null,null,null,null,null,null,null,null,null,null,null,null,null,null,null,null,null,null,null,null,null,null,null,null,null,null,null,null,"",""]
[306,{"$f":"IFERROR(VLOOKUP(BA325,'[1]ID(当院入力シート)'!E:F,2,FALSE)&\"\",\"\")","v":""},null,null,null,null,null,null,126,null,null,null,"／",null,"／",null,"／",null,null,"／","／",null,null,null,null,null,null,null,null,null,null,null,null,null,null,null,null,null,null,null,null,null,null,null,null,null,null,null,null,null,null,"",""]
[307,{"$f":"IFERROR(VLOOKUP(BA326,'[1]ID(当院入力シート)'!E:F,2,FALSE)&\"\",\"\")","v":""},null,null,null,null,null,null,126,null,null,null,"／",null,"／",null,"／",null,null,"／","／",null,null,null,null,null,null,null,null,null,null,null,null,null,null,null,null,null,null,null,null,null,null,null,null,null,null,null,null,null,null,"",""]
[308,{"$f":"IFERROR(VLOOKUP(BA327,'[1]ID(当院入力シート)'!E:F,2,FALSE)&\"\",\"\")","v":""},null,null,null,null,null,null,126,null,null,null,"／",null,"／",null,"／",null,null,"／","／",null,null,null,null,null,null,null,null,null,null,null,null,null,null,null,null,null,null,null,null,null,null,null,null,null,null,null,null,null,null,"",""]
[309,{"$f":"IFERROR(VLOOKUP(BA328,'[1]ID(当院入力シート)'!E:F,2,FALSE)&\"\",\"\")","v":""},null,null,null,null,null,null,126,null,null,null,"／",null,"／",null,"／",null,null,"／","／",null,null,null,null,null,null,null,null,null,null,null,null,null,null,null,null,null,null,null,null,null,null,null,null,null,null,null,null,null,null,"",""]
[310,{"$f":"IFERROR(VLOOKUP(BA329,'[1]ID(当院入力シート)'!E:F,2,FALSE)&\"\",\"\")","v":""},null,null,null,null,null,null,126,null,null,null,"／",null,"／",null,"／",null,null,"／","／",null,null,null,null,null,null,null,null,null,null,null,null,null,null,null,null,null,null,null,null,null,null,null,null,null,null,null,null,null,null,"",""]
[311,{"$f":"IFERROR(VLOOKUP(BA330,'[1]ID(当院入力シート)'!E:F,2,FALSE)&\"\",\"\")","v":""},null,null,null,null,null,null,126,null,null,null,"／",null,"／",null,"／",null,null,"／","／",null,null,null,null,null,null,null,null,null,null,null,null,null,null,null,null,null,null,null,null,null,null,null,null,null,null,null,null,null,null,"",""]
[312,{"$f":"IFERROR(VLOOKUP(BA331,'[1]ID(当院入力シート)'!E:F,2,FALSE)&\"\",\"\")","v":""},null,null,null,null,null,null,126,null,null,null,"／",null,"／",null,"／",null,null,"／","／",null,null,null,null,null,null,null,null,null,null,null,null,null,null,null,null,null,null,null,null,null,null,null,null,null,null,null,null,null,null,"",""]
[313,{"$f":"IFERROR(VLOOKUP(BA332,'[1]ID(当院入力シート)'!E:F,2,FALSE)&\"\",\"\")","v":""},null,null,null,null,null,null,126,null,null,null,"／",null,"／",null,"／",null,null,"／","／",null,null,null,null,null,null,null,null,null,null,null,null,null,null,null,null,null,null,null,null,null,null,null,null,null,null,null,null,null,null,"",""]
[314,{"$f":"IFERROR(VLOOKUP(BA333,'[1]ID(当院入力シート)'!E:F,2,FALSE)&\"\",\"\")","v":""},null,null,null,null,null,null,126,null,null,null,"／",null,"／",null,"／",null,null,"／","／",null,null,null,null,null,null,null,null,null,null,null,null,null,null,null,null,null,null,null,null,null,null,null,null,null,null,null,null,null,null,"",""]
[315,{"$f":"IFERROR(VLOOKUP(BA334,'[1]ID(当院入力シート)'!E:F,2,FALSE)&\"\",\"\")","v":""},null,null,null,null,null,null,126,null,null,null,"／",null,"／",null,"／",null,null,"／","／",null,null,null,null,null,null,null,null,null,null,null,null,null,null,null,null,null,null,null,null,null,null,null,null,null,null,null,null,null,null,"",""]
[316,{"$f":"IFERROR(VLOOKUP(BA335,'[1]ID(当院入力シート)'!E:F,2,FALSE)&\"\",\"\")","v":""},null,null,null,null,null,null,126,null,null,null,"／",null,"／",null,"／",null,null,"／","／",null,null,null,null,null,null,null,null,null,null,null,null,null,null,null,null,null,null,null,null,null,null,null,null,null,null,null,null,null,null,"",""]
[317,{"$f":"IFERROR(VLOOKUP(BA336,'[1]ID(当院入力シート)'!E:F,2,FALSE)&\"\",\"\")","v":""},null,null,null,null,null,null,126,null,null,null,"／",null,"／",null,"／",null,null,"／","／",null,null,null,null,null,null,null,null,null,null,null,null,null,null,null,null,null,null,null,null,null,null,null,null,null,null,null,null,null,null,"",""]
[318,{"$f":"IFERROR(VLOOKUP(BA337,'[1]ID(当院入力シート)'!E:F,2,FALSE)&\"\",\"\")","v":""},null,null,null,null,null,null,126,null,null,null,"／",null,"／",null,"／",null,null,"／","／",null,null,null,null,null,null,null,null,null,null,null,null,null,null,null,null,null,null,null,null,null,null,null,null,null,null,null,null,null,null,"",""]
[319,{"$f":"IFERROR(VLOOKUP(BA338,'[1]ID(当院入力シート)'!E:F,2,FALSE)&\"\",\"\")","v":""},null,null,null,null,null,null,{"$f":"DATEDIF(H338,$I$15,\"y\")","v":126},null,null,null,"／",null,"／",null,"／",null,null,"／","／",null,null,null,null,null,null,null,null,null,null,null,null,null,null,null,null,null,null,null,null,null,null,null,null,null,null,null,null,null,null,"",""]
[320,{"$f":"IFERROR(VLOOKUP(BA339,'[1]ID(当院入力シート)'!E:F,2,FALSE)&\"\",\"\")","v":""},null,null,null,null,null,null,126,null,null,null,"／",null,"／",null,"／",null,null,"／",{"$f":"TEXT(T339,\"(aaa)\")","v":"／"},null,null,null,null,null,null,null,null,null,null,null,null,null,null,null,null,null,null,null,null,null,null,null,null,null,null,null,null,null,null,"",""]
[321,{"$f":"IFERROR(VLOOKUP(BA340,'[1]ID(当院入力シート)'!E:F,2,FALSE)&\"\",\"\")","v":""},null,null,null,null,null,null,126,null,null,null,"／",null,"／",null,"／",null,null,"／","／",null,null,null,null,null,null,null,null,null,null,null,null,null,null,null,null,null,null,null,null,null,null,null,null,null,null,null,null,null,null,{"$f":"SUBSTITUTE(SUBSTITUTE(E340,\"　\",\"\"),\" \",\"\")","v":""},{"$f":"AZ340&H340","v":""}]
[322,{"$f":"IFERROR(VLOOKUP(BA341,'[1]ID(当院入力シート)'!E:F,2,FALSE)&\"\",\"\")","v":""},null,null,null,null,null,null,126,null,null,null,"／",null,"／",null,"／",null,null,"／","／",null,null,null,null,null,null,null,null,null,null,null,null,null,null,null,null,null,null,null,null,null,null,null,null,null,null,null,null,null,null,"",""]
[{"$f":"ROW()-19","v":323},{"$f":"IFERROR(VLOOKUP(BA342,'[1]ID(当院入力シート)'!E:F,2,FALSE)&\"\",\"\")","v":""},null,null,null,null,null,null,126,null,null,null,"／",null,"／",null,"／",null,null,"／","／",null,null,null,null,null,null,null,null,null,null,null,null,null,null,null,null,null,null,null,null,null,null,null,null,null,null,null,null,null,null,"",""]
[324,{"$f":"IFERROR(VLOOKUP(BA343,'[1]ID(当院入力シート)'!E:F,2,FALSE)&\"\",\"\")","v":""},null,null,null,null,null,null,126,null,null,null,"／",null,"／",null,"／",null,null,"／","／",null,null,null,null,null,null,null,null,null,null,null,null,null,null,null,null,null,null,null,null,null,null,null,null,null,null,null,null,null,null,"",""]
[325,{"$f":"IFERROR(VLOOKUP(BA344,'[1]ID(当院入力シート)'!E:F,2,FALSE)&\"\",\"\")","v":""},null,null,null,null,null,null,126,null,null,null,"／",null,"／",null,"／",null,null,"／","／",null,null,null,null,null,null,null,null,null,null,null,null,null,null,null,null,null,null,null,null,null,null,null,null,null,null,null,null,null,null,"",""]
[326,{"$f":"IFERROR(VLOOKUP(BA345,'[1]ID(当院入力シート)'!E:F,2,FALSE)&\"\",\"\")","v":""},null,null,null,null,null,null,126,null,null,null,"／",null,"／",null,"／",null,null,"／","／",null,null,null,null,null,null,null,null,null,null,null,null,null,null,null,null,null,null,null,null,null,null,null,null,null,null,null,null,null,null,"",""]
[327,{"$f":"IFERROR(VLOOKUP(BA346,'[1]ID(当院入力シート)'!E:F,2,FALSE)&\"\",\"\")","v":""},null,null,null,null,null,null,126,null,null,null,"／",null,"／",null,"／",null,null,"／","／",null,null,null,null,null,null,null,null,null,null,null,null,null,null,null,null,null,null,null,null,null,null,null,null,null,null,null,null,null,null,"",""]
[328,{"$f":"IFERROR(VLOOKUP(BA347,'[1]ID(当院入力シート)'!E:F,2,FALSE)&\"\",\"\")","v":""},null,null,null,null,null,null,126,null,null,null,"／",null,"／",null,"／",null,null,"／","／",null,null,null,null,null,null,null,null,null,null,null,null,null,null,null,null,null,null,null,null,null,null,null,null,null,null,null,null,null,null,"",""]
[329,{"$f":"IFERROR(VLOOKUP(BA348,'[1]ID(当院入力シート)'!E:F,2,FALSE)&\"\",\"\")","v":""},null,null,null,null,null,null,126,null,null,null,"／",null,"／",null,"／",null,null,"／","／",null,null,null,null,null,null,null,null,null,null,null,null,null,null,null,null,null,null,null,null,null,null,null,null,null,null,null,null,null,null,"",""]
[330,{"$f":"IFERROR(VLOOKUP(BA349,'[1]ID(当院入力シート)'!E:F,2,FALSE)&\"\",\"\")","v":""},null,null,null,null,null,null,126,null,null,null,"／",null,"／",null,"／",null,null,"／","／",null,null,null,null,null,null,null,null,null,null,null,null,null,null,null,null,null,null,null,null,null,null,null,null,null,null,null,null,null,null,"",""]
[331,{"$f":"IFERROR(VLOOKUP(BA350,'[1]ID(当院入力シート)'!E:F,2,FALSE)&\"\",\"\")","v":""},null,null,null,null,null,null,126,null,null,null,"／",null,"／",null,"／",null,null,"／","／",null,null,null,null,null,null,null,null,null,null,null,null,null,null,null,null,null,null,null,null,null,null,null,null,null,null,null,null,null,null,"",""]
[332,{"$f":"IFERROR(VLOOKUP(BA351,'[1]ID(当院入力シート)'!E:F,2,FALSE)&\"\",\"\")","v":""},null,null,null,null,null,null,126,null,null,null,"／",null,"／",null,"／",null,null,"／","／",null,null,null,null,null,null,null,null,null,null,null,null,null,null,null,null,null,null,null,null,null,null,null,null,null,null,null,null,null,null,"",""]
[333,{"$f":"IFERROR(VLOOKUP(BA352,'[1]ID(当院入力シート)'!E:F,2,FALSE)&\"\",\"\")","v":""},null,null,null,null,null,null,126,null,null,null,"／",null,"／",null,"／",null,null,"／","／",null,null,null,null,null,null,null,null,null,null,null,null,null,null,null,null,null,null,null,null,null,null,null,null,null,null,null,null,null,null,"",""]
[334,{"$f":"IFERROR(VLOOKUP(BA353,'[1]ID(当院入力シート)'!E:F,2,FALSE)&\"\",\"\")","v":""},null,null,null,null,null,null,126,null,null,null,"／",null,"／",null,"／",null,null,"／","／",null,null,null,null,null,null,null,null,null,null,null,null,null,null,null,null,null,null,null,null,null,null,null,null,null,null,null,null,null,null,"",""]
[335,{"$f":"IFERROR(VLOOKUP(BA354,'[1]ID(当院入力シート)'!E:F,2,FALSE)&\"\",\"\")","v":""},null,null,null,null,null,null,126,null,null,null,"／",null,"／",null,"／",null,null,"／","／",null,null,null,null,null,null,null,null,null,null,null,null,null,null,null,null,null,null,null,null,null,null,null,null,null,null,null,null,null,null,"",""]
[336,{"$f":"IFERROR(VLOOKUP(BA355,'[1]ID(当院入力シート)'!E:F,2,FALSE)&\"\",\"\")","v":""},null,null,null,null,null,null,126,null,null,null,"／",null,"／",null,"／",null,null,"／","／",null,null,null,null,null,null,null,null,null,null,null,null,null,null,null,null,null,null,null,null,null,null,null,null,null,null,null,null,null,null,"",""]
[337,{"$f":"IFERROR(VLOOKUP(BA356,'[1]ID(当院入力シート)'!E:F,2,FALSE)&\"\",\"\")","v":""},null,null,null,null,null,null,126,null,null,null,"／",null,"／",null,"／",null,null,"／","／",null,null,null,null,null,null,null,null,null,null,null,null,null,null,null,null,null,null,null,null,null,null,null,null,null,null,null,null,null,null,"",""]
[338,{"$f":"IFERROR(VLOOKUP(BA357,'[1]ID(当院入力シート)'!E:F,2,FALSE)&\"\",\"\")","v":""},null,null,null,null,null,null,126,null,null,null,"／",null,"／",null,"／",null,null,"／","／",null,null,null,null,null,null,null,null,null,null,null,null,null,null,null,null,null,null,null,null,null,null,null,null,null,null,null,null,null,null,"",""]
[339,{"$f":"IFERROR(VLOOKUP(BA358,'[1]ID(当院入力シート)'!E:F,2,FALSE)&\"\",\"\")","v":""},null,null,null,null,null,null,126,null,null,null,"／",null,"／",null,"／",null,null,"／","／",null,null,null,null,null,null,null,null,null,null,null,null,null,null,null,null,null,null,null,null,null,null,null,null,null,null,null,null,null,null,"",""]
[340,{"$f":"IFERROR(VLOOKUP(BA359,'[1]ID(当院入力シート)'!E:F,2,FALSE)&\"\",\"\")","v":""},null,null,null,null,null,null,126,null,null,null,"／",null,"／",null,"／",null,null,"／","／",null,null,null,null,null,null,null,null,null,null,null,null,null,null,null,null,null,null,null,null,null,null,null,null,null,null,null,null,null,null,"",""]
[341,{"$f":"IFERROR(VLOOKUP(BA360,'[1]ID(当院入力シート)'!E:F,2,FALSE)&\"\",\"\")","v":""},null,null,null,null,null,null,126,null,null,null,"／",null,"／",null,"／",null,null,"／","／",null,null,null,null,null,null,null,null,null,null,null,null,null,null,null,null,null,null,null,null,null,null,null,null,null,null,null,null,null,null,"",""]
[342,{"$f":"IFERROR(VLOOKUP(BA361,'[1]ID(当院入力シート)'!E:F,2,FALSE)&\"\",\"\")","v":""},null,null,null,null,null,null,126,null,null,null,"／",null,"／",null,"／",null,null,"／","／",null,null,null,null,null,null,null,null,null,null,null,null,null,null,null,null,null,null,null,null,null,null,null,null,null,null,null,null,null,null,"",""]
[343,{"$f":"IFERROR(VLOOKUP(BA362,'[1]ID(当院入力シート)'!E:F,2,FALSE)&\"\",\"\")","v":""},null,null,null,null,null,null,126,null,null,null,"／",null,"／",null,"／",null,null,"／","／",null,null,null,null,null,null,null,null,null,null,null,null,null,null,null,null,null,null,null,null,null,null,null,null,null,null,null,null,null,null,"",""]
[344,{"$f":"IFERROR(VLOOKUP(BA363,'[1]ID(当院入力シート)'!E:F,2,FALSE)&\"\",\"\")","v":""},null,null,null,null,null,null,126,null,null,null,"／",null,"／",null,"／",null,null,"／","／",null,null,null,null,null,null,null,null,null,null,null,null,null,null,null,null,null,null,null,null,null,null,null,null,null,null,null,null,null,null,"",""]
[345,{"$f":"IFERROR(VLOOKUP(BA364,'[1]ID(当院入力シート)'!E:F,2,FALSE)&\"\",\"\")","v":""},null,null,null,null,null,null,126,null,null,null,"／",null,"／",null,"／",null,null,"／","／",null,null,null,null,null,null,null,null,null,null,null,null,null,null,null,null,null,null,null,null,null,null,null,null,null,null,null,null,null,null,"",""]
[346,{"$f":"IFERROR(VLOOKUP(BA365,'[1]ID(当院入力シート)'!E:F,2,FALSE)&\"\",\"\")","v":""},null,null,null,null,null,null,126,null,null,null,"／",null,"／",null,"／",null,null,"／","／",null,null,null,null,null,null,null,null,null,null,null,null,null,null,null,null,null,null,null,null,null,null,null,null,null,null,null,null,null,null,"",""]
[347,{"$f":"IFERROR(VLOOKUP(BA366,'[1]ID(当院入力シート)'!E:F,2,FALSE)&\"\",\"\")","v":""},null,null,null,null,null,null,126,null,null,null,"／",null,"／",null,"／",null,null,"／","／",null,null,null,null,null,null,null,null,null,null,null,null,null,null,null,null,null,null,null,null,null,null,null,null,null,null,null,null,null,null,"",""]
[348,{"$f":"IFERROR(VLOOKUP(BA367,'[1]ID(当院入力シート)'!E:F,2,FALSE)&\"\",\"\")","v":""},null,null,null,null,null,null,126,null,null,null,"／",null,"／",null,"／",null,null,"／","／",null,null,null,null,null,null,null,null,null,null,null,null,null,null,null,null,null,null,null,null,null,null,null,null,null,null,null,null,null,null,"",""]
[349,{"$f":"IFERROR(VLOOKUP(BA368,'[1]ID(当院入力シート)'!E:F,2,FALSE)&\"\",\"\")","v":""},null,null,null,null,null,null,126,null,null,null,"／",null,"／",null,"／",null,null,"／","／",null,null,null,null,null,null,null,null,null,null,null,null,null,null,null,null,null,null,null,null,null,null,null,null,null,null,null,null,null,null,"",""]
[350,{"$f":"IFERROR(VLOOKUP(BA369,'[1]ID(当院入力シート)'!E:F,2,FALSE)&\"\",\"\")","v":""},null,null,null,null,null,null,126,null,null,null,"／",null,"／",null,"／",null,null,"／","／",null,null,null,null,null,null,null,null,null,null,null,null,null,null,null,null,null,null,null,null,null,null,null,null,null,null,null,null,null,null,"",""]
[351,{"$f":"IFERROR(VLOOKUP(BA370,'[1]ID(当院入力シート)'!E:F,2,FALSE)&\"\",\"\")","v":""},null,null,null,null,null,null,126,null,null,null,"／",null,"／",null,"／",null,null,"／","／",null,null,null,null,null,null,null,null,null,null,null,null,null,null,null,null,null,null,null,null,null,null,null,null,null,null,null,null,null,null,"",""]
[352,{"$f":"IFERROR(VLOOKUP(BA371,'[1]ID(当院入力シート)'!E:F,2,FALSE)&\"\",\"\")","v":""},null,null,null,null,null,null,126,null,null,null,"／",null,"／",null,"／",null,null,"／","／",null,null,null,null,null,null,null,null,null,null,null,null,null,null,null,null,null,null,null,null,null,null,null,null,null,null,null,null,null,null,"",""]
[353,{"$f":"IFERROR(VLOOKUP(BA372,'[1]ID(当院入力シート)'!E:F,2,FALSE)&\"\",\"\")","v":""},null,null,null,null,null,null,126,null,null,null,"／",null,"／",null,"／",null,null,"／","／",null,null,null,null,null,null,null,null,null,null,null,null,null,null,null,null,null,null,null,null,null,null,null,null,null,null,null,null,null,null,"",""]
[354,{"$f":"IFERROR(VLOOKUP(BA373,'[1]ID(当院入力シート)'!E:F,2,FALSE)&\"\",\"\")","v":""},null,null,null,null,null,null,126,null,null,null,"／",null,"／",null,"／",null,null,"／","／",null,null,null,null,null,null,null,null,null,null,null,null,null,null,null,null,null,null,null,null,null,null,null,null,null,null,null,null,null,null,"",""]
[355,{"$f":"IFERROR(VLOOKUP(BA374,'[1]ID(当院入力シート)'!E:F,2,FALSE)&\"\",\"\")","v":""},null,null,null,null,null,null,126,null,null,null,"／",null,"／",null,"／",null,null,"／","／",null,null,null,null,null,null,null,null,null,null,null,null,null,null,null,null,null,null,null,null,null,null,null,null,null,null,null,null,null,null,"",""]
[356,{"$f":"IFERROR(VLOOKUP(BA375,'[1]ID(当院入力シート)'!E:F,2,FALSE)&\"\",\"\")","v":""},null,null,null,null,null,null,126,null,null,null,"／",null,"／",null,"／",null,null,"／","／",null,null,null,null,null,null,null,null,null,null,null,null,null,null,null,null,null,null,null,null,null,null,null,null,null,null,null,null,null,null,"",""]
[357,{"$f":"IFERROR(VLOOKUP(BA376,'[1]ID(当院入力シート)'!E:F,2,FALSE)&\"\",\"\")","v":""},null,null,null,null,null,null,126,null,null,null,"／",null,"／",null,"／",null,null,"／","／",null,null,null,null,null,null,null,null,null,null,null,null,null,null,null,null,null,null,null,null,null,null,null,null,null,null,null,null,null,null,"",""]
[358,{"$f":"IFERROR(VLOOKUP(BA377,'[1]ID(当院入力シート)'!E:F,2,FALSE)&\"\",\"\")","v":""},null,null,null,null,null,null,126,null,null,null,"／",null,"／",null,"／",null,null,"／","／",null,null,null,null,null,null,null,null,null,null,null,null,null,null,null,null,null,null,null,null,null,null,null,null,null,null,null,null,null,null,"",""]
[359,{"$f":"IFERROR(VLOOKUP(BA378,'[1]ID(当院入力シート)'!E:F,2,FALSE)&\"\",\"\")","v":""},null,null,null,null,null,null,126,null,null,null,"／",null,"／",null,"／",null,null,"／","／",null,null,null,null,null,null,null,null,null,null,null,null,null,null,null,null,null,null,null,null,null,null,null,null,null,null,null,null,null,null,"",""]
[360,{"$f":"IFERROR(VLOOKUP(BA379,'[1]ID(当院入力シート)'!E:F,2,FALSE)&\"\",\"\")","v":""},null,null,null,null,null,null,126,null,null,null,"／",null,"／",null,"／",null,null,"／","／",null,null,null,null,null,null,null,null,null,null,null,null,null,null,null,null,null,null,null,null,null,null,null,null,null,null,null,null,null,null,"",""]
[361,{"$f":"IFERROR(VLOOKUP(BA380,'[1]ID(当院入力シート)'!E:F,2,FALSE)&\"\",\"\")","v":""},null,null,null,null,null,null,126,null,null,null,"／",null,"／",null,"／",null,null,"／","／",null,null,null,null,null,null,null,null,null,null,null,null,null,null,null,null,null,null,null,null,null,null,null,null,null,null,null,null,null,null,"",""]
[362,{"$f":"IFERROR(VLOOKUP(BA381,'[1]ID(当院入力シート)'!E:F,2,FALSE)&\"\",\"\")","v":""},null,null,null,null,null,null,126,null,null,null,"／",null,"／",null,"／",null,null,"／","／",null,null,null,null,null,null,null,null,null,null,null,null,null,null,null,null,null,null,null,null,null,null,null,null,null,null,null,null,null,null,"",""]
[363,{"$f":"IFERROR(VLOOKUP(BA382,'[1]ID(当院入力シート)'!E:F,2,FALSE)&\"\",\"\")","v":""},null,null,null,null,null,null,126,null,null,null,"／",null,"／",null,"／",null,null,"／","／",null,null,null,null,null,null,null,null,null,null,null,null,null,null,null,null,null,null,null,null,null,null,null,null,null,null,null,null,null,null,"",""]
[364,{"$f":"IFERROR(VLOOKUP(BA383,'[1]ID(当院入力シート)'!E:F,2,FALSE)&\"\",\"\")","v":""},null,null,null,null,null,null,126,null,null,null,"／",null,"／",null,"／",null,null,"／","／",null,null,null,null,null,null,null,null,null,null,null,null,null,null,null,null,null,null,null,null,null,null,null,null,null,null,null,null,null,null,"",""]
[365,{"$f":"IFERROR(VLOOKUP(BA384,'[1]ID(当院入力シート)'!E:F,2,FALSE)&\"\",\"\")","v":""},null,null,null,null,null,null,126,null,null,null,"／",null,"／",null,"／",null,null,"／","／",null,null,null,null,null,null,null,null,null,null,null,null,null,null,null,null,null,null,null,null,null,null,null,null,null,null,null,null,null,null,"",""]
[366,{"$f":"IFERROR(VLOOKUP(BA385,'[1]ID(当院入力シート)'!E:F,2,FALSE)&\"\",\"\")","v":""},null,null,null,null,null,null,126,null,null,null,"／",null,"／",null,"／",null,null,"／","／",null,null,null,null,null,null,null,null,null,null,null,null,null,null,null,null,null,null,null,null,null,null,null,null,null,null,null,null,null,null,"",""]
[367,{"$f":"IFERROR(VLOOKUP(BA386,'[1]ID(当院入力シート)'!E:F,2,FALSE)&\"\",\"\")","v":""},null,null,null,null,null,null,126,null,null,null,"／",null,"／",null,"／",null,null,"／","／",null,null,null,null,null,null,null,null,null,null,null,null,null,null,null,null,null,null,null,null,null,null,null,null,null,null,null,null,null,null,"",""]
[368,{"$f":"IFERROR(VLOOKUP(BA387,'[1]ID(当院入力シート)'!E:F,2,FALSE)&\"\",\"\")","v":""},null,null,null,null,null,null,126,null,null,null,"／",null,"／",null,"／",null,null,"／","／",null,null,null,null,null,null,null,null,null,null,null,null,null,null,null,null,null,null,null,null,null,null,null,null,null,null,null,null,null,null,"",""]
[369,{"$f":"IFERROR(VLOOKUP(BA388,'[1]ID(当院入力シート)'!E:F,2,FALSE)&\"\",\"\")","v":""},null,null,null,null,null,null,126,null,null,null,"／",null,"／",null,"／",null,null,"／","／",null,null,null,null,null,null,null,null,null,null,null,null,null,null,null,null,null,null,null,null,null,null,null,null,null,null,null,null,null,null,"",""]
[370,{"$f":"IFERROR(VLOOKUP(BA389,'[1]ID(当院入力シート)'!E:F,2,FALSE)&\"\",\"\")","v":""},null,null,null,null,null,null,126,null,null,null,"／",null,"／",null,"／",null,null,"／","／",null,null,null,null,null,null,null,null,null,null,null,null,null,null,null,null,null,null,null,null,null,null,null,null,null,null,null,null,null,null,"",""]
[371,{"$f":"IFERROR(VLOOKUP(BA390,'[1]ID(当院入力シート)'!E:F,2,FALSE)&\"\",\"\")","v":""},null,null,null,null,null,null,126,null,null,null,"／",null,"／",null,"／",null,null,"／","／",null,null,null,null,null,null,null,null,null,null,null,null,null,null,null,null,null,null,null,null,null,null,null,null,null,null,null,null,null,null,"",""]
[372,{"$f":"IFERROR(VLOOKUP(BA391,'[1]ID(当院入力シート)'!E:F,2,FALSE)&\"\",\"\")","v":""},null,null,null,null,null,null,126,null,null,null,"／",null,"／",null,"／",null,null,"／","／",null,null,null,null,null,null,null,null,null,null,null,null,null,null,null,null,null,null,null,null,null,null,null,null,null,null,null,null,null,null,"",""]
[373,{"$f":"IFERROR(VLOOKUP(BA392,'[1]ID(当院入力シート)'!E:F,2,FALSE)&\"\",\"\")","v":""},null,null,null,null,null,null,126,null,null,null,"／",null,"／",null,"／",null,null,"／","／",null,null,null,null,null,null,null,null,null,null,null,null,null,null,null,null,null,null,null,null,null,null,null,null,null,null,null,null,null,null,"",""]
[374,{"$f":"IFERROR(VLOOKUP(BA393,'[1]ID(当院入力シート)'!E:F,2,FALSE)&\"\",\"\")","v":""},null,null,null,null,null,null,126,null,null,null,"／",null,"／",null,"／",null,null,"／","／",null,null,null,null,null,null,null,null,null,null,null,null,null,null,null,null,null,null,null,null,null,null,null,null,null,null,null,null,null,null,"",""]
[375,{"$f":"IFERROR(VLOOKUP(BA394,'[1]ID(当院入力シート)'!E:F,2,FALSE)&\"\",\"\")","v":""},null,null,null,null,null,null,126,null,null,null,"／",null,"／",null,"／",null,null,"／","／",null,null,null,null,null,null,null,null,null,null,null,null,null,null,null,null,null,null,null,null,null,null,null,null,null,null,null,null,null,null,"",""]
[376,{"$f":"IFERROR(VLOOKUP(BA395,'[1]ID(当院入力シート)'!E:F,2,FALSE)&\"\",\"\")","v":""},null,null,null,null,null,null,126,null,null,null,"／",null,"／",null,"／",null,null,"／","／",null,null,null,null,null,null,null,null,null,null,null,null,null,null,null,null,null,null,null,null,null,null,null,null,null,null,null,null,null,null,"",""]
[377,{"$f":"IFERROR(VLOOKUP(BA396,'[1]ID(当院入力シート)'!E:F,2,FALSE)&\"\",\"\")","v":""},null,null,null,null,null,null,126,null,null,null,"／",null,"／",null,"／",null,null,"／","／",null,null,null,null,null,null,null,null,null,null,null,null,null,null,null,null,null,null,null,null,null,null,null,null,null,null,null,null,null,null,"",""]
[378,{"$f":"IFERROR(VLOOKUP(BA397,'[1]ID(当院入力シート)'!E:F,2,FALSE)&\"\",\"\")","v":""},null,null,null,null,null,null,126,null,null,null,"／",null,"／",null,"／",null,null,"／","／",null,null,null,null,null,null,null,null,null,null,null,null,null,null,null,null,null,null,null,null,null,null,null,null,null,null,null,null,null,null,"",""]
[379,{"$f":"IFERROR(VLOOKUP(BA398,'[1]ID(当院入力シート)'!E:F,2,FALSE)&\"\",\"\")","v":""},null,null,null,null,null,null,126,null,null,null,"／",null,"／",null,"／",null,null,"／","／",null,null,null,null,null,null,null,null,null,null,null,null,null,null,null,null,null,null,null,null,null,null,null,null,null,null,null,null,null,null,"",""]
[380,{"$f":"IFERROR(VLOOKUP(BA399,'[1]ID(当院入力シート)'!E:F,2,FALSE)&\"\",\"\")","v":""},null,null,null,null,null,null,126,null,null,null,"／",null,"／",null,"／",null,null,"／","／",null,null,null,null,null,null,null,null,null,null,null,null,null,null,null,null,null,null,null,null,null,null,null,null,null,null,null,null,null,null,"",""]
[381,{"$f":"IFERROR(VLOOKUP(BA400,'[1]ID(当院入力シート)'!E:F,2,FALSE)&\"\",\"\")","v":""},null,null,null,null,null,null,126,null,null,null,"／",null,"／",null,"／",null,null,"／","／",null,null,null,null,null,null,null,null,null,null,null,null,null,null,null,null,null,null,null,null,null,null,null,null,null,null,null,null,null,null,"",""]
[382,{"$f":"IFERROR(VLOOKUP(BA401,'[1]ID(当院入力シート)'!E:F,2,FALSE)&\"\",\"\")","v":""},null,null,null,null,null,null,126,null,null,null,"／",null,"／",null,"／",null,null,"／","／",null,null,null,null,null,null,null,null,null,null,null,null,null,null,null,null,null,null,null,null,null,null,null,null,null,null,null,null,null,null,"",""]
[383,{"$f":"IFERROR(VLOOKUP(BA402,'[1]ID(当院入力シート)'!E:F,2,FALSE)&\"\",\"\")","v":""},null,null,null,null,null,null,{"$f":"DATEDIF(H402,$I$15,\"y\")","v":126},null,null,null,"／",null,"／",null,"／",null,null,"／","／",null,null,null,null,null,null,null,null,null,null,null,null,null,null,null,null,null,null,null,null,null,null,null,null,null,null,null,null,null,null,"",""]
[384,{"$f":"IFERROR(VLOOKUP(BA403,'[1]ID(当院入力シート)'!E:F,2,FALSE)&\"\",\"\")","v":""},null,null,null,null,null,null,126,null,null,null,"／",null,"／",null,"／",null,null,"／",{"$f":"TEXT(T403,\"(aaa)\")","v":"／"},null,null,null,null,null,null,null,null,null,null,null,null,null,null,null,null,null,null,null,null,null,null,null,null,null,null,null,null,null,null,"",""]
[385,{"$f":"IFERROR(VLOOKUP(BA404,'[1]ID(当院入力シート)'!E:F,2,FALSE)&\"\",\"\")","v":""},null,null,null,null,null,null,126,null,null,null,"／",null,"／",null,"／",null,null,"／","／",null,null,null,null,null,null,null,null,null,null,null,null,null,null,null,null,null,null,null,null,null,null,null,null,null,null,null,null,null,null,{"$f":"SUBSTITUTE(SUBSTITUTE(E404,\"　\",\"\"),\" \",\"\")","v":""},{"$f":"AZ404&H404","v":""}]
[386,{"$f":"IFERROR(VLOOKUP(BA405,'[1]ID(当院入力シート)'!E:F,2,FALSE)&\"\",\"\")","v":""},null,null,null,null,null,null,126,null,null,null,"／",null,"／",null,"／",null,null,"／","／",null,null,null,null,null,null,null,null,null,null,null,null,null,null,null,null,null,null,null,null,null,null,null,null,null,null,null,null,null,null,"",""]
[{"$f":"ROW()-19","v":387},{"$f":"IFERROR(VLOOKUP(BA406,'[1]ID(当院入力シート)'!E:F,2,FALSE)&\"\",\"\")","v":""},null,null,null,null,null,null,126,null,null,null,"／",null,"／",null,"／",null,null,"／","／",null,null,null,null,null,null,null,null,null,null,null,null,null,null,null,null,null,null,null,null,null,null,null,null,null,null,null,null,null,null,"",""]
[388,{"$f":"IFERROR(VLOOKUP(BA407,'[1]ID(当院入力シート)'!E:F,2,FALSE)&\"\",\"\")","v":""},null,null,null,null,null,null,126,null,null,null,"／",null,"／",null,"／",null,null,"／","／",null,null,null,null,null,null,null,null,null,null,null,null,null,null,null,null,null,null,null,null,null,null,null,null,null,null,null,null,null,null,"",""]
[389,{"$f":"IFERROR(VLOOKUP(BA408,'[1]ID(当院入力シート)'!E:F,2,FALSE)&\"\",\"\")","v":""},null,null,null,null,null,null,126,null,null,null,"／",null,"／",null,"／",null,null,"／","／",null,null,null,null,null,null,null,null,null,null,null,null,null,null,null,null,null,null,null,null,null,null,null,null,null,null,null,null,null,null,"",""]
[390,{"$f":"IFERROR(VLOOKUP(BA409,'[1]ID(当院入力シート)'!E:F,2,FALSE)&\"\",\"\")","v":""},null,null,null,null,null,null,126,null,null,null,"／",null,"／",null,"／",null,null,"／","／",null,null,null,null,null,null,null,null,null,null,null,null,null,null,null,null,null,null,null,null,null,null,null,null,null,null,null,null,null,null,"",""]
[391,{"$f":"IFERROR(VLOOKUP(BA410,'[1]ID(当院入力シート)'!E:F,2,FALSE)&\"\",\"\")","v":""},null,null,null,null,null,null,126,null,null,null,"／",null,"／",null,"／",null,null,"／","／",null,null,null,null,null,null,null,null,null,null,null,null,null,null,null,null,null,null,null,null,null,null,null,null,null,null,null,null,null,null,"",""]
[392,{"$f":"IFERROR(VLOOKUP(BA411,'[1]ID(当院入力シート)'!E:F,2,FALSE)&\"\",\"\")","v":""},null,null,null,null,null,null,126,null,null,null,"／",null,"／",null,"／",null,null,"／","／",null,null,null,null,null,null,null,null,null,null,null,null,null,null,null,null,null,null,null,null,null,null,null,null,null,null,null,null,null,null,"",""]
[393,{"$f":"IFERROR(VLOOKUP(BA412,'[1]ID(当院入力シート)'!E:F,2,FALSE)&\"\",\"\")","v":""},null,null,null,null,null,null,126,null,null,null,"／",null,"／",null,"／",null,null,"／","／",null,null,null,null,null,null,null,null,null,null,null,null,null,null,null,null,null,null,null,null,null,null,null,null,null,null,null,null,null,null,"",""]
[394,{"$f":"IFERROR(VLOOKUP(BA413,'[1]ID(当院入力シート)'!E:F,2,FALSE)&\"\",\"\")","v":""},null,null,null,null,null,null,126,null,null,null,"／",null,"／",null,"／",null,null,"／","／",null,null,null,null,null,null,null,null,null,null,null,null,null,null,null,null,null,null,null,null,null,null,null,null,null,null,null,null,null,null,"",""]
[395,{"$f":"IFERROR(VLOOKUP(BA414,'[1]ID(当院入力シート)'!E:F,2,FALSE)&\"\",\"\")","v":""},null,null,null,null,null,null,126,null,null,null,"／",null,"／",null,"／",null,null,"／","／",null,null,null,null,null,null,null,null,null,null,null,null,null,null,null,null,null,null,null,null,null,null,null,null,null,null,null,null,null,null,"",""]
[396,{"$f":"IFERROR(VLOOKUP(BA415,'[1]ID(当院入力シート)'!E:F,2,FALSE)&\"\",\"\")","v":""},null,null,null,null,null,null,126,null,null,null,"／",null,"／",null,"／",null,null,"／","／",null,null,null,null,null,null,null,null,null,null,null,null,null,null,null,null,null,null,null,null,null,null,null,null,null,null,null,null,null,null,"",""]
[397,{"$f":"IFERROR(VLOOKUP(BA416,'[1]ID(当院入力シート)'!E:F,2,FALSE)&\"\",\"\")","v":""},null,null,null,null,null,null,126,null,null,null,"／",null,"／",null,"／",null,null,"／","／",null,null,null,null,null,null,null,null,null,null,null,null,null,null,null,null,null,null,null,null,null,null,null,null,null,null,null,null,null,null,"",""]
[398,{"$f":"IFERROR(VLOOKUP(BA417,'[1]ID(当院入力シート)'!E:F,2,FALSE)&\"\",\"\")","v":""},null,null,null,null,null,null,126,null,null,null,"／",null,"／",null,"／",null,null,"／","／",null,null,null,null,null,null,null,null,null,null,null,null,null,null,null,null,null,null,null,null,null,null,null,null,null,null,null,null,null,null,"",""]
[399,{"$f":"IFERROR(VLOOKUP(BA418,'[1]ID(当院入力シート)'!E:F,2,FALSE)&\"\",\"\")","v":""},null,null,null,null,null,null,126,null,null,null,"／",null,"／",null,"／",null,null,"／","／",null,null,null,null,null,null,null,null,null,null,null,null,null,null,null,null,null,null,null,null,null,null,null,null,null,null,null,null,null,null,"",""]
[400,{"$f":"IFERROR(VLOOKUP(BA419,'[1]ID(当院入力シート)'!E:F,2,FALSE)&\"\",\"\")","v":""},null,null,null,null,null,null,126,null,null,null,"／",null,"／",null,"／",null,null,"／","／",null,null,null,null,null,null,null,null,null,null,null,null,null,null,null,null,null,null,null,null,null,null,null,null,null,null,null,null,null,null,"",""]
[401,{"$f":"IFERROR(VLOOKUP(BA420,'[1]ID(当院入力シート)'!E:F,2,FALSE)&\"\",\"\")","v":""},null,null,null,null,null,null,126,null,null,null,"／",null,"／",null,"／",null,null,"／","／",null,null,null,null,null,null,null,null,null,null,null,null,null,null,null,null,null,null,null,null,null,null,null,null,null,null,null,null,null,null,"",""]
[402,{"$f":"IFERROR(VLOOKUP(BA421,'[1]ID(当院入力シート)'!E:F,2,FALSE)&\"\",\"\")","v":""},null,null,null,null,null,null,126,null,null,null,"／",null,"／",null,"／",null,null,"／","／",null,null,null,null,null,null,null,null,null,null,null,null,null,null,null,null,null,null,null,null,null,null,null,null,null,null,null,null,null,null,"",""]
[403,{"$f":"IFERROR(VLOOKUP(BA422,'[1]ID(当院入力シート)'!E:F,2,FALSE)&\"\",\"\")","v":""},null,null,null,null,null,null,126,null,null,null,"／",null,"／",null,"／",null,null,"／","／",null,null,null,null,null,null,null,null,null,null,null,null,null,null,null,null,null,null,null,null,null,null,null,null,null,null,null,null,null,null,"",""]
[404,{"$f":"IFERROR(VLOOKUP(BA423,'[1]ID(当院入力シート)'!E:F,2,FALSE)&\"\",\"\")","v":""},null,null,null,null,null,null,126,null,null,null,"／",null,"／",null,"／",null,null,"／","／",null,null,null,null,null,null,null,null,null,null,null,null,null,null,null,null,null,null,null,null,null,null,null,null,null,null,null,null,null,null,"",""]
[405,{"$f":"IFERROR(VLOOKUP(BA424,'[1]ID(当院入力シート)'!E:F,2,FALSE)&\"\",\"\")","v":""},null,null,null,null,null,null,126,null,null,null,"／",null,"／",null,"／",null,null,"／","／",null,null,null,null,null,null,null,null,null,null,null,null,null,null,null,null,null,null,null,null,null,null,null,null,null,null,null,null,null,null,"",""]
[406,{"$f":"IFERROR(VLOOKUP(BA425,'[1]ID(当院入力シート)'!E:F,2,FALSE)&\"\",\"\")","v":""},null,null,null,null,null,null,126,null,null,null,"／",null,"／",null,"／",null,null,"／","／",null,null,null,null,null,null,null,null,null,null,null,null,null,null,null,null,null,null,null,null,null,null,null,null,null,null,null,null,null,null,"",""]
[407,{"$f":"IFERROR(VLOOKUP(BA426,'[1]ID(当院入力シート)'!E:F,2,FALSE)&\"\",\"\")","v":""},null,null,null,null,null,null,126,null,null,null,"／",null,"／",null,"／",null,null,"／","／",null,null,null,null,null,null,null,null,null,null,null,null,null,null,null,null,null,null,null,null,null,null,null,null,null,null,null,null,null,null,"",""]
[408,{"$f":"IFERROR(VLOOKUP(BA427,'[1]ID(当院入力シート)'!E:F,2,FALSE)&\"\",\"\")","v":""},null,null,null,null,null,null,126,null,null,null,"／",null,"／",null,"／",null,null,"／","／",null,null,null,null,null,null,null,null,null,null,null,null,null,null,null,null,null,null,null,null,null,null,null,null,null,null,null,null,null,null,"",""]
[409,{"$f":"IFERROR(VLOOKUP(BA428,'[1]ID(当院入力シート)'!E:F,2,FALSE)&\"\",\"\")","v":""},null,null,null,null,null,null,126,null,null,null,"／",null,"／",null,"／",null,null,"／","／",null,null,null,null,null,null,null,null,null,null,null,null,null,null,null,null,null,null,null,null,null,null,null,null,null,null,null,null,null,null,"",""]
[410,{"$f":"IFERROR(VLOOKUP(BA429,'[1]ID(当院入力シート)'!E:F,2,FALSE)&\"\",\"\")","v":""},null,null,null,null,null,null,126,null,null,null,"／",null,"／",null,"／",null,null,"／","／",null,null,null,null,null,null,null,null,null,null,null,null,null,null,null,null,null,null,null,null,null,null,null,null,null,null,null,null,null,null,"",""]
[411,{"$f":"IFERROR(VLOOKUP(BA430,'[1]ID(当院入力シート)'!E:F,2,FALSE)&\"\",\"\")","v":""},null,null,null,null,null,null,126,null,null,null,"／",null,"／",null,"／",null,null,"／","／",null,null,null,null,null,null,null,null,null,null,null,null,null,null,null,null,null,null,null,null,null,null,null,null,null,null,null,null,null,null,"",""]
[412,{"$f":"IFERROR(VLOOKUP(BA431,'[1]ID(当院入力シート)'!E:F,2,FALSE)&\"\",\"\")","v":""},null,null,null,null,null,null,126,null,null,null,"／",null,"／",null,"／",null,null,"／","／",null,null,null,null,null,null,null,null,null,null,null,null,null,null,null,null,null,null,null,null,null,null,null,null,null,null,null,null,null,null,"",""]
[413,{"$f":"IFERROR(VLOOKUP(BA432,'[1]ID(当院入力シート)'!E:F,2,FALSE)&\"\",\"\")","v":""},null,null,null,null,null,null,126,null,null,null,"／",null,"／",null,"／",null,null,"／","／",null,null,null,null,null,null,null,null,null,null,null,null,null,null,null,null,null,null,null,null,null,null,null,null,null,null,null,null,null,null,"",""]
[414,{"$f":"IFERROR(VLOOKUP(BA433,'[1]ID(当院入力シート)'!E:F,2,FALSE)&\"\",\"\")","v":""},null,null,null,null,null,null,126,null,null,null,"／",null,"／",null,"／",null,null,"／","／",null,null,null,null,null,null,null,null,null,null,null,null,null,null,null,null,null,null,null,null,null,null,null,null,null,null,null,null,null,null,"",""]
[415,{"$f":"IFERROR(VLOOKUP(BA434,'[1]ID(当院入力シート)'!E:F,2,FALSE)&\"\",\"\")","v":""},null,null,null,null,null,null,126,null,null,null,"／",null,"／",null,"／",null,null,"／","／",null,null,null,null,null,null,null,null,null,null,null,null,null,null,null,null,null,null,null,null,null,null,null,null,null,null,null,null,null,null,"",""]
[416,{"$f":"IFERROR(VLOOKUP(BA435,'[1]ID(当院入力シート)'!E:F,2,FALSE)&\"\",\"\")","v":""},null,null,null,null,null,null,126,null,null,null,"／",null,"／",null,"／",null,null,"／","／",null,null,null,null,null,null,null,null,null,null,null,null,null,null,null,null,null,null,null,null,null,null,null,null,null,null,null,null,null,null,"",""]
[417,{"$f":"IFERROR(VLOOKUP(BA436,'[1]ID(当院入力シート)'!E:F,2,FALSE)&\"\",\"\")","v":""},null,null,null,null,null,null,126,null,null,null,"／",null,"／",null,"／",null,null,"／","／",null,null,null,null,null,null,null,null,null,null,null,null,null,null,null,null,null,null,null,null,null,null,null,null,null,null,null,null,null,null,"",""]
[418,{"$f":"IFERROR(VLOOKUP(BA437,'[1]ID(当院入力シート)'!E:F,2,FALSE)&\"\",\"\")","v":""},null,null,null,null,null,null,126,null,null,null,"／",null,"／",null,"／",null,null,"／","／",null,null,null,null,null,null,null,null,null,null,null,null,null,null,null,null,null,null,null,null,null,null,null,null,null,null,null,null,null,null,"",""]
[419,{"$f":"IFERROR(VLOOKUP(BA438,'[1]ID(当院入力シート)'!E:F,2,FALSE)&\"\",\"\")","v":""},null,null,null,null,null,null,126,null,null,null,"／",null,"／",null,"／",null,null,"／","／",null,null,null,null,null,null,null,null,null,null,null,null,null,null,null,null,null,null,null,null,null,null,null,null,null,null,null,null,null,null,"",""]
[420,{"$f":"IFERROR(VLOOKUP(BA439,'[1]ID(当院入力シート)'!E:F,2,FALSE)&\"\",\"\")","v":""},null,null,null,null,null,null,126,null,null,null,"／",null,"／",null,"／",null,null,"／","／",null,null,null,null,null,null,null,null,null,null,null,null,null,null,null,null,null,null,null,null,null,null,null,null,null,null,null,null,null,null,"",""]
[421,{"$f":"IFERROR(VLOOKUP(BA440,'[1]ID(当院入力シート)'!E:F,2,FALSE)&\"\",\"\")","v":""},null,null,null,null,null,null,126,null,null,null,"／",null,"／",null,"／",null,null,"／","／",null,null,null,null,null,null,null,null,null,null,null,null,null,null,null,null,null,null,null,null,null,null,null,null,null,null,null,null,null,null,"",""]
[422,{"$f":"IFERROR(VLOOKUP(BA441,'[1]ID(当院入力シート)'!E:F,2,FALSE)&\"\",\"\")","v":""},null,null,null,null,null,null,126,null,null,null,"／",null,"／",null,"／",null,null,"／","／",null,null,null,null,null,null,null,null,null,null,null,null,null,null,null,null,null,null,null,null,null,null,null,null,null,null,null,null,null,null,"",""]
[423,{"$f":"IFERROR(VLOOKUP(BA442,'[1]ID(当院入力シート)'!E:F,2,FALSE)&\"\",\"\")","v":""},null,null,null,null,null,null,126,null,null,null,"／",null,"／",null,"／",null,null,"／","／",null,null,null,null,null,null,null,null,null,null,null,null,null,null,null,null,null,null,null,null,null,null,null,null,null,null,null,null,null,null,"",""]
[424,{"$f":"IFERROR(VLOOKUP(BA443,'[1]ID(当院入力シート)'!E:F,2,FALSE)&\"\",\"\")","v":""},null,null,null,null,null,null,126,null,null,null,"／",null,"／",null,"／",null,null,"／","／",null,null,null,null,null,null,null,null,null,null,null,null,null,null,null,null,null,null,null,null,null,null,null,null,null,null,null,null,null,null,"",""]
[425,{"$f":"IFERROR(VLOOKUP(BA444,'[1]ID(当院入力シート)'!E:F,2,FALSE)&\"\",\"\")","v":""},null,null,null,null,null,null,126,null,null,null,"／",null,"／",null,"／",null,null,"／","／",null,null,null,null,null,null,null,null,null,null,null,null,null,null,null,null,null,null,null,null,null,null,null,null,null,null,null,null,null,null,"",""]
[426,{"$f":"IFERROR(VLOOKUP(BA445,'[1]ID(当院入力シート)'!E:F,2,FALSE)&\"\",\"\")","v":""},null,null,null,null,null,null,126,null,null,null,"／",null,"／",null,"／",null,null,"／","／",null,null,null,null,null,null,null,null,null,null,null,null,null,null,null,null,null,null,null,null,null,null,null,null,null,null,null,null,null,null,"",""]
[427,{"$f":"IFERROR(VLOOKUP(BA446,'[1]ID(当院入力シート)'!E:F,2,FALSE)&\"\",\"\")","v":""},null,null,null,null,null,null,126,null,null,null,"／",null,"／",null,"／",null,null,"／","／",null,null,null,null,null,null,null,null,null,null,null,null,null,null,null,null,null,null,null,null,null,null,null,null,null,null,null,null,null,null,"",""]
[428,{"$f":"IFERROR(VLOOKUP(BA447,'[1]ID(当院入力シート)'!E:F,2,FALSE)&\"\",\"\")","v":""},null,null,null,null,null,null,126,null,null,null,"／",null,"／",null,"／",null,null,"／","／",null,null,null,null,null,null,null,null,null,null,null,null,null,null,null,null,null,null,null,null,null,null,null,null,null,null,null,null,null,null,"",""]
[429,{"$f":"IFERROR(VLOOKUP(BA448,'[1]ID(当院入力シート)'!E:F,2,FALSE)&\"\",\"\")","v":""},null,null,null,null,null,null,126,null,null,null,"／",null,"／",null,"／",null,null,"／","／",null,null,null,null,null,null,null,null,null,null,null,null,null,null,null,null,null,null,null,null,null,null,null,null,null,null,null,null,null,null,"",""]
[430,{"$f":"IFERROR(VLOOKUP(BA449,'[1]ID(当院入力シート)'!E:F,2,FALSE)&\"\",\"\")","v":""},null,null,null,null,null,null,126,null,null,null,"／",null,"／",null,"／",null,null,"／","／",null,null,null,null,null,null,null,null,null,null,null,null,null,null,null,null,null,null,null,null,null,null,null,null,null,null,null,null,null,null,"",""]
[431,{"$f":"IFERROR(VLOOKUP(BA450,'[1]ID(当院入力シート)'!E:F,2,FALSE)&\"\",\"\")","v":""},null,null,null,null,null,null,126,null,null,null,"／",null,"／",null,"／",null,null,"／","／",null,null,null,null,null,null,null,null,null,null,null,null,null,null,null,null,null,null,null,null,null,null,null,null,null,null,null,null,null,null,"",""]
[432,{"$f":"IFERROR(VLOOKUP(BA451,'[1]ID(当院入力シート)'!E:F,2,FALSE)&\"\",\"\")","v":""},null,null,null,null,null,null,126,null,null,null,"／",null,"／",null,"／",null,null,"／","／",null,null,null,null,null,null,null,null,null,null,null,null,null,null,null,null,null,null,null,null,null,null,null,null,null,null,null,null,null,null,"",""]
[433,{"$f":"IFERROR(VLOOKUP(BA452,'[1]ID(当院入力シート)'!E:F,2,FALSE)&\"\",\"\")","v":""},null,null,null,null,null,null,126,null,null,null,"／",null,"／",null,"／",null,null,"／","／",null,null,null,null,null,null,null,null,null,null,null,null,null,null,null,null,null,null,null,null,null,null,null,null,null,null,null,null,null,null,"",""]
[434,{"$f":"IFERROR(VLOOKUP(BA453,'[1]ID(当院入力シート)'!E:F,2,FALSE)&\"\",\"\")","v":""},null,null,null,null,null,null,126,null,null,null,"／",null,"／",null,"／",null,null,"／","／",null,null,null,null,null,null,null,null,null,null,null,null,null,null,null,null,null,null,null,null,null,null,null,null,null,null,null,null,null,null,"",""]
[435,{"$f":"IFERROR(VLOOKUP(BA454,'[1]ID(当院入力シート)'!E:F,2,FALSE)&\"\",\"\")","v":""},null,null,null,null,null,null,126,null,null,null,"／",null,"／",null,"／",null,null,"／","／",null,null,null,null,null,null,null,null,null,null,null,null,null,null,null,null,null,null,null,null,null,null,null,null,null,null,null,null,null,null,"",""]
[436,{"$f":"IFERROR(VLOOKUP(BA455,'[1]ID(当院入力シート)'!E:F,2,FALSE)&\"\",\"\")","v":""},null,null,null,null,null,null,126,null,null,null,"／",null,"／",null,"／",null,null,"／","／",null,null,null,null,null,null,null,null,null,null,null,null,null,null,null,null,null,null,null,null,null,null,null,null,null,null,null,null,null,null,"",""]
[437,{"$f":"IFERROR(VLOOKUP(BA456,'[1]ID(当院入力シート)'!E:F,2,FALSE)&\"\",\"\")","v":""},null,null,null,null,null,null,126,null,null,null,"／",null,"／",null,"／",null,null,"／","／",null,null,null,null,null,null,null,null,null,null,null,null,null,null,null,null,null,null,null,null,null,null,null,null,null,null,null,null,null,null,"",""]
[438,{"$f":"IFERROR(VLOOKUP(BA457,'[1]ID(当院入力シート)'!E:F,2,FALSE)&\"\",\"\")","v":""},null,null,null,null,null,null,126,null,null,null,"／",null,"／",null,"／",null,null,"／","／",null,null,null,null,null,null,null,null,null,null,null,null,null,null,null,null,null,null,null,null,null,null,null,null,null,null,null,null,null,null,"",""]
[439,{"$f":"IFERROR(VLOOKUP(BA458,'[1]ID(当院入力シート)'!E:F,2,FALSE)&\"\",\"\")","v":""},null,null,null,null,null,null,126,null,null,null,"／",null,"／",null,"／",null,null,"／","／",null,null,null,null,null,null,null,null,null,null,null,null,null,null,null,null,null,null,null,null,null,null,null,null,null,null,null,null,null,null,"",""]
[440,{"$f":"IFERROR(VLOOKUP(BA459,'[1]ID(当院入力シート)'!E:F,2,FALSE)&\"\",\"\")","v":""},null,null,null,null,null,null,126,null,null,null,"／",null,"／",null,"／",null,null,"／","／",null,null,null,null,null,null,null,null,null,null,null,null,null,null,null,null,null,null,null,null,null,null,null,null,null,null,null,null,null,null,"",""]
[441,{"$f":"IFERROR(VLOOKUP(BA460,'[1]ID(当院入力シート)'!E:F,2,FALSE)&\"\",\"\")","v":""},null,null,null,null,null,null,126,null,null,null,"／",null,"／",null,"／",null,null,"／","／",null,null,null,null,null,null,null,null,null,null,null,null,null,null,null,null,null,null,null,null,null,null,null,null,null,null,null,null,null,null,"",""]
[442,{"$f":"IFERROR(VLOOKUP(BA461,'[1]ID(当院入力シート)'!E:F,2,FALSE)&\"\",\"\")","v":""},null,null,null,null,null,null,126,null,null,null,"／",null,"／",null,"／",null,null,"／","／",null,null,null,null,null,null,null,null,null,null,null,null,null,null,null,null,null,null,null,null,null,null,null,null,null,null,null,null,null,null,"",""]
[443,{"$f":"IFERROR(VLOOKUP(BA462,'[1]ID(当院入力シート)'!E:F,2,FALSE)&\"\",\"\")","v":""},null,null,null,null,null,null,126,null,null,null,"／",null,"／",null,"／",null,null,"／","／",null,null,null,null,null,null,null,null,null,null,null,null,null,null,null,null,null,null,null,null,null,null,null,null,null,null,null,null,null,null,"",""]
[444,{"$f":"IFERROR(VLOOKUP(BA463,'[1]ID(当院入力シート)'!E:F,2,FALSE)&\"\",\"\")","v":""},null,null,null,null,null,null,126,null,null,null,"／",null,"／",null,"／",null,null,"／","／",null,null,null,null,null,null,null,null,null,null,null,null,null,null,null,null,null,null,null,null,null,null,null,null,null,null,null,null,null,null,"",""]
[445,{"$f":"IFERROR(VLOOKUP(BA464,'[1]ID(当院入力シート)'!E:F,2,FALSE)&\"\",\"\")","v":""},null,null,null,null,null,null,126,null,null,null,"／",null,"／",null,"／",null,null,"／","／",null,null,null,null,null,null,null,null,null,null,null,null,null,null,null,null,null,null,null,null,null,null,null,null,null,null,null,null,null,null,"",""]
[446,{"$f":"IFERROR(VLOOKUP(BA465,'[1]ID(当院入力シート)'!E:F,2,FALSE)&\"\",\"\")","v":""},null,null,null,null,null,null,126,null,null,null,"／",null,"／",null,"／",null,null,"／","／",null,null,null,null,null,null,null,null,null,null,null,null,null,null,null,null,null,null,null,null,null,null,null,null,null,null,null,null,null,null,"",""]
[447,{"$f":"IFERROR(VLOOKUP(BA466,'[1]ID(当院入力シート)'!E:F,2,FALSE)&\"\",\"\")","v":""},null,null,null,null,null,null,{"$f":"DATEDIF(H466,$I$15,\"y\")","v":126},null,null,null,"／",null,"／",null,"／",null,null,"／","／",null,null,null,null,null,null,null,null,null,null,null,null,null,null,null,null,null,null,null,null,null,null,null,null,null,null,null,null,null,null,"",""]
[448,{"$f":"IFERROR(VLOOKUP(BA467,'[1]ID(当院入力シート)'!E:F,2,FALSE)&\"\",\"\")","v":""},null,null,null,null,null,null,126,null,null,null,"／",null,"／",null,"／",null,null,"／",{"$f":"TEXT(T467,\"(aaa)\")","v":"／"},null,null,null,null,null,null,null,null,null,null,null,null,null,null,null,null,null,null,null,null,null,null,null,null,null,null,null,null,null,null,"",""]
[449,{"$f":"IFERROR(VLOOKUP(BA468,'[1]ID(当院入力シート)'!E:F,2,FALSE)&\"\",\"\")","v":""},null,null,null,null,null,null,126,null,null,null,"／",null,"／",null,"／",null,null,"／","／",null,null,null,null,null,null,null,null,null,null,null,null,null,null,null,null,null,null,null,null,null,null,null,null,null,null,null,null,null,null,{"$f":"SUBSTITUTE(SUBSTITUTE(E468,\"　\",\"\"),\" \",\"\")","v":""},{"$f":"AZ468&H468","v":""}]
[450,{"$f":"IFERROR(VLOOKUP(BA469,'[1]ID(当院入力シート)'!E:F,2,FALSE)&\"\",\"\")","v":""},null,null,null,null,null,null,126,null,null,null,"／",null,"／",null,"／",null,null,"／","／",null,null,null,null,null,null,null,null,null,null,null,null,null,null,null,null,null,null,null,null,null,null,null,null,null,null,null,null,null,null,"",""]
[{"$f":"ROW()-19","v":451},{"$f":"IFERROR(VLOOKUP(BA470,'[1]ID(当院入力シート)'!E:F,2,FALSE)&\"\",\"\")","v":""},null,null,null,null,null,null,126,null,null,null,"／",null,"／",null,"／",null,null,"／","／",null,null,null,null,null,null,null,null,null,null,null,null,null,null,null,null,null,null,null,null,null,null,null,null,null,null,null,null,null,null,"",""]
[452,{"$f":"IFERROR(VLOOKUP(BA471,'[1]ID(当院入力シート)'!E:F,2,FALSE)&\"\",\"\")","v":""},null,null,null,null,null,null,126,null,null,null,"／",null,"／",null,"／",null,null,"／","／",null,null,null,null,null,null,null,null,null,null,null,null,null,null,null,null,null,null,null,null,null,null,null,null,null,null,null,null,null,null,"",""]
[453,{"$f":"IFERROR(VLOOKUP(BA472,'[1]ID(当院入力シート)'!E:F,2,FALSE)&\"\",\"\")","v":""},null,null,null,null,null,null,126,null,null,null,"／",null,"／",null,"／",null,null,"／","／",null,null,null,null,null,null,null,null,null,null,null,null,null,null,null,null,null,null,null,null,null,null,null,null,null,null,null,null,null,null,"",""]
[454,{"$f":"IFERROR(VLOOKUP(BA473,'[1]ID(当院入力シート)'!E:F,2,FALSE)&\"\",\"\")","v":""},null,null,null,null,null,null,126,null,null,null,"／",null,"／",null,"／",null,null,"／","／",null,null,null,null,null,null,null,null,null,null,null,null,null,null,null,null,null,null,null,null,null,null,null,null,null,null,null,null,null,null,"",""]
[455,{"$f":"IFERROR(VLOOKUP(BA474,'[1]ID(当院入力シート)'!E:F,2,FALSE)&\"\",\"\")","v":""},null,null,null,null,null,null,126,null,null,null,"／",null,"／",null,"／",null,null,"／","／",null,null,null,null,null,null,null,null,null,null,null,null,null,null,null,null,null,null,null,null,null,null,null,null,null,null,null,null,null,null,"",""]
[456,{"$f":"IFERROR(VLOOKUP(BA475,'[1]ID(当院入力シート)'!E:F,2,FALSE)&\"\",\"\")","v":""},null,null,null,null,null,null,126,null,null,null,"／",null,"／",null,"／",null,null,"／","／",null,null,null,null,null,null,null,null,null,null,null,null,null,null,null,null,null,null,null,null,null,null,null,null,null,null,null,null,null,null,"",""]
[457,{"$f":"IFERROR(VLOOKUP(BA476,'[1]ID(当院入力シート)'!E:F,2,FALSE)&\"\",\"\")","v":""},null,null,null,null,null,null,126,null,null,null,"／",null,"／",null,"／",null,null,"／","／",null,null,null,null,null,null,null,null,null,null,null,null,null,null,null,null,null,null,null,null,null,null,null,null,null,null,null,null,null,null,"",""]
[458,{"$f":"IFERROR(VLOOKUP(BA477,'[1]ID(当院入力シート)'!E:F,2,FALSE)&\"\",\"\")","v":""},null,null,null,null,null,null,126,null,null,null,"／",null,"／",null,"／",null,null,"／","／",null,null,null,null,null,null,null,null,null,null,null,null,null,null,null,null,null,null,null,null,null,null,null,null,null,null,null,null,null,null,"",""]
[459,{"$f":"IFERROR(VLOOKUP(BA478,'[1]ID(当院入力シート)'!E:F,2,FALSE)&\"\",\"\")","v":""},null,null,null,null,null,null,126,null,null,null,"／",null,"／",null,"／",null,null,"／","／",null,null,null,null,null,null,null,null,null,null,null,null,null,null,null,null,null,null,null,null,null,null,null,null,null,null,null,null,null,null,"",""]
[460,{"$f":"IFERROR(VLOOKUP(BA479,'[1]ID(当院入力シート)'!E:F,2,FALSE)&\"\",\"\")","v":""},null,null,null,null,null,null,126,null,null,null,"／",null,"／",null,"／",null,null,"／","／",null,null,null,null,null,null,null,null,null,null,null,null,null,null,null,null,null,null,null,null,null,null,null,null,null,null,null,null,null,null,"",""]
[461,{"$f":"IFERROR(VLOOKUP(BA480,'[1]ID(当院入力シート)'!E:F,2,FALSE)&\"\",\"\")","v":""},null,null,null,null,null,null,126,null,null,null,"／",null,"／",null,"／",null,null,"／","／",null,null,null,null,null,null,null,null,null,null,null,null,null,null,null,null,null,null,null,null,null,null,null,null,null,null,null,null,null,null,"",""]
[462,{"$f":"IFERROR(VLOOKUP(BA481,'[1]ID(当院入力シート)'!E:F,2,FALSE)&\"\",\"\")","v":""},null,null,null,null,null,null,126,null,null,null,"／",null,"／",null,"／",null,null,"／","／",null,null,null,null,null,null,null,null,null,null,null,null,null,null,null,null,null,null,null,null,null,null,null,null,null,null,null,null,null,null,"",""]
[463,{"$f":"IFERROR(VLOOKUP(BA482,'[1]ID(当院入力シート)'!E:F,2,FALSE)&\"\",\"\")","v":""},null,null,null,null,null,null,126,null,null,null,"／",null,"／",null,"／",null,null,"／","／",null,null,null,null,null,null,null,null,null,null,null,null,null,null,null,null,null,null,null,null,null,null,null,null,null,null,null,null,null,null,"",""]
[464,{"$f":"IFERROR(VLOOKUP(BA483,'[1]ID(当院入力シート)'!E:F,2,FALSE)&\"\",\"\")","v":""},null,null,null,null,null,null,126,null,null,null,"／",null,"／",null,"／",null,null,"／","／",null,null,null,null,null,null,null,null,null,null,null,null,null,null,null,null,null,null,null,null,null,null,null,null,null,null,null,null,null,null,"",""]
[465,{"$f":"IFERROR(VLOOKUP(BA484,'[1]ID(当院入力シート)'!E:F,2,FALSE)&\"\",\"\")","v":""},null,null,null,null,null,null,126,null,null,null,"／",null,"／",null,"／",null,null,"／","／",null,null,null,null,null,null,null,null,null,null,null,null,null,null,null,null,null,null,null,null,null,null,null,null,null,null,null,null,null,null,"",""]
[466,{"$f":"IFERROR(VLOOKUP(BA485,'[1]ID(当院入力シート)'!E:F,2,FALSE)&\"\",\"\")","v":""},null,null,null,null,null,null,126,null,null,null,"／",null,"／",null,"／",null,null,"／","／",null,null,null,null,null,null,null,null,null,null,null,null,null,null,null,null,null,null,null,null,null,null,null,null,null,null,null,null,null,null,"",""]
[467,{"$f":"IFERROR(VLOOKUP(BA486,'[1]ID(当院入力シート)'!E:F,2,FALSE)&\"\",\"\")","v":""},null,null,null,null,null,null,126,null,null,null,"／",null,"／",null,"／",null,null,"／","／",null,null,null,null,null,null,null,null,null,null,null,null,null,null,null,null,null,null,null,null,null,null,null,null,null,null,null,null,null,null,"",""]
[468,{"$f":"IFERROR(VLOOKUP(BA487,'[1]ID(当院入力シート)'!E:F,2,FALSE)&\"\",\"\")","v":""},null,null,null,null,null,null,126,null,null,null,"／",null,"／",null,"／",null,null,"／","／",null,null,null,null,null,null,null,null,null,null,null,null,null,null,null,null,null,null,null,null,null,null,null,null,null,null,null,null,null,null,"",""]
[469,{"$f":"IFERROR(VLOOKUP(BA488,'[1]ID(当院入力シート)'!E:F,2,FALSE)&\"\",\"\")","v":""},null,null,null,null,null,null,126,null,null,null,"／",null,"／",null,"／",null,null,"／","／",null,null,null,null,null,null,null,null,null,null,null,null,null,null,null,null,null,null,null,null,null,null,null,null,null,null,null,null,null,null,"",""]
[470,{"$f":"IFERROR(VLOOKUP(BA489,'[1]ID(当院入力シート)'!E:F,2,FALSE)&\"\",\"\")","v":""},null,null,null,null,null,null,126,null,null,null,"／",null,"／",null,"／",null,null,"／","／",null,null,null,null,null,null,null,null,null,null,null,null,null,null,null,null,null,null,null,null,null,null,null,null,null,null,null,null,null,null,"",""]
[471,{"$f":"IFERROR(VLOOKUP(BA490,'[1]ID(当院入力シート)'!E:F,2,FALSE)&\"\",\"\")","v":""},null,null,null,null,null,null,126,null,null,null,"／",null,"／",null,"／",null,null,"／","／",null,null,null,null,null,null,null,null,null,null,null,null,null,null,null,null,null,null,null,null,null,null,null,null,null,null,null,null,null,null,"",""]
[472,{"$f":"IFERROR(VLOOKUP(BA491,'[1]ID(当院入力シート)'!E:F,2,FALSE)&\"\",\"\")","v":""},null,null,null,null,null,null,126,null,null,null,"／",null,"／",null,"／",null,null,"／","／",null,null,null,null,null,null,null,null,null,null,null,null,null,null,null,null,null,null,null,null,null,null,null,null,null,null,null,null,null,null,"",""]
[473,{"$f":"IFERROR(VLOOKUP(BA492,'[1]ID(当院入力シート)'!E:F,2,FALSE)&\"\",\"\")","v":""},null,null,null,null,null,null,126,null,null,null,"／",null,"／",null,"／",null,null,"／","／",null,null,null,null,null,null,null,null,null,null,null,null,null,null,null,null,null,null,null,null,null,null,null,null,null,null,null,null,null,null,"",""]
[474,{"$f":"IFERROR(VLOOKUP(BA493,'[1]ID(当院入力シート)'!E:F,2,FALSE)&\"\",\"\")","v":""},null,null,null,null,null,null,126,null,null,null,"／",null,"／",null,"／",null,null,"／","／",null,null,null,null,null,null,null,null,null,null,null,null,null,null,null,null,null,null,null,null,null,null,null,null,null,null,null,null,null,null,"",""]
[475,{"$f":"IFERROR(VLOOKUP(BA494,'[1]ID(当院入力シート)'!E:F,2,FALSE)&\"\",\"\")","v":""},null,null,null,null,null,null,126,null,null,null,"／",null,"／",null,"／",null,null,"／","／",null,null,null,null,null,null,null,null,null,null,null,null,null,null,null,null,null,null,null,null,null,null,null,null,null,null,null,null,null,null,"",""]
[476,{"$f":"IFERROR(VLOOKUP(BA495,'[1]ID(当院入力シート)'!E:F,2,FALSE)&\"\",\"\")","v":""},null,null,null,null,null,null,126,null,null,null,"／",null,"／",null,"／",null,null,"／","／",null,null,null,null,null,null,null,null,null,null,null,null,null,null,null,null,null,null,null,null,null,null,null,null,null,null,null,null,null,null,"",""]
[477,{"$f":"IFERROR(VLOOKUP(BA496,'[1]ID(当院入力シート)'!E:F,2,FALSE)&\"\",\"\")","v":""},null,null,null,null,null,null,126,null,null,null,"／",null,"／",null,"／",null,null,"／","／",null,null,null,null,null,null,null,null,null,null,null,null,null,null,null,null,null,null,null,null,null,null,null,null,null,null,null,null,null,null,"",""]
[478,{"$f":"IFERROR(VLOOKUP(BA497,'[1]ID(当院入力シート)'!E:F,2,FALSE)&\"\",\"\")","v":""},null,null,null,null,null,null,126,null,null,null,"／",null,"／",null,"／",null,null,"／","／",null,null,null,null,null,null,null,null,null,null,null,null,null,null,null,null,null,null,null,null,null,null,null,null,null,null,null,null,null,null,"",""]
[479,{"$f":"IFERROR(VLOOKUP(BA498,'[1]ID(当院入力シート)'!E:F,2,FALSE)&\"\",\"\")","v":""},null,null,null,null,null,null,126,null,null,null,"／",null,"／",null,"／",null,null,"／","／",null,null,null,null,null,null,null,null,null,null,null,null,null,null,null,null,null,null,null,null,null,null,null,null,null,null,null,null,null,null,"",""]
[480,{"$f":"IFERROR(VLOOKUP(BA499,'[1]ID(当院入力シート)'!E:F,2,FALSE)&\"\",\"\")","v":""},null,null,null,null,null,null,126,null,null,null,"／",null,"／",null,"／",null,null,"／","／",null,null,null,null,null,null,null,null,null,null,null,null,null,null,null,null,null,null,null,null,null,null,null,null,null,null,null,null,null,null,"",""]
[481,{"$f":"IFERROR(VLOOKUP(BA500,'[1]ID(当院入力シート)'!E:F,2,FALSE)&\"\",\"\")","v":""},null,null,null,null,null,null,126,null,null,null,"／",null,"／",null,"／",null,null,"／","／",null,null,null,null,null,null,null,null,null,null,null,null,null,null,null,null,null,null,null,null,null,null,null,null,null,null,null,null,null,null,"",""]
[482,{"$f":"IFERROR(VLOOKUP(BA501,'[1]ID(当院入力シート)'!E:F,2,FALSE)&\"\",\"\")","v":""},null,null,null,null,null,null,126,null,null,null,"／",null,"／",null,"／",null,null,"／","／",null,null,null,null,null,null,null,null,null,null,null,null,null,null,null,null,null,null,null,null,null,null,null,null,null,null,null,null,null,null,"",""]
[483,{"$f":"IFERROR(VLOOKUP(BA502,'[1]ID(当院入力シート)'!E:F,2,FALSE)&\"\",\"\")","v":""},null,null,null,null,null,null,126,null,null,null,"／",null,"／",null,"／",null,null,"／","／",null,null,null,null,null,null,null,null,null,null,null,null,null,null,null,null,null,null,null,null,null,null,null,null,null,null,null,null,null,null,"",""]
[484,{"$f":"IFERROR(VLOOKUP(BA503,'[1]ID(当院入力シート)'!E:F,2,FALSE)&\"\",\"\")","v":""},null,null,null,null,null,null,126,null,null,null,"／",null,"／",null,"／",null,null,"／","／",null,null,null,null,null,null,null,null,null,null,null,null,null,null,null,null,null,null,null,null,null,null,null,null,null,null,null,null,null,null,"",""]
[485,{"$f":"IFERROR(VLOOKUP(BA504,'[1]ID(当院入力シート)'!E:F,2,FALSE)&\"\",\"\")","v":""},null,null,null,null,null,null,126,null,null,null,"／",null,"／",null,"／",null,null,"／","／",null,null,null,null,null,null,null,null,null,null,null,null,null,null,null,null,null,null,null,null,null,null,null,null,null,null,null,null,null,null,"",""]
[486,{"$f":"IFERROR(VLOOKUP(BA505,'[1]ID(当院入力シート)'!E:F,2,FALSE)&\"\",\"\")","v":""},null,null,null,null,null,null,126,null,null,null,"／",null,"／",null,"／",null,null,"／","／",null,null,null,null,null,null,null,null,null,null,null,null,null,null,null,null,null,null,null,null,null,null,null,null,null,null,null,null,null,null,"",""]
[487,{"$f":"IFERROR(VLOOKUP(BA506,'[1]ID(当院入力シート)'!E:F,2,FALSE)&\"\",\"\")","v":""},null,null,null,null,null,null,126,null,null,null,"／",null,"／",null,"／",null,null,"／","／",null,null,null,null,null,null,null,null,null,null,null,null,null,null,null,null,null,null,null,null,null,null,null,null,null,null,null,null,null,null,"",""]
[488,{"$f":"IFERROR(VLOOKUP(BA507,'[1]ID(当院入力シート)'!E:F,2,FALSE)&\"\",\"\")","v":""},null,null,null,null,null,null,126,null,null,null,"／",null,"／",null,"／",null,null,"／","／",null,null,null,null,null,null,null,null,null,null,null,null,null,null,null,null,null,null,null,null,null,null,null,null,null,null,null,null,null,null,"",""]
[489,{"$f":"IFERROR(VLOOKUP(BA508,'[1]ID(当院入力シート)'!E:F,2,FALSE)&\"\",\"\")","v":""},null,null,null,null,null,null,126,null,null,null,"／",null,"／",null,"／",null,null,"／","／",null,null,null,null,null,null,null,null,null,null,null,null,null,null,null,null,null,null,null,null,null,null,null,null,null,null,null,null,null,null,"",""]
[490,{"$f":"IFERROR(VLOOKUP(BA509,'[1]ID(当院入力シート)'!E:F,2,FALSE)&\"\",\"\")","v":""},null,null,null,null,null,null,126,null,null,null,"／",null,"／",null,"／",null,null,"／","／",null,null,null,null,null,null,null,null,null,null,null,null,null,null,null,null,null,null,null,null,null,null,null,null,null,null,null,null,null,null,"",""]
[491,{"$f":"IFERROR(VLOOKUP(BA510,'[1]ID(当院入力シート)'!E:F,2,FALSE)&\"\",\"\")","v":""},null,null,null,null,null,null,126,null,null,null,"／",null,"／",null,"／",null,null,"／","／",null,null,null,null,null,null,null,null,null,null,null,null,null,null,null,null,null,null,null,null,null,null,null,null,null,null,null,null,null,null,"",""]
[492,{"$f":"IFERROR(VLOOKUP(BA511,'[1]ID(当院入力シート)'!E:F,2,FALSE)&\"\",\"\")","v":""},null,null,null,null,null,null,126,null,null,null,"／",null,"／",null,"／",null,null,"／","／",null,null,null,null,null,null,null,null,null,null,null,null,null,null,null,null,null,null,null,null,null,null,null,null,null,null,null,null,null,null,"",""]
[493,{"$f":"IFERROR(VLOOKUP(BA512,'[1]ID(当院入力シート)'!E:F,2,FALSE)&\"\",\"\")","v":""},null,null,null,null,null,null,126,null,null,null,"／",null,"／",null,"／",null,null,"／","／",null,null,null,null,null,null,null,null,null,null,null,null,null,null,null,null,null,null,null,null,null,null,null,null,null,null,null,null,null,null,"",""]
[494,{"$f":"IFERROR(VLOOKUP(BA513,'[1]ID(当院入力シート)'!E:F,2,FALSE)&\"\",\"\")","v":""},null,null,null,null,null,null,126,null,null,null,"／",null,"／",null,"／",null,null,"／","／",null,null,null,null,null,null,null,null,null,null,null,null,null,null,null,null,null,null,null,null,null,null,null,null,null,null,null,null,null,null,"",""]
[495,{"$f":"IFERROR(VLOOKUP(BA514,'[1]ID(当院入力シート)'!E:F,2,FALSE)&\"\",\"\")","v":""},null,null,null,null,null,null,126,null,null,null,"／",null,"／",null,"／",null,null,"／","／",null,null,null,null,null,null,null,null,null,null,null,null,null,null,null,null,null,null,null,null,null,null,null,null,null,null,null,null,null,null,"",""]
[496,{"$f":"IFERROR(VLOOKUP(BA515,'[1]ID(当院入力シート)'!E:F,2,FALSE)&\"\",\"\")","v":""},null,null,null,null,null,null,126,null,null,null,"／",null,"／",null,"／",null,null,"／","／",null,null,null,null,null,null,null,null,null,null,null,null,null,null,null,null,null,null,null,null,null,null,null,null,null,null,null,null,null,null,"",""]
[497,{"$f":"IFERROR(VLOOKUP(BA516,'[1]ID(当院入力シート)'!E:F,2,FALSE)&\"\",\"\")","v":""},null,null,null,null,null,null,126,null,null,null,"／",null,"／",null,"／",null,null,"／","／",null,null,null,null,null,null,null,null,null,null,null,null,null,null,null,null,null,null,null,null,null,null,null,null,null,null,null,null,null,null,"",""]
[498,{"$f":"IFERROR(VLOOKUP(BA517,'[1]ID(当院入力シート)'!E:F,2,FALSE)&\"\",\"\")","v":""},null,null,null,null,null,null,126,null,null,null,"／",null,"／",null,"／",null,null,"／","／",null,null,null,null,null,null,null,null,null,null,null,null,null,null,null,null,null,null,null,null,null,null,null,null,null,null,null,null,null,null,"",""]
[499,{"$f":"IFERROR(VLOOKUP(BA518,'[1]ID(当院入力シート)'!E:F,2,FALSE)&\"\",\"\")","v":""},null,null,null,null,null,null,126,null,null,null,"／",null,"／",null,"／",null,null,"／","／",null,null,null,null,null,null,null,null,null,null,null,null,null,null,null,null,null,null,null,null,null,null,null,null,null,null,null,null,null,null,"",""]
[500,{"$f":"IFERROR(VLOOKUP(BA519,'[1]ID(当院入力シート)'!E:F,2,FALSE)&\"\",\"\")","v":""},null,null,null,null,null,null,126,null,null,null,"／",null,"／",null,"／",null,null,"／","／",null,null,null,null,null,null,null,null,null,null,null,null,null,null,null,null,null,null,null,null,null,null,null,null,null,null,null,null,null,null,"",""]
[null,null,null,null,null,null,null,null,null,null,null,null,null,null,null,null,null,null,null,null,null,null,null,null,null,null,null,null,null,null,null,null,null,null,null,null,null,null,null,null,null,null,null,null,null,null,null,null,null,null,null,"",""]
[null,null,null,null,null,null,null,null,null,null,null,null,null,null,null,null,null,null,null,null,null,null,null,null,null,null,null,null,null,null,null,null,null,null,null,null,null,null,null,null,null,null,null,null,null,null,null,null,null,null,null,"",""]
[null,null,null,null,null,null,null,null,null,null,null,null,null,null,null,null,null,null,null,null,null,null,null,null,null,null,null,null,null,null,null,null,null,null,null,null,null,null,null,null,null,null,null,null,null,null,null,null,null,null,null,"",""]
[null,null,null,null,null,null,null,null,null,null,null,null,null,null,null,null,null,null,null,null,null,null,null,null,null,null,null,null,null,null,null,null,null,null,null,null,null,null,null,null,null,null,null,null,null,null,null,null,null,null,null,"",""]
[null,null,null,null,null,null,null,null,null,null,null,null,null,null,null,null,null,null,null,null,null,null,null,null,null,null,null,null,null,null,null,null,null,null,null,null,null,null,null,null,null,null,null,null,null,null,null,null,null,null,null,"",""]
[null,null,null,null,null,null,null,null,null,null,null,null,null,null,null,null,null,null,null,null,null,null,null,null,null,null,null,null,null,null,null,null,null,null,null,null,null,null,null,null,null,null,null,null,null,null,null,null,null,null,null,"",""]
[null,null,null,null,null,null,null,null,null,null,null,null,null,null,null,null,null,null,null,null,null,null,null,null,null,null,null,null,null,null,null,null,null,null,null,null,null,null,null,null,null,null,null,null,null,null,null,null,null,null,null,"",""]
[null,null,null,null,null,null,null,null,null,null,null,null,null,null,null,null,null,null,null,null,null,null,null,null,null,null,null,null,null,null,null,null,null,null,null,null,null,null,null,null,null,null,null,null,null,null,null,null,null,null,null,"",""]
[null,null,null,null,null,null,null,null,null,null,null,null,null,null,null,null,null,null,null,null,null,null,null,null,null,null,null,null,null,null,null,null,null,null,null,null,null,null,null,null,null,null,null,null,null,null,null,null,null,null,null,"",""]
[null,null,null,null,null,null,null,null,null,null,null,null,null,null,null,null,null,null,null,null,null,null,null,null,null,null,null,null,null,null,null,null,null,null,null,null,null,null,null,null,null,null,null,null,null,null,null,null,null,null,null,{"$f":"SUBSTITUTE(SUBSTITUTE(E529,\"　\",\"\"),\" \",\"\")","v":""}]
[null,null,null,null,null,null,null,null,null,null,null,null,null,null,null,null,null,null,null,null,null,null,null,null,null,null,null,null,null,null,null,null,null,null,null,null,null,null,null,null,null,null,null,null,null,null,null,null,null,null,null,""]
[null,null,null,null,null,null,null,null,null,null,null,null,null,null,null,null,null,null,null,null,null,null,null,null,null,null,null,null,null,null,null,null,null,null,null,null,null,null,null,null,null,null,null,null,null,null,null,null,null,null,null,""]
[null,null,null,null,null,null,null,null,null,null,null,null,null,null,null,null,null,null,null,null,null,null,null,null,null,null,null,null,null,null,null,null,null,null,null,null,null,null,null,null,null,null,null,null,null,null,null,null,null,null,null,""]
[null,null,null,null,null,null,null,null,null,null,null,null,null,null,null,null,null,null,null,null,null,null,null,null,null,null,null,null,null,null,null,null,null,null,null,null,null,null,null,null,null,null,null,null,null,null,null,null,null,null,null,""]
[null,null,null,null,null,null,null,null,null,null,null,null,null,null,null,null,null,null,null,null,null,null,null,null,null,null,null,null,null,null,null,null,null,null,null,null,null,null,null,null,null,null,null,null,null,null,null,null,null,null,null,""]
[null,null,null,null,null,null,null,null,null,null,null,null,null,null,null,null,null,null,null,null,null,null,null,null,null,null,null,null,null,null,null,null,null,null,null,null,null,null,null,null,null,null,null,null,null,null,null,null,null,null,null,""]
[null,null,null,null,null,null,null,null,null,null,null,null,null,null,null,null,null,null,null,null,null,null,null,null,null,null,null,null,null,null,null,null,null,null,null,null,null,null,null,null,null,null,null,null,null,null,null,null,null,null,null,""]
[null,null,null,null,null,null,null,null,null,null,null,null,null,null,null,null,null,null,null,null,null,null,null,null,null,null,null,null,null,null,null,null,null,null,null,null,null,null,null,null,null,null,null,null,null,null,null,null,null,null,null,""]
[null,null,null,null,null,null,null,null,null,null,null,null,null,null,null,null,null,null,null,null,null,null,null,null,null,null,null,null,null,null,null,null,null,null,null,null,null,null,null,null,null,null,null,null,null,null,null,null,null,null,null,""]
[null,null,null,null,null,null,null,null,null,null,null,null,null,null,null,null,null,null,null,null,null,null,null,null,null,null,null,null,null,null,null,null,null,null,null,null,null,null,null,null,null,null,null,null,null,null,null,null,null,null,null,""]
[null,null,null,null,null,null,null,null,null,null,null,null,null,null,null,null,null,null,null,null,null,null,null,null,null,null,null,null,null,null,null,null,null,null,null,null,null,null,null,null,null,null,null,null,null,null,null,null,null,null,null,""]
[null,null,null,null,null,null,null,null,null,null,null,null,null,null,null,null,null,null,null,null,null,null,null,null,null,null,null,null,null,null,null,null,null,null,null,null,null,null,null,null,null,null,null,null,null,null,null,null,null,null,null,""]
[null,null,null,null,null,null,null,null,null,null,null,null,null,null,null,null,null,null,null,null,null,null,null,null,null,null,null,null,null,null,null,null,null,null,null,null,null,null,null,null,null,null,null,null,null,null,null,null,null,null,null,""]
[null,null,null,null,null,null,null,null,null,null,null,null,null,null,null,null,null,null,null,null,null,null,null,null,null,null,null,null,null,null,null,null,null,null,null,null,null,null,null,null,null,null,null,null,null,null,null,null,null,null,null,""]
[null,null,null,null,null,null,null,null,null,null,null,null,null,null,null,null,null,null,null,null,null,null,null,null,null,null,null,null,null,null,null,null,null,null,null,null,null,null,null,null,null,null,null,null,null,null,null,null,null,null,null,""]
[null,null,null,null,null,null,null,null,null,null,null,null,null,null,null,null,null,null,null,null,null,null,null,null,null,null,null,null,null,null,null,null,null,null,null,null,null,null,null,null,null,null,null,null,null,null,null,null,null,null,null,""]
[null,null,null,null,null,null,null,null,null,null,null,null,null,null,null,null,null,null,null,null,null,null,null,null,null,null,null,null,null,null,null,null,null,null,null,null,null,null,null,null,null,null,null,null,null,null,null,null,null,null,null,""]
[null,null,null,null,null,null,null,null,null,null,null,null,null,null,null,null,null,null,null,null,null,null,null,null,null,null,null,null,null,null,null,null,null,null,null,null,null,null,null,null,null,null,null,null,null,null,null,null,null,null,null,""]
[null,null,null,null,null,null,null,null,null,null,null,null,null,null,null,null,null,null,null,null,null,null,null,null,null,null,null,null,null,null,null,null,null,null,null,null,null,null,null,null,null,null,null,null,null,null,null,null,null,null,null,""]
[null,null,null,null,null,null,null,null,null,null,null,null,null,null,null,null,null,null,null,null,null,null,null,null,null,null,null,null,null,null,null,null,null,null,null,null,null,null,null,null,null,null,null,null,null,null,null,null,null,null,null,""]
[null,null,null,null,null,null,null,null,null,null,null,null,null,null,null,null,null,null,null,null,null,null,null,null,null,null,null,null,null,null,null,null,null,null,null,null,null,null,null,null,null,null,null,null,null,null,null,null,null,null,null,""]
[null,null,null,null,null,null,null,null,null,null,null,null,null,null,null,null,null,null,null,null,null,null,null,null,null,null,null,null,null,null,null,null,null,null,null,null,null,null,null,null,null,null,null,null,null,null,null,null,null,null,null,""]
[null,null,null,null,null,null,null,null,null,null,null,null,null,null,null,null,null,null,null,null,null,null,null,null,null,null,null,null,null,null,null,null,null,null,null,null,null,null,null,null,null,null,null,null,null,null,null,null,null,null,null,""]
[null,null,null,null,null,null,null,null,null,null,null,null,null,null,null,null,null,null,null,null,null,null,null,null,null,null,null,null,null,null,null,null,null,null,null,null,null,null,null,null,null,null,null,null,null,null,null,null,null,null,null,""]
[null,null,null,null,null,null,null,null,null,null,null,null,null,null,null,null,null,null,null,null,null,null,null,null,null,null,null,null,null,null,null,null,null,null,null,null,null,null,null,null,null,null,null,null,null,null,null,null,null,null,null,""]
[null,null,null,null,null,null,null,null,null,null,null,null,null,null,null,null,null,null,null,null,null,null,null,null,null,null,null,null,null,null,null,null,null,null,null,null,null,null,null,null,null,null,null,null,null,null,null,null,null,null,null,""]
[null,null,null,null,null,null,null,null,null,null,null,null,null,null,null,null,null,null,null,null,null,null,null,null,null,null,null,null,null,null,null,null,null,null,null,null,null,null,null,null,null,null,null,null,null,null,null,null,null,null,null,""]
[null,null,null,null,null,null,null,null,null,null,null,null,null,null,null,null,null,null,null,null,null,null,null,null,null,null,null,null,null,null,null,null,null,null,null,null,null,null,null,null,null,null,null,null,null,null,null,null,null,null,null,""]
[null,null,null,null,null,null,null,null,null,null,null,null,null,null,null,null,null,null,null,null,null,null,null,null,null,null,null,null,null,null,null,null,null,null,null,null,null,null,null,null,null,null,null,null,null,null,null,null,null,null,null,""]
[null,null,null,null,null,null,null,null,null,null,null,null,null,null,null,null,null,null,null,null,null,null,null,null,null,null,null,null,null,null,null,null,null,null,null,null,null,null,null,null,null,null,null,null,null,null,null,null,null,null,null,""]
[null,null,null,null,null,null,null,null,null,null,null,null,null,null,null,null,null,null,null,null,null,null,null,null,null,null,null,null,null,null,null,null,null,null,null,null,null,null,null,null,null,null,null,null,null,null,null,null,null,null,null,""]
[null,null,null,null,null,null,null,null,null,null,null,null,null,null,null,null,null,null,null,null,null,null,null,null,null,null,null,null,null,null,null,null,null,null,null,null,null,null,null,null,null,null,null,null,null,null,null,null,null,null,null,""]
[null,null,null,null,null,null,null,null,null,null,null,null,null,null,null,null,null,null,null,null,null,null,null,null,null,null,null,null,null,null,null,null,null,null,null,null,null,null,null,null,null,null,null,null,null,null,null,null,null,null,null,""]
[null,null,null,null,null,null,null,null,null,null,null,null,null,null,null,null,null,null,null,null,null,null,null,null,null,null,null,null,null,null,null,null,null,null,null,null,null,null,null,null,null,null,null,null,null,null,null,null,null,null,null,""]
[null,null,null,null,null,null,null,null,null,null,null,null,null,null,null,null,null,null,null,null,null,null,null,null,null,null,null,null,null,null,null,null,null,null,null,null,null,null,null,null,null,null,null,null,null,null,null,null,null,null,null,""]
[null,null,null,null,null,null,null,null,null,null,null,null,null,null,null,null,null,null,null,null,null,null,null,null,null,null,null,null,null,null,null,null,null,null,null,null,null,null,null,null,null,null,null,null,null,null,null,null,null,null,null,""]
[null,null,null,null,null,null,null,null,null,null,null,null,null,null,null,null,null,null,null,null,null,null,null,null,null,null,null,null,null,null,null,null,null,null,null,null,null,null,null,null,null,null,null,null,null,null,null,null,null,null,null,""]
[null,null,null,null,null,null,null,null,null,null,null,null,null,null,null,null,null,null,null,null,null,null,null,null,null,null,null,null,null,null,null,null,null,null,null,null,null,null,null,null,null,null,null,null,null,null,null,null,null,null,null,""]
[null,null,null,null,null,null,null,null,null,null,null,null,null,null,null,null,null,null,null,null,null,null,null,null,null,null,null,null,null,null,null,null,null,null,null,null,null,null,null,null,null,null,null,null,null,null,null,null,null,null,null,""]
[null,null,null,null,null,null,null,null,null,null,null,null,null,null,null,null,null,null,null,null,null,null,null,null,null,null,null,null,null,null,null,null,null,null,null,null,null,null,null,null,null,null,null,null,null,null,null,null,null,null,null,{"$f":"SUBSTITUTE(SUBSTITUTE(E569,\"　\",\"\"),\" \",\"\")","v":""}]
[null,null,null,null,null,null,null,null,null,null,null,null,null,null,null,null,null,null,null,null,null,null,null,null,null,null,null,null,null,null,null,null,null,null,null,null,null,null,null,null,null,null,null,null,null,null,null,null,null,null,null,""]
[null,null,null,null,null,null,null,null,null,null,null,null,null,null,null,null,null,null,null,null,null,null,null,null,null,null,null,null,null,null,null,null,null,null,null,null,null,null,null,null,null,null,null,null,null,null,null,null,null,null,null,""]
[null,null,null,null,null,null,null,null,null,null,null,null,null,null,null,null,null,null,null,null,null,null,null,null,null,null,null,null,null,null,null,null,null,null,null,null,null,null,null,null,null,null,null,null,null,null,null,null,null,null,null,""]
[null,null,null,null,null,null,null,null,null,null,null,null,null,null,null,null,null,null,null,null,null,null,null,null,null,null,null,null,null,null,null,null,null,null,null,null,null,null,null,null,null,null,null,null,null,null,null,null,null,null,null,""]
[null,null,null,null,null,null,null,null,null,null,null,null,null,null,null,null,null,null,null,null,null,null,null,null,null,null,null,null,null,null,null,null,null,null,null,null,null,null,null,null,null,null,null,null,null,null,null,null,null,null,null,""]
[null,null,null,null,null,null,null,null,null,null,null,null,null,null,null,null,null,null,null,null,null,null,null,null,null,null,null,null,null,null,null,null,null,null,null,null,null,null,null,null,null,null,null,null,null,null,null,null,null,null,null,""]
[null,null,null,null,null,null,null,null,null,null,null,null,null,null,null,null,null,null,null,null,null,null,null,null,null,null,null,null,null,null,null,null,null,null,null,null,null,null,null,null,null,null,null,null,null,null,null,null,null,null,null,""]
[null,null,null,null,null,null,null,null,null,null,null,null,null,null,null,null,null,null,null,null,null,null,null,null,null,null,null,null,null,null,null,null,null,null,null,null,null,null,null,null,null,null,null,null,null,null,null,null,null,null,null,""]
[null,null,null,null,null,null,null,null,null,null,null,null,null,null,null,null,null,null,null,null,null,null,null,null,null,null,null,null,null,null,null,null,null,null,null,null,null,null,null,null,null,null,null,null,null,null,null,null,null,null,null,""]
[null,null,null,null,null,null,null,null,null,null,null,null,null,null,null,null,null,null,null,null,null,null,null,null,null,null,null,null,null,null,null,null,null,null,null,null,null,null,null,null,null,null,null,null,null,null,null,null,null,null,null,""]
[null,null,null,null,null,null,null,null,null,null,null,null,null,null,null,null,null,null,null,null,null,null,null,null,null,null,null,null,null,null,null,null,null,null,null,null,null,null,null,null,null,null,null,null,null,null,null,null,null,null,null,""]
[null,null,null,null,null,null,null,null,null,null,null,null,null,null,null,null,null,null,null,null,null,null,null,null,null,null,null,null,null,null,null,null,null,null,null,null,null,null,null,null,null,null,null,null,null,null,null,null,null,null,null,""]
[null,null,null,null,null,null,null,null,null,null,null,null,null,null,null,null,null,null,null,null,null,null,null,null,null,null,null,null,null,null,null,null,null,null,null,null,null,null,null,null,null,null,null,null,null,null,null,null,null,null,null,""]
[null,null,null,null,null,null,null,null,null,null,null,null,null,null,null,null,null,null,null,null,null,null,null,null,null,null,null,null,null,null,null,null,null,null,null,null,null,null,null,null,null,null,null,null,null,null,null,null,null,null,null,""]
[null,null,null,null,null,null,null,null,null,null,null,null,null,null,null,null,null,null,null,null,null,null,null,null,null,null,null,null,null,null,null,null,null,null,null,null,null,null,null,null,null,null,null,null,null,null,null,null,null,null,null,""]
[null,null,null,null,null,null,null,null,null,null,null,null,null,null,null,null,null,null,null,null,null,null,null,null,null,null,null,null,null,null,null,null,null,null,null,null,null,null,null,null,null,null,null,null,null,null,null,null,null,null,null,""]
[null,null,null,null,null,null,null,null,null,null,null,null,null,null,null,null,null,null,null,null,null,null,null,null,null,null,null,null,null,null,null,null,null,null,null,null,null,null,null,null,null,null,null,null,null,null,null,null,null,null,null,""]
[null,null,null,null,null,null,null,null,null,null,null,null,null,null,null,null,null,null,null,null,null,null,null,null,null,null,null,null,null,null,null,null,null,null,null,null,null,null,null,null,null,null,null,null,null,null,null,null,null,null,null,""]
[null,null,null,null,null,null,null,null,null,null,null,null,null,null,null,null,null,null,null,null,null,null,null,null,null,null,null,null,null,null,null,null,null,null,null,null,null,null,null,null,null,null,null,null,null,null,null,null,null,null,null,""]
[null,null,null,null,null,null,null,null,null,null,null,null,null,null,null,null,null,null,null,null,null,null,null,null,null,null,null,null,null,null,null,null,null,null,null,null,null,null,null,null,null,null,null,null,null,null,null,null,null,null,null,""]
[null,null,null,null,null,null,null,null,null,null,null,null,null,null,null,null,null,null,null,null,null,null,null,null,null,null,null,null,null,null,null,null,null,null,null,null,null,null,null,null,null,null,null,null,null,null,null,null,null,null,null,""]
[null,null,null,null,null,null,null,null,null,null,null,null,null,null,null,null,null,null,null,null,null,null,null,null,null,null,null,null,null,null,null,null,null,null,null,null,null,null,null,null,null,null,null,null,null,null,null,null,null,null,null,""]
[null,null,null,null,null,null,null,null,null,null,null,null,null,null,null,null,null,null,null,null,null,null,null,null,null,null,null,null,null,null,null,null,null,null,null,null,null,null,null,null,null,null,null,null,null,null,null,null,null,null,null,""]
[null,null,null,null,null,null,null,null,null,null,null,null,null,null,null,null,null,null,null,null,null,null,null,null,null,null,null,null,null,null,null,null,null,null,null,null,null,null,null,null,null,null,null,null,null,null,null,null,null,null,null,""]
[null,null,null,null,null,null,null,null,null,null,null,null,null,null,null,null,null,null,null,null,null,null,null,null,null,null,null,null,null,null,null,null,null,null,null,null,null,null,null,null,null,null,null,null,null,null,null,null,null,null,null,""]
[null,null,null,null,null,null,null,null,null,null,null,null,null,null,null,null,null,null,null,null,null,null,null,null,null,null,null,null,null,null,null,null,null,null,null,null,null,null,null,null,null,null,null,null,null,null,null,null,null,null,null,""]
[null,null,null,null,null,null,null,null,null,null,null,null,null,null,null,null,null,null,null,null,null,null,null,null,null,null,null,null,null,null,null,null,null,null,null,null,null,null,null,null,null,null,null,null,null,null,null,null,null,null,null,""]
[null,null,null,null,null,null,null,null,null,null,null,null,null,null,null,null,null,null,null,null,null,null,null,null,null,null,null,null,null,null,null,null,null,null,null,null,null,null,null,null,null,null,null,null,null,null,null,null,null,null,null,""]
[null,null,null,null,null,null,null,null,null,null,null,null,null,null,null,null,null,null,null,null,null,null,null,null,null,null,null,null,null,null,null,null,null,null,null,null,null,null,null,null,null,null,null,null,null,null,null,null,null,null,null,""]
[null,null,null,null,null,null,null,null,null,null,null,null,null,null,null,null,null,null,null,null,null,null,null,null,null,null,null,null,null,null,null,null,null,null,null,null,null,null,null,null,null,null,null,null,null,null,null,null,null,null,null,""]
[null,null,null,null,null,null,null,null,null,null,null,null,null,null,null,null,null,null,null,null,null,null,null,null,null,null,null,null,null,null,null,null,null,null,null,null,null,null,null,null,null,null,null,null,null,null,null,null,null,null,null,""]
[null,null,null,null,null,null,null,null,null,null,null,null,null,null,null,null,null,null,null,null,null,null,null,null,null,null,null,null,null,null,null,null,null,null,null,null,null,null,null,null,null,null,null,null,null,null,null,null,null,null,null,""]
[null,null,null,null,null,null,null,null,null,null,null,null,null,null,null,null,null,null,null,null,null,null,null,null,null,null,null,null,null,null,null,null,null,null,null,null,null,null,null,null,null,null,null,null,null,null,null,null,null,null,null,""]
[null,null,null,null,null,null,null,null,null,null,null,null,null,null,null,null,null,null,null,null,null,null,null,null,null,null,null,null,null,null,null,null,null,null,null,null,null,null,null,null,null,null,null,null,null,null,null,null,null,null,null,""]
[null,null,null,null,null,null,null,null,null,null,null,null,null,null,null,null,null,null,null,null,null,null,null,null,null,null,null,null,null,null,null,null,null,null,null,null,null,null,null,null,null,null,null,null,null,null,null,null,null,null,null,""]
[null,null,null,null,null,null,null,null,null,null,null,null,null,null,null,null,null,null,null,null,null,null,null,null,null,null,null,null,null,null,null,null,null,null,null,null,null,null,null,null,null,null,null,null,null,null,null,null,null,null,null,""]
[null,null,null,null,null,null,null,null,null,null,null,null,null,null,null,null,null,null,null,null,null,null,null,null,null,null,null,null,null,null,null,null,null,null,null,null,null,null,null,null,null,null,null,null,null,null,null,null,null,null,null,""]
[null,null,null,null,null,null,null,null,null,null,null,null,null,null,null,null,null,null,null,null,null,null,null,null,null,null,null,null,null,null,null,null,null,null,null,null,null,null,null,null,null,null,null,null,null,null,null,null,null,null,null,""]
[null,null,null,null,null,null,null,null,null,null,null,null,null,null,null,null,null,null,null,null,null,null,null,null,null,null,null,null,null,null,null,null,null,null,null,null,null,null,null,null,null,null,null,null,null,null,null,null,null,null,null,""]
[null,null,null,null,null,null,null,null,null,null,null,null,null,null,null,null,null,null,null,null,null,null,null,null,null,null,null,null,null,null,null,null,null,null,null,null,null,null,null,null,null,null,null,null,null,null,null,null,null,null,null,""]
[null,null,null,null,null,null,null,null,null,null,null,null,null,null,null,null,null,null,null,null,null,null,null,null,null,null,null,null,null,null,null,null,null,null,null,null,null,null,null,null,null,null,null,null,null,null,null,null,null,null,null,""]
[null,null,null,null,null,null,null,null,null,null,null,null,null,null,null,null,null,null,null,null,null,null,null,null,null,null,null,null,null,null,null,null,null,null,null,null,null,null,null,null,null,null,null,null,null,null,null,null,null,null,null,""]
[null,null,null,null,null,null,null,null,null,null,null,null,null,null,null,null,null,null,null,null,null,null,null,null,null,null,null,null,null,null,null,null,null,null,null,null,null,null,null,null,null,null,null,null,null,null,null,null,null,null,null,""]
[null,null,null,null,null,null,null,null,null,null,null,null,null,null,null,null,null,null,null,null,null,null,null,null,null,null,null,null,null,null,null,null,null,null,null,null,null,null,null,null,null,null,null,null,null,null,null,null,null,null,null,""]
[null,null,null,null,null,null,null,null,null,null,null,null,null,null,null,null,null,null,null,null,null,null,null,null,null,null,null,null,null,null,null,null,null,null,null,null,null,null,null,null,null,null,null,null,null,null,null,null,null,null,null,""]
[null,null,null,null,null,null,null,null,null,null,null,null,null,null,null,null,null,null,null,null,null,null,null,null,null,null,null,null,null,null,null,null,null,null,null,null,null,null,null,null,null,null,null,null,null,null,null,null,null,null,null,""]
[null,null,null,null,null,null,null,null,null,null,null,null,null,null,null,null,null,null,null,null,null,null,null,null,null,null,null,null,null,null,null,null,null,null,null,null,null,null,null,null,null,null,null,null,null,null,null,null,null,null,null,""]
[null,null,null,null,null,null,null,null,null,null,null,null,null,null,null,null,null,null,null,null,null,null,null,null,null,null,null,null,null,null,null,null,null,null,null,null,null,null,null,null,null,null,null,null,null,null,null,null,null,null,null,""]
[null,null,null,null,null,null,null,null,null,null,null,null,null,null,null,null,null,null,null,null,null,null,null,null,null,null,null,null,null,null,null,null,null,null,null,null,null,null,null,null,null,null,null,null,null,null,null,null,null,null,null,""]
[null,null,null,null,null,null,null,null,null,null,null,null,null,null,null,null,null,null,null,null,null,null,null,null,null,null,null,null,null,null,null,null,null,null,null,null,null,null,null,null,null,null,null,null,null,null,null,null,null,null,null,""]
[null,null,null,null,null,null,null,null,null,null,null,null,null,null,null,null,null,null,null,null,null,null,null,null,null,null,null,null,null,null,null,null,null,null,null,null,null,null,null,null,null,null,null,null,null,null,null,null,null,null,null,""]
[null,null,null,null,null,null,null,null,null,null,null,null,null,null,null,null,null,null,null,null,null,null,null,null,null,null,null,null,null,null,null,null,null,null,null,null,null,null,null,null,null,null,null,null,null,null,null,null,null,null,null,""]
[null,null,null,null,null,null,null,null,null,null,null,null,null,null,null,null,null,null,null,null,null,null,null,null,null,null,null,null,null,null,null,null,null,null,null,null,null,null,null,null,null,null,null,null,null,null,null,null,null,null,null,""]
[null,null,null,null,null,null,null,null,null,null,null,null,null,null,null,null,null,null,null,null,null,null,null,null,null,null,null,null,null,null,null,null,null,null,null,null,null,null,null,null,null,null,null,null,null,null,null,null,null,null,null,""]
[null,null,null,null,null,null,null,null,null,null,null,null,null,null,null,null,null,null,null,null,null,null,null,null,null,null,null,null,null,null,null,null,null,null,null,null,null,null,null,null,null,null,null,null,null,null,null,null,null,null,null,""]
[null,null,null,null,null,null,null,null,null,null,null,null,null,null,null,null,null,null,null,null,null,null,null,null,null,null,null,null,null,null,null,null,null,null,null,null,null,null,null,null,null,null,null,null,null,null,null,null,null,null,null,""]
[null,null,null,null,null,null,null,null,null,null,null,null,null,null,null,null,null,null,null,null,null,null,null,null,null,null,null,null,null,null,null,null,null,null,null,null,null,null,null,null,null,null,null,null,null,null,null,null,null,null,null,""]
[null,null,null,null,null,null,null,null,null,null,null,null,null,null,null,null,null,null,null,null,null,null,null,null,null,null,null,null,null,null,null,null,null,null,null,null,null,null,null,null,null,null,null,null,null,null,null,null,null,null,null,""]
[null,null,null,null,null,null,null,null,null,null,null,null,null,null,null,null,null,null,null,null,null,null,null,null,null,null,null,null,null,null,null,null,null,null,null,null,null,null,null,null,null,null,null,null,null,null,null,null,null,null,null,""]
[null,null,null,null,null,null,null,null,null,null,null,null,null,null,null,null,null,null,null,null,null,null,null,null,null,null,null,null,null,null,null,null,null,null,null,null,null,null,null,null,null,null,null,null,null,null,null,null,null,null,null,""]
[null,null,null,null,null,null,null,null,null,null,null,null,null,null,null,null,null,null,null,null,null,null,null,null,null,null,null,null,null,null,null,null,null,null,null,null,null,null,null,null,null,null,null,null,null,null,null,null,null,null,null,""]
[null,null,null,null,null,null,null,null,null,null,null,null,null,null,null,null,null,null,null,null,null,null,null,null,null,null,null,null,null,null,null,null,null,null,null,null,null,null,null,null,null,null,null,null,null,null,null,null,null,null,null,""]
[null,null,null,null,null,null,null,null,null,null,null,null,null,null,null,null,null,null,null,null,null,null,null,null,null,null,null,null,null,null,null,null,null,null,null,null,null,null,null,null,null,null,null,null,null,null,null,null,null,null,null,""]
[null,null,null,null,null,null,null,null,null,null,null,null,null,null,null,null,null,null,null,null,null,null,null,null,null,null,null,null,null,null,null,null,null,null,null,null,null,null,null,null,null,null,null,null,null,null,null,null,null,null,null,{"$f":"SUBSTITUTE(SUBSTITUTE(E633,\"　\",\"\"),\" \",\"\")","v":""}]
[null,null,null,null,null,null,null,null,null,null,null,null,null,null,null,null,null,null,null,null,null,null,null,null,null,null,null,null,null,null,null,null,null,null,null,null,null,null,null,null,null,null,null,null,null,null,null,null,null,null,null,""]
[null,null,null,null,null,null,null,null,null,null,null,null,null,null,null,null,null,null,null,null,null,null,null,null,null,null,null,null,null,null,null,null,null,null,null,null,null,null,null,null,null,null,null,null,null,null,null,null,null,null,null,""]
[null,null,null,null,null,null,null,null,null,null,null,null,null,null,null,null,null,null,null,null,null,null,null,null,null,null,null,null,null,null,null,null,null,null,null,null,null,null,null,null,null,null,null,null,null,null,null,null,null,null,null,""]
[null,null,null,null,null,null,null,null,null,null,null,null,null,null,null,null,null,null,null,null,null,null,null,null,null,null,null,null,null,null,null,null,null,null,null,null,null,null,null,null,null,null,null,null,null,null,null,null,null,null,null,""]
[null,null,null,null,null,null,null,null,null,null,null,null,null,null,null,null,null,null,null,null,null,null,null,null,null,null,null,null,null,null,null,null,null,null,null,null,null,null,null,null,null,null,null,null,null,null,null,null,null,null,null,""]
[null,null,null,null,null,null,null,null,null,null,null,null,null,null,null,null,null,null,null,null,null,null,null,null,null,null,null,null,null,null,null,null,null,null,null,null,null,null,null,null,null,null,null,null,null,null,null,null,null,null,null,""]
[null,null,null,null,null,null,null,null,null,null,null,null,null,null,null,null,null,null,null,null,null,null,null,null,null,null,null,null,null,null,null,null,null,null,null,null,null,null,null,null,null,null,null,null,null,null,null,null,null,null,null,""]
[null,null,null,null,null,null,null,null,null,null,null,null,null,null,null,null,null,null,null,null,null,null,null,null,null,null,null,null,null,null,null,null,null,null,null,null,null,null,null,null,null,null,null,null,null,null,null,null,null,null,null,""]
[null,null,null,null,null,null,null,null,null,null,null,null,null,null,null,null,null,null,null,null,null,null,null,null,null,null,null,null,null,null,null,null,null,null,null,null,null,null,null,null,null,null,null,null,null,null,null,null,null,null,null,""]
[null,null,null,null,null,null,null,null,null,null,null,null,null,null,null,null,null,null,null,null,null,null,null,null,null,null,null,null,null,null,null,null,null,null,null,null,null,null,null,null,null,null,null,null,null,null,null,null,null,null,null,""]
[null,null,null,null,null,null,null,null,null,null,null,null,null,null,null,null,null,null,null,null,null,null,null,null,null,null,null,null,null,null,null,null,null,null,null,null,null,null,null,null,null,null,null,null,null,null,null,null,null,null,null,""]
[null,null,null,null,null,null,null,null,null,null,null,null,null,null,null,null,null,null,null,null,null,null,null,null,null,null,null,null,null,null,null,null,null,null,null,null,null,null,null,null,null,null,null,null,null,null,null,null,null,null,null,""]
[null,null,null,null,null,null,null,null,null,null,null,null,null,null,null,null,null,null,null,null,null,null,null,null,null,null,null,null,null,null,null,null,null,null,null,null,null,null,null,null,null,null,null,null,null,null,null,null,null,null,null,""]
[null,null,null,null,null,null,null,null,null,null,null,null,null,null,null,null,null,null,null,null,null,null,null,null,null,null,null,null,null,null,null,null,null,null,null,null,null,null,null,null,null,null,null,null,null,null,null,null,null,null,null,""]
[null,null,null,null,null,null,null,null,null,null,null,null,null,null,null,null,null,null,null,null,null,null,null,null,null,null,null,null,null,null,null,null,null,null,null,null,null,null,null,null,null,null,null,null,null,null,null,null,null,null,null,""]
[null,null,null,null,null,null,null,null,null,null,null,null,null,null,null,null,null,null,null,null,null,null,null,null,null,null,null,null,null,null,null,null,null,null,null,null,null,null,null,null,null,null,null,null,null,null,null,null,null,null,null,""]
[null,null,null,null,null,null,null,null,null,null,null,null,null,null,null,null,null,null,null,null,null,null,null,null,null,null,null,null,null,null,null,null,null,null,null,null,null,null,null,null,null,null,null,null,null,null,null,null,null,null,null,""]
[null,null,null,null,null,null,null,null,null,null,null,null,null,null,null,null,null,null,null,null,null,null,null,null,null,null,null,null,null,null,null,null,null,null,null,null,null,null,null,null,null,null,null,null,null,null,null,null,null,null,null,""]
[null,null,null,null,null,null,null,null,null,null,null,null,null,null,null,null,null,null,null,null,null,null,null,null,null,null,null,null,null,null,null,null,null,null,null,null,null,null,null,null,null,null,null,null,null,null,null,null,null,null,null,""]
[null,null,null,null,null,null,null,null,null,null,null,null,null,null,null,null,null,null,null,null,null,null,null,null,null,null,null,null,null,null,null,null,null,null,null,null,null,null,null,null,null,null,null,null,null,null,null,null,null,null,null,""]
[null,null,null,null,null,null,null,null,null,null,null,null,null,null,null,null,null,null,null,null,null,null,null,null,null,null,null,null,null,null,null,null,null,null,null,null,null,null,null,null,null,null,null,null,null,null,null,null,null,null,null,""]
[null,null,null,null,null,null,null,null,null,null,null,null,null,null,null,null,null,null,null,null,null,null,null,null,null,null,null,null,null,null,null,null,null,null,null,null,null,null,null,null,null,null,null,null,null,null,null,null,null,null,null,""]
[null,null,null,null,null,null,null,null,null,null,null,null,null,null,null,null,null,null,null,null,null,null,null,null,null,null,null,null,null,null,null,null,null,null,null,null,null,null,null,null,null,null,null,null,null,null,null,null,null,null,null,""]
[null,null,null,null,null,null,null,null,null,null,null,null,null,null,null,null,null,null,null,null,null,null,null,null,null,null,null,null,null,null,null,null,null,null,null,null,null,null,null,null,null,null,null,null,null,null,null,null,null,null,null,""]
[null,null,null,null,null,null,null,null,null,null,null,null,null,null,null,null,null,null,null,null,null,null,null,null,null,null,null,null,null,null,null,null,null,null,null,null,null,null,null,null,null,null,null,null,null,null,null,null,null,null,null,""]
[null,null,null,null,null,null,null,null,null,null,null,null,null,null,null,null,null,null,null,null,null,null,null,null,null,null,null,null,null,null,null,null,null,null,null,null,null,null,null,null,null,null,null,null,null,null,null,null,null,null,null,""]
[null,null,null,null,null,null,null,null,null,null,null,null,null,null,null,null,null,null,null,null,null,null,null,null,null,null,null,null,null,null,null,null,null,null,null,null,null,null,null,null,null,null,null,null,null,null,null,null,null,null,null,""]
[null,null,null,null,null,null,null,null,null,null,null,null,null,null,null,null,null,null,null,null,null,null,null,null,null,null,null,null,null,null,null,null,null,null,null,null,null,null,null,null,null,null,null,null,null,null,null,null,null,null,null,""]
[null,null,null,null,null,null,null,null,null,null,null,null,null,null,null,null,null,null,null,null,null,null,null,null,null,null,null,null,null,null,null,null,null,null,null,null,null,null,null,null,null,null,null,null,null,null,null,null,null,null,null,""]
[null,null,null,null,null,null,null,null,null,null,null,null,null,null,null,null,null,null,null,null,null,null,null,null,null,null,null,null,null,null,null,null,null,null,null,null,null,null,null,null,null,null,null,null,null,null,null,null,null,null,null,""]
[null,null,null,null,null,null,null,null,null,null,null,null,null,null,null,null,null,null,null,null,null,null,null,null,null,null,null,null,null,null,null,null,null,null,null,null,null,null,null,null,null,null,null,null,null,null,null,null,null,null,null,""]
[null,null,null,null,null,null,null,null,null,null,null,null,null,null,null,null,null,null,null,null,null,null,null,null,null,null,null,null,null,null,null,null,null,null,null,null,null,null,null,null,null,null,null,null,null,null,null,null,null,null,null,""]
[null,null,null,null,null,null,null,null,null,null,null,null,null,null,null,null,null,null,null,null,null,null,null,null,null,null,null,null,null,null,null,null,null,null,null,null,null,null,null,null,null,null,null,null,null,null,null,null,null,null,null,""]
[null,null,null,null,null,null,null,null,null,null,null,null,null,null,null,null,null,null,null,null,null,null,null,null,null,null,null,null,null,null,null,null,null,null,null,null,null,null,null,null,null,null,null,null,null,null,null,null,null,null,null,""]
[null,null,null,null,null,null,null,null,null,null,null,null,null,null,null,null,null,null,null,null,null,null,null,null,null,null,null,null,null,null,null,null,null,null,null,null,null,null,null,null,null,null,null,null,null,null,null,null,null,null,null,""]
[null,null,null,null,null,null,null,null,null,null,null,null,null,null,null,null,null,null,null,null,null,null,null,null,null,null,null,null,null,null,null,null,null,null,null,null,null,null,null,null,null,null,null,null,null,null,null,null,null,null,null,""]
[null,null,null,null,null,null,null,null,null,null,null,null,null,null,null,null,null,null,null,null,null,null,null,null,null,null,null,null,null,null,null,null,null,null,null,null,null,null,null,null,null,null,null,null,null,null,null,null,null,null,null,""]
[null,null,null,null,null,null,null,null,null,null,null,null,null,null,null,null,null,null,null,null,null,null,null,null,null,null,null,null,null,null,null,null,null,null,null,null,null,null,null,null,null,null,null,null,null,null,null,null,null,null,null,""]
[null,null,null,null,null,null,null,null,null,null,null,null,null,null,null,null,null,null,null,null,null,null,null,null,null,null,null,null,null,null,null,null,null,null,null,null,null,null,null,null,null,null,null,null,null,null,null,null,null,null,null,""]
[null,null,null,null,null,null,null,null,null,null,null,null,null,null,null,null,null,null,null,null,null,null,null,null,null,null,null,null,null,null,null,null,null,null,null,null,null,null,null,null,null,null,null,null,null,null,null,null,null,null,null,""]
[null,null,null,null,null,null,null,null,null,null,null,null,null,null,null,null,null,null,null,null,null,null,null,null,null,null,null,null,null,null,null,null,null,null,null,null,null,null,null,null,null,null,null,null,null,null,null,null,null,null,null,""]
[null,null,null,null,null,null,null,null,null,null,null,null,null,null,null,null,null,null,null,null,null,null,null,null,null,null,null,null,null,null,null,null,null,null,null,null,null,null,null,null,null,null,null,null,null,null,null,null,null,null,null,""]
[null,null,null,null,null,null,null,null,null,null,null,null,null,null,null,null,null,null,null,null,null,null,null,null,null,null,null,null,null,null,null,null,null,null,null,null,null,null,null,null,null,null,null,null,null,null,null,null,null,null,null,""]
[null,null,null,null,null,null,null,null,null,null,null,null,null,null,null,null,null,null,null,null,null,null,null,null,null,null,null,null,null,null,null,null,null,null,null,null,null,null,null,null,null,null,null,null,null,null,null,null,null,null,null,""]
[null,null,null,null,null,null,null,null,null,null,null,null,null,null,null,null,null,null,null,null,null,null,null,null,null,null,null,null,null,null,null,null,null,null,null,null,null,null,null,null,null,null,null,null,null,null,null,null,null,null,null,""]
[null,null,null,null,null,null,null,null,null,null,null,null,null,null,null,null,null,null,null,null,null,null,null,null,null,null,null,null,null,null,null,null,null,null,null,null,null,null,null,null,null,null,null,null,null,null,null,null,null,null,null,""]
[null,null,null,null,null,null,null,null,null,null,null,null,null,null,null,null,null,null,null,null,null,null,null,null,null,null,null,null,null,null,null,null,null,null,null,null,null,null,null,null,null,null,null,null,null,null,null,null,null,null,null,""]
[null,null,null,null,null,null,null,null,null,null,null,null,null,null,null,null,null,null,null,null,null,null,null,null,null,null,null,null,null,null,null,null,null,null,null,null,null,null,null,null,null,null,null,null,null,null,null,null,null,null,null,""]
[null,null,null,null,null,null,null,null,null,null,null,null,null,null,null,null,null,null,null,null,null,null,null,null,null,null,null,null,null,null,null,null,null,null,null,null,null,null,null,null,null,null,null,null,null,null,null,null,null,null,null,""]
[null,null,null,null,null,null,null,null,null,null,null,null,null,null,null,null,null,null,null,null,null,null,null,null,null,null,null,null,null,null,null,null,null,null,null,null,null,null,null,null,null,null,null,null,null,null,null,null,null,null,null,""]
[null,null,null,null,null,null,null,null,null,null,null,null,null,null,null,null,null,null,null,null,null,null,null,null,null,null,null,null,null,null,null,null,null,null,null,null,null,null,null,null,null,null,null,null,null,null,null,null,null,null,null,""]
[null,null,null,null,null,null,null,null,null,null,null,null,null,null,null,null,null,null,null,null,null,null,null,null,null,null,null,null,null,null,null,null,null,null,null,null,null,null,null,null,null,null,null,null,null,null,null,null,null,null,null,""]
[null,null,null,null,null,null,null,null,null,null,null,null,null,null,null,null,null,null,null,null,null,null,null,null,null,null,null,null,null,null,null,null,null,null,null,null,null,null,null,null,null,null,null,null,null,null,null,null,null,null,null,""]
[null,null,null,null,null,null,null,null,null,null,null,null,null,null,null,null,null,null,null,null,null,null,null,null,null,null,null,null,null,null,null,null,null,null,null,null,null,null,null,null,null,null,null,null,null,null,null,null,null,null,null,""]
[null,null,null,null,null,null,null,null,null,null,null,null,null,null,null,null,null,null,null,null,null,null,null,null,null,null,null,null,null,null,null,null,null,null,null,null,null,null,null,null,null,null,null,null,null,null,null,null,null,null,null,""]
[null,null,null,null,null,null,null,null,null,null,null,null,null,null,null,null,null,null,null,null,null,null,null,null,null,null,null,null,null,null,null,null,null,null,null,null,null,null,null,null,null,null,null,null,null,null,null,null,null,null,null,""]
[null,null,null,null,null,null,null,null,null,null,null,null,null,null,null,null,null,null,null,null,null,null,null,null,null,null,null,null,null,null,null,null,null,null,null,null,null,null,null,null,null,null,null,null,null,null,null,null,null,null,null,""]
[null,null,null,null,null,null,null,null,null,null,null,null,null,null,null,null,null,null,null,null,null,null,null,null,null,null,null,null,null,null,null,null,null,null,null,null,null,null,null,null,null,null,null,null,null,null,null,null,null,null,null,""]
[null,null,null,null,null,null,null,null,null,null,null,null,null,null,null,null,null,null,null,null,null,null,null,null,null,null,null,null,null,null,null,null,null,null,null,null,null,null,null,null,null,null,null,null,null,null,null,null,null,null,null,""]
[null,null,null,null,null,null,null,null,null,null,null,null,null,null,null,null,null,null,null,null,null,null,null,null,null,null,null,null,null,null,null,null,null,null,null,null,null,null,null,null,null,null,null,null,null,null,null,null,null,null,null,""]
[null,null,null,null,null,null,null,null,null,null,null,null,null,null,null,null,null,null,null,null,null,null,null,null,null,null,null,null,null,null,null,null,null,null,null,null,null,null,null,null,null,null,null,null,null,null,null,null,null,null,null,""]
[null,null,null,null,null,null,null,null,null,null,null,null,null,null,null,null,null,null,null,null,null,null,null,null,null,null,null,null,null,null,null,null,null,null,null,null,null,null,null,null,null,null,null,null,null,null,null,null,null,null,null,""]
[null,null,null,null,null,null,null,null,null,null,null,null,null,null,null,null,null,null,null,null,null,null,null,null,null,null,null,null,null,null,null,null,null,null,null,null,null,null,null,null,null,null,null,null,null,null,null,null,null,null,null,""]
[null,null,null,null,null,null,null,null,null,null,null,null,null,null,null,null,null,null,null,null,null,null,null,null,null,null,null,null,null,null,null,null,null,null,null,null,null,null,null,null,null,null,null,null,null,null,null,null,null,null,null,{"$f":"SUBSTITUTE(SUBSTITUTE(E697,\"　\",\"\"),\" \",\"\")","v":""}]
[null,null,null,null,null,null,null,null,null,null,null,null,null,null,null,null,null,null,null,null,null,null,null,null,null,null,null,null,null,null,null,null,null,null,null,null,null,null,null,null,null,null,null,null,null,null,null,null,null,null,null,""]
[null,null,null,null,null,null,null,null,null,null,null,null,null,null,null,null,null,null,null,null,null,null,null,null,null,null,null,null,null,null,null,null,null,null,null,null,null,null,null,null,null,null,null,null,null,null,null,null,null,null,null,""]
[null,null,null,null,null,null,null,null,null,null,null,null,null,null,null,null,null,null,null,null,null,null,null,null,null,null,null,null,null,null,null,null,null,null,null,null,null,null,null,null,null,null,null,null,null,null,null,null,null,null,null,""]
[null,null,null,null,null,null,null,null,null,null,null,null,null,null,null,null,null,null,null,null,null,null,null,null,null,null,null,null,null,null,null,null,null,null,null,null,null,null,null,null,null,null,null,null,null,null,null,null,null,null,null,""]
[null,null,null,null,null,null,null,null,null,null,null,null,null,null,null,null,null,null,null,null,null,null,null,null,null,null,null,null,null,null,null,null,null,null,null,null,null,null,null,null,null,null,null,null,null,null,null,null,null,null,null,""]
[null,null,null,null,null,null,null,null,null,null,null,null,null,null,null,null,null,null,null,null,null,null,null,null,null,null,null,null,null,null,null,null,null,null,null,null,null,null,null,null,null,null,null,null,null,null,null,null,null,null,null,""]
[null,null,null,null,null,null,null,null,null,null,null,null,null,null,null,null,null,null,null,null,null,null,null,null,null,null,null,null,null,null,null,null,null,null,null,null,null,null,null,null,null,null,null,null,null,null,null,null,null,null,null,""]
[null,null,null,null,null,null,null,null,null,null,null,null,null,null,null,null,null,null,null,null,null,null,null,null,null,null,null,null,null,null,null,null,null,null,null,null,null,null,null,null,null,null,null,null,null,null,null,null,null,null,null,""]
[null,null,null,null,null,null,null,null,null,null,null,null,null,null,null,null,null,null,null,null,null,null,null,null,null,null,null,null,null,null,null,null,null,null,null,null,null,null,null,null,null,null,null,null,null,null,null,null,null,null,null,""]
[null,null,null,null,null,null,null,null,null,null,null,null,null,null,null,null,null,null,null,null,null,null,null,null,null,null,null,null,null,null,null,null,null,null,null,null,null,null,null,null,null,null,null,null,null,null,null,null,null,null,null,""]
[null,null,null,null,null,null,null,null,null,null,null,null,null,null,null,null,null,null,null,null,null,null,null,null,null,null,null,null,null,null,null,null,null,null,null,null,null,null,null,null,null,null,null,null,null,null,null,null,null,null,null,""]
[null,null,null,null,null,null,null,null,null,null,null,null,null,null,null,null,null,null,null,null,null,null,null,null,null,null,null,null,null,null,null,null,null,null,null,null,null,null,null,null,null,null,null,null,null,null,null,null,null,null,null,""]
[null,null,null,null,null,null,null,null,null,null,null,null,null,null,null,null,null,null,null,null,null,null,null,null,null,null,null,null,null,null,null,null,null,null,null,null,null,null,null,null,null,null,null,null,null,null,null,null,null,null,null,""]
[null,null,null,null,null,null,null,null,null,null,null,null,null,null,null,null,null,null,null,null,null,null,null,null,null,null,null,null,null,null,null,null,null,null,null,null,null,null,null,null,null,null,null,null,null,null,null,null,null,null,null,""]
[null,null,null,null,null,null,null,null,null,null,null,null,null,null,null,null,null,null,null,null,null,null,null,null,null,null,null,null,null,null,null,null,null,null,null,null,null,null,null,null,null,null,null,null,null,null,null,null,null,null,null,""]
[null,null,null,null,null,null,null,null,null,null,null,null,null,null,null,null,null,null,null,null,null,null,null,null,null,null,null,null,null,null,null,null,null,null,null,null,null,null,null,null,null,null,null,null,null,null,null,null,null,null,null,""]
[null,null,null,null,null,null,null,null,null,null,null,null,null,null,null,null,null,null,null,null,null,null,null,null,null,null,null,null,null,null,null,null,null,null,null,null,null,null,null,null,null,null,null,null,null,null,null,null,null,null,null,""]
[null,null,null,null,null,null,null,null,null,null,null,null,null,null,null,null,null,null,null,null,null,null,null,null,null,null,null,null,null,null,null,null,null,null,null,null,null,null,null,null,null,null,null,null,null,null,null,null,null,null,null,""]
[null,null,null,null,null,null,null,null,null,null,null,null,null,null,null,null,null,null,null,null,null,null,null,null,null,null,null,null,null,null,null,null,null,null,null,null,null,null,null,null,null,null,null,null,null,null,null,null,null,null,null,""]
[null,null,null,null,null,null,null,null,null,null,null,null,null,null,null,null,null,null,null,null,null,null,null,null,null,null,null,null,null,null,null,null,null,null,null,null,null,null,null,null,null,null,null,null,null,null,null,null,null,null,null,""]
[null,null,null,null,null,null,null,null,null,null,null,null,null,null,null,null,null,null,null,null,null,null,null,null,null,null,null,null,null,null,null,null,null,null,null,null,null,null,null,null,null,null,null,null,null,null,null,null,null,null,null,""]
[null,null,null,null,null,null,null,null,null,null,null,null,null,null,null,null,null,null,null,null,null,null,null,null,null,null,null,null,null,null,null,null,null,null,null,null,null,null,null,null,null,null,null,null,null,null,null,null,null,null,null,""]
[null,null,null,null,null,null,null,null,null,null,null,null,null,null,null,null,null,null,null,null,null,null,null,null,null,null,null,null,null,null,null,null,null,null,null,null,null,null,null,null,null,null,null,null,null,null,null,null,null,null,null,""]
[null,null,null,null,null,null,null,null,null,null,null,null,null,null,null,null,null,null,null,null,null,null,null,null,null,null,null,null,null,null,null,null,null,null,null,null,null,null,null,null,null,null,null,null,null,null,null,null,null,null,null,""]
[null,null,null,null,null,null,null,null,null,null,null,null,null,null,null,null,null,null,null,null,null,null,null,null,null,null,null,null,null,null,null,null,null,null,null,null,null,null,null,null,null,null,null,null,null,null,null,null,null,null,null,""]
[null,null,null,null,null,null,null,null,null,null,null,null,null,null,null,null,null,null,null,null,null,null,null,null,null,null,null,null,null,null,null,null,null,null,null,null,null,null,null,null,null,null,null,null,null,null,null,null,null,null,null,""]
[null,null,null,null,null,null,null,null,null,null,null,null,null,null,null,null,null,null,null,null,null,null,null,null,null,null,null,null,null,null,null,null,null,null,null,null,null,null,null,null,null,null,null,null,null,null,null,null,null,null,null,""]
[null,null,null,null,null,null,null,null,null,null,null,null,null,null,null,null,null,null,null,null,null,null,null,null,null,null,null,null,null,null,null,null,null,null,null,null,null,null,null,null,null,null,null,null,null,null,null,null,null,null,null,""]
[null,null,null,null,null,null,null,null,null,null,null,null,null,null,null,null,null,null,null,null,null,null,null,null,null,null,null,null,null,null,null,null,null,null,null,null,null,null,null,null,null,null,null,null,null,null,null,null,null,null,null,""]
[null,null,null,null,null,null,null,null,null,null,null,null,null,null,null,null,null,null,null,null,null,null,null,null,null,null,null,null,null,null,null,null,null,null,null,null,null,null,null,null,null,null,null,null,null,null,null,null,null,null,null,""]
[null,null,null,null,null,null,null,null,null,null,null,null,null,null,null,null,null,null,null,null,null,null,null,null,null,null,null,null,null,null,null,null,null,null,null,null,null,null,null,null,null,null,null,null,null,null,null,null,null,null,null,""]
[null,null,null,null,null,null,null,null,null,null,null,null,null,null,null,null,null,null,null,null,null,null,null,null,null,null,null,null,null,null,null,null,null,null,null,null,null,null,null,null,null,null,null,null,null,null,null,null,null,null,null,""]
[null,null,null,null,null,null,null,null,null,null,null,null,null,null,null,null,null,null,null,null,null,null,null,null,null,null,null,null,null,null,null,null,null,null,null,null,null,null,null,null,null,null,null,null,null,null,null,null,null,null,null,""]
[null,null,null,null,null,null,null,null,null,null,null,null,null,null,null,null,null,null,null,null,null,null,null,null,null,null,null,null,null,null,null,null,null,null,null,null,null,null,null,null,null,null,null,null,null,null,null,null,null,null,null,""]
[null,null,null,null,null,null,null,null,null,null,null,null,null,null,null,null,null,null,null,null,null,null,null,null,null,null,null,null,null,null,null,null,null,null,null,null,null,null,null,null,null,null,null,null,null,null,null,null,null,null,null,""]
[null,null,null,null,null,null,null,null,null,null,null,null,null,null,null,null,null,null,null,null,null,null,null,null,null,null,null,null,null,null,null,null,null,null,null,null,null,null,null,null,null,null,null,null,null,null,null,null,null,null,null,""]
[null,null,null,null,null,null,null,null,null,null,null,null,null,null,null,null,null,null,null,null,null,null,null,null,null,null,null,null,null,null,null,null,null,null,null,null,null,null,null,null,null,null,null,null,null,null,null,null,null,null,null,""]
[null,null,null,null,null,null,null,null,null,null,null,null,null,null,null,null,null,null,null,null,null,null,null,null,null,null,null,null,null,null,null,null,null,null,null,null,null,null,null,null,null,null,null,null,null,null,null,null,null,null,null,""]
[null,null,null,null,null,null,null,null,null,null,null,null,null,null,null,null,null,null,null,null,null,null,null,null,null,null,null,null,null,null,null,null,null,null,null,null,null,null,null,null,null,null,null,null,null,null,null,null,null,null,null,""]
[null,null,null,null,null,null,null,null,null,null,null,null,null,null,null,null,null,null,null,null,null,null,null,null,null,null,null,null,null,null,null,null,null,null,null,null,null,null,null,null,null,null,null,null,null,null,null,null,null,null,null,""]
[null,null,null,null,null,null,null,null,null,null,null,null,null,null,null,null,null,null,null,null,null,null,null,null,null,null,null,null,null,null,null,null,null,null,null,null,null,null,null,null,null,null,null,null,null,null,null,null,null,null,null,""]
[null,null,null,null,null,null,null,null,null,null,null,null,null,null,null,null,null,null,null,null,null,null,null,null,null,null,null,null,null,null,null,null,null,null,null,null,null,null,null,null,null,null,null,null,null,null,null,null,null,null,null,""]
[null,null,null,null,null,null,null,null,null,null,null,null,null,null,null,null,null,null,null,null,null,null,null,null,null,null,null,null,null,null,null,null,null,null,null,null,null,null,null,null,null,null,null,null,null,null,null,null,null,null,null,""]
[null,null,null,null,null,null,null,null,null,null,null,null,null,null,null,null,null,null,null,null,null,null,null,null,null,null,null,null,null,null,null,null,null,null,null,null,null,null,null,null,null,null,null,null,null,null,null,null,null,null,null,""]
[null,null,null,null,null,null,null,null,null,null,null,null,null,null,null,null,null,null,null,null,null,null,null,null,null,null,null,null,null,null,null,null,null,null,null,null,null,null,null,null,null,null,null,null,null,null,null,null,null,null,null,""]
[null,null,null,null,null,null,null,null,null,null,null,null,null,null,null,null,null,null,null,null,null,null,null,null,null,null,null,null,null,null,null,null,null,null,null,null,null,null,null,null,null,null,null,null,null,null,null,null,null,null,null,""]
[null,null,null,null,null,null,null,null,null,null,null,null,null,null,null,null,null,null,null,null,null,null,null,null,null,null,null,null,null,null,null,null,null,null,null,null,null,null,null,null,null,null,null,null,null,null,null,null,null,null,null,""]
[null,null,null,null,null,null,null,null,null,null,null,null,null,null,null,null,null,null,null,null,null,null,null,null,null,null,null,null,null,null,null,null,null,null,null,null,null,null,null,null,null,null,null,null,null,null,null,null,null,null,null,""]
[null,null,null,null,null,null,null,null,null,null,null,null,null,null,null,null,null,null,null,null,null,null,null,null,null,null,null,null,null,null,null,null,null,null,null,null,null,null,null,null,null,null,null,null,null,null,null,null,null,null,null,""]
[null,null,null,null,null,null,null,null,null,null,null,null,null,null,null,null,null,null,null,null,null,null,null,null,null,null,null,null,null,null,null,null,null,null,null,null,null,null,null,null,null,null,null,null,null,null,null,null,null,null,null,""]
[null,null,null,null,null,null,null,null,null,null,null,null,null,null,null,null,null,null,null,null,null,null,null,null,null,null,null,null,null,null,null,null,null,null,null,null,null,null,null,null,null,null,null,null,null,null,null,null,null,null,null,""]
[null,null,null,null,null,null,null,null,null,null,null,null,null,null,null,null,null,null,null,null,null,null,null,null,null,null,null,null,null,null,null,null,null,null,null,null,null,null,null,null,null,null,null,null,null,null,null,null,null,null,null,""]
[null,null,null,null,null,null,null,null,null,null,null,null,null,null,null,null,null,null,null,null,null,null,null,null,null,null,null,null,null,null,null,null,null,null,null,null,null,null,null,null,null,null,null,null,null,null,null,null,null,null,null,""]
[null,null,null,null,null,null,null,null,null,null,null,null,null,null,null,null,null,null,null,null,null,null,null,null,null,null,null,null,null,null,null,null,null,null,null,null,null,null,null,null,null,null,null,null,null,null,null,null,null,null,null,""]
[null,null,null,null,null,null,null,null,null,null,null,null,null,null,null,null,null,null,null,null,null,null,null,null,null,null,null,null,null,null,null,null,null,null,null,null,null,null,null,null,null,null,null,null,null,null,null,null,null,null,null,""]
[null,null,null,null,null,null,null,null,null,null,null,null,null,null,null,null,null,null,null,null,null,null,null,null,null,null,null,null,null,null,null,null,null,null,null,null,null,null,null,null,null,null,null,null,null,null,null,null,null,null,null,""]
[null,null,null,null,null,null,null,null,null,null,null,null,null,null,null,null,null,null,null,null,null,null,null,null,null,null,null,null,null,null,null,null,null,null,null,null,null,null,null,null,null,null,null,null,null,null,null,null,null,null,null,""]
[null,null,null,null,null,null,null,null,null,null,null,null,null,null,null,null,null,null,null,null,null,null,null,null,null,null,null,null,null,null,null,null,null,null,null,null,null,null,null,null,null,null,null,null,null,null,null,null,null,null,null,""]
[null,null,null,null,null,null,null,null,null,null,null,null,null,null,null,null,null,null,null,null,null,null,null,null,null,null,null,null,null,null,null,null,null,null,null,null,null,null,null,null,null,null,null,null,null,null,null,null,null,null,null,""]
[null,null,null,null,null,null,null,null,null,null,null,null,null,null,null,null,null,null,null,null,null,null,null,null,null,null,null,null,null,null,null,null,null,null,null,null,null,null,null,null,null,null,null,null,null,null,null,null,null,null,null,""]
[null,null,null,null,null,null,null,null,null,null,null,null,null,null,null,null,null,null,null,null,null,null,null,null,null,null,null,null,null,null,null,null,null,null,null,null,null,null,null,null,null,null,null,null,null,null,null,null,null,null,null,""]
[null,null,null,null,null,null,null,null,null,null,null,null,null,null,null,null,null,null,null,null,null,null,null,null,null,null,null,null,null,null,null,null,null,null,null,null,null,null,null,null,null,null,null,null,null,null,null,null,null,null,null,""]
[null,null,null,null,null,null,null,null,null,null,null,null,null,null,null,null,null,null,null,null,null,null,null,null,null,null,null,null,null,null,null,null,null,null,null,null,null,null,null,null,null,null,null,null,null,null,null,null,null,null,null,""]
[null,null,null,null,null,null,null,null,null,null,null,null,null,null,null,null,null,null,null,null,null,null,null,null,null,null,null,null,null,null,null,null,null,null,null,null,null,null,null,null,null,null,null,null,null,null,null,null,null,null,null,{"$f":"SUBSTITUTE(SUBSTITUTE(E761,\"　\",\"\"),\" \",\"\")","v":""}]
[null,null,null,null,null,null,null,null,null,null,null,null,null,null,null,null,null,null,null,null,null,null,null,null,null,null,null,null,null,null,null,null,null,null,null,null,null,null,null,null,null,null,null,null,null,null,null,null,null,null,null,""]
[null,null,null,null,null,null,null,null,null,null,null,null,null,null,null,null,null,null,null,null,null,null,null,null,null,null,null,null,null,null,null,null,null,null,null,null,null,null,null,null,null,null,null,null,null,null,null,null,null,null,null,""]
[null,null,null,null,null,null,null,null,null,null,null,null,null,null,null,null,null,null,null,null,null,null,null,null,null,null,null,null,null,null,null,null,null,null,null,null,null,null,null,null,null,null,null,null,null,null,null,null,null,null,null,""]
[null,null,null,null,null,null,null,null,null,null,null,null,null,null,null,null,null,null,null,null,null,null,null,null,null,null,null,null,null,null,null,null,null,null,null,null,null,null,null,null,null,null,null,null,null,null,null,null,null,null,null,""]
[null,null,null,null,null,null,null,null,null,null,null,null,null,null,null,null,null,null,null,null,null,null,null,null,null,null,null,null,null,null,null,null,null,null,null,null,null,null,null,null,null,null,null,null,null,null,null,null,null,null,null,""]
[null,null,null,null,null,null,null,null,null,null,null,null,null,null,null,null,null,null,null,null,null,null,null,null,null,null,null,null,null,null,null,null,null,null,null,null,null,null,null,null,null,null,null,null,null,null,null,null,null,null,null,""]
[null,null,null,null,null,null,null,null,null,null,null,null,null,null,null,null,null,null,null,null,null,null,null,null,null,null,null,null,null,null,null,null,null,null,null,null,null,null,null,null,null,null,null,null,null,null,null,null,null,null,null,""]
[null,null,null,null,null,null,null,null,null,null,null,null,null,null,null,null,null,null,null,null,null,null,null,null,null,null,null,null,null,null,null,null,null,null,null,null,null,null,null,null,null,null,null,null,null,null,null,null,null,null,null,""]
[null,null,null,null,null,null,null,null,null,null,null,null,null,null,null,null,null,null,null,null,null,null,null,null,null,null,null,null,null,null,null,null,null,null,null,null,null,null,null,null,null,null,null,null,null,null,null,null,null,null,null,""]
[null,null,null,null,null,null,null,null,null,null,null,null,null,null,null,null,null,null,null,null,null,null,null,null,null,null,null,null,null,null,null,null,null,null,null,null,null,null,null,null,null,null,null,null,null,null,null,null,null,null,null,""]
[null,null,null,null,null,null,null,null,null,null,null,null,null,null,null,null,null,null,null,null,null,null,null,null,null,null,null,null,null,null,null,null,null,null,null,null,null,null,null,null,null,null,null,null,null,null,null,null,null,null,null,""]
[null,null,null,null,null,null,null,null,null,null,null,null,null,null,null,null,null,null,null,null,null,null,null,null,null,null,null,null,null,null,null,null,null,null,null,null,null,null,null,null,null,null,null,null,null,null,null,null,null,null,null,""]
[null,null,null,null,null,null,null,null,null,null,null,null,null,null,null,null,null,null,null,null,null,null,null,null,null,null,null,null,null,null,null,null,null,null,null,null,null,null,null,null,null,null,null,null,null,null,null,null,null,null,null,""]
[null,null,null,null,null,null,null,null,null,null,null,null,null,null,null,null,null,null,null,null,null,null,null,null,null,null,null,null,null,null,null,null,null,null,null,null,null,null,null,null,null,null,null,null,null,null,null,null,null,null,null,""]
[null,null,null,null,null,null,null,null,null,null,null,null,null,null,null,null,null,null,null,null,null,null,null,null,null,null,null,null,null,null,null,null,null,null,null,null,null,null,null,null,null,null,null,null,null,null,null,null,null,null,null,""]
[null,null,null,null,null,null,null,null,null,null,null,null,null,null,null,null,null,null,null,null,null,null,null,null,null,null,null,null,null,null,null,null,null,null,null,null,null,null,null,null,null,null,null,null,null,null,null,null,null,null,null,""]
[null,null,null,null,null,null,null,null,null,null,null,null,null,null,null,null,null,null,null,null,null,null,null,null,null,null,null,null,null,null,null,null,null,null,null,null,null,null,null,null,null,null,null,null,null,null,null,null,null,null,null,""]
[null,null,null,null,null,null,null,null,null,null,null,null,null,null,null,null,null,null,null,null,null,null,null,null,null,null,null,null,null,null,null,null,null,null,null,null,null,null,null,null,null,null,null,null,null,null,null,null,null,null,null,""]
[null,null,null,null,null,null,null,null,null,null,null,null,null,null,null,null,null,null,null,null,null,null,null,null,null,null,null,null,null,null,null,null,null,null,null,null,null,null,null,null,null,null,null,null,null,null,null,null,null,null,null,""]
[null,null,null,null,null,null,null,null,null,null,null,null,null,null,null,null,null,null,null,null,null,null,null,null,null,null,null,null,null,null,null,null,null,null,null,null,null,null,null,null,null,null,null,null,null,null,null,null,null,null,null,""]
[null,null,null,null,null,null,null,null,null,null,null,null,null,null,null,null,null,null,null,null,null,null,null,null,null,null,null,null,null,null,null,null,null,null,null,null,null,null,null,null,null,null,null,null,null,null,null,null,null,null,null,""]
[null,null,null,null,null,null,null,null,null,null,null,null,null,null,null,null,null,null,null,null,null,null,null,null,null,null,null,null,null,null,null,null,null,null,null,null,null,null,null,null,null,null,null,null,null,null,null,null,null,null,null,""]
[null,null,null,null,null,null,null,null,null,null,null,null,null,null,null,null,null,null,null,null,null,null,null,null,null,null,null,null,null,null,null,null,null,null,null,null,null,null,null,null,null,null,null,null,null,null,null,null,null,null,null,""]
[null,null,null,null,null,null,null,null,null,null,null,null,null,null,null,null,null,null,null,null,null,null,null,null,null,null,null,null,null,null,null,null,null,null,null,null,null,null,null,null,null,null,null,null,null,null,null,null,null,null,null,""]
[null,null,null,null,null,null,null,null,null,null,null,null,null,null,null,null,null,null,null,null,null,null,null,null,null,null,null,null,null,null,null,null,null,null,null,null,null,null,null,null,null,null,null,null,null,null,null,null,null,null,null,""]
[null,null,null,null,null,null,null,null,null,null,null,null,null,null,null,null,null,null,null,null,null,null,null,null,null,null,null,null,null,null,null,null,null,null,null,null,null,null,null,null,null,null,null,null,null,null,null,null,null,null,null,""]
[null,null,null,null,null,null,null,null,null,null,null,null,null,null,null,null,null,null,null,null,null,null,null,null,null,null,null,null,null,null,null,null,null,null,null,null,null,null,null,null,null,null,null,null,null,null,null,null,null,null,null,""]
[null,null,null,null,null,null,null,null,null,null,null,null,null,null,null,null,null,null,null,null,null,null,null,null,null,null,null,null,null,null,null,null,null,null,null,null,null,null,null,null,null,null,null,null,null,null,null,null,null,null,null,""]
[null,null,null,null,null,null,null,null,null,null,null,null,null,null,null,null,null,null,null,null,null,null,null,null,null,null,null,null,null,null,null,null,null,null,null,null,null,null,null,null,null,null,null,null,null,null,null,null,null,null,null,""]
[null,null,null,null,null,null,null,null,null,null,null,null,null,null,null,null,null,null,null,null,null,null,null,null,null,null,null,null,null,null,null,null,null,null,null,null,null,null,null,null,null,null,null,null,null,null,null,null,null,null,null,""]
[null,null,null,null,null,null,null,null,null,null,null,null,null,null,null,null,null,null,null,null,null,null,null,null,null,null,null,null,null,null,null,null,null,null,null,null,null,null,null,null,null,null,null,null,null,null,null,null,null,null,null,""]
[null,null,null,null,null,null,null,null,null,null,null,null,null,null,null,null,null,null,null,null,null,null,null,null,null,null,null,null,null,null,null,null,null,null,null,null,null,null,null,null,null,null,null,null,null,null,null,null,null,null,null,""]
[null,null,null,null,null,null,null,null,null,null,null,null,null,null,null,null,null,null,null,null,null,null,null,null,null,null,null,null,null,null,null,null,null,null,null,null,null,null,null,null,null,null,null,null,null,null,null,null,null,null,null,""]
[null,null,null,null,null,null,null,null,null,null,null,null,null,null,null,null,null,null,null,null,null,null,null,null,null,null,null,null,null,null,null,null,null,null,null,null,null,null,null,null,null,null,null,null,null,null,null,null,null,null,null,""]
[null,null,null,null,null,null,null,null,null,null,null,null,null,null,null,null,null,null,null,null,null,null,null,null,null,null,null,null,null,null,null,null,null,null,null,null,null,null,null,null,null,null,null,null,null,null,null,null,null,null,null,""]
[null,null,null,null,null,null,null,null,null,null,null,null,null,null,null,null,null,null,null,null,null,null,null,null,null,null,null,null,null,null,null,null,null,null,null,null,null,null,null,null,null,null,null,null,null,null,null,null,null,null,null,""]
[null,null,null,null,null,null,null,null,null,null,null,null,null,null,null,null,null,null,null,null,null,null,null,null,null,null,null,null,null,null,null,null,null,null,null,null,null,null,null,null,null,null,null,null,null,null,null,null,null,null,null,""]
[null,null,null,null,null,null,null,null,null,null,null,null,null,null,null,null,null,null,null,null,null,null,null,null,null,null,null,null,null,null,null,null,null,null,null,null,null,null,null,null,null,null,null,null,null,null,null,null,null,null,null,""]
[null,null,null,null,null,null,null,null,null,null,null,null,null,null,null,null,null,null,null,null,null,null,null,null,null,null,null,null,null,null,null,null,null,null,null,null,null,null,null,null,null,null,null,null,null,null,null,null,null,null,null,""]
[null,null,null,null,null,null,null,null,null,null,null,null,null,null,null,null,null,null,null,null,null,null,null,null,null,null,null,null,null,null,null,null,null,null,null,null,null,null,null,null,null,null,null,null,null,null,null,null,null,null,null,""]
[null,null,null,null,null,null,null,null,null,null,null,null,null,null,null,null,null,null,null,null,null,null,null,null,null,null,null,null,null,null,null,null,null,null,null,null,null,null,null,null,null,null,null,null,null,null,null,null,null,null,null,""]
[null,null,null,null,null,null,null,null,null,null,null,null,null,null,null,null,null,null,null,null,null,null,null,null,null,null,null,null,null,null,null,null,null,null,null,null,null,null,null,null,null,null,null,null,null,null,null,null,null,null,null,""]
[null,null,null,null,null,null,null,null,null,null,null,null,null,null,null,null,null,null,null,null,null,null,null,null,null,null,null,null,null,null,null,null,null,null,null,null,null,null,null,null,null,null,null,null,null,null,null,null,null,null,null,""]
[null,null,null,null,null,null,null,null,null,null,null,null,null,null,null,null,null,null,null,null,null,null,null,null,null,null,null,null,null,null,null,null,null,null,null,null,null,null,null,null,null,null,null,null,null,null,null,null,null,null,null,""]
[null,null,null,null,null,null,null,null,null,null,null,null,null,null,null,null,null,null,null,null,null,null,null,null,null,null,null,null,null,null,null,null,null,null,null,null,null,null,null,null,null,null,null,null,null,null,null,null,null,null,null,""]
[null,null,null,null,null,null,null,null,null,null,null,null,null,null,null,null,null,null,null,null,null,null,null,null,null,null,null,null,null,null,null,null,null,null,null,null,null,null,null,null,null,null,null,null,null,null,null,null,null,null,null,""]
[null,null,null,null,null,null,null,null,null,null,null,null,null,null,null,null,null,null,null,null,null,null,null,null,null,null,null,null,null,null,null,null,null,null,null,null,null,null,null,null,null,null,null,null,null,null,null,null,null,null,null,""]
[null,null,null,null,null,null,null,null,null,null,null,null,null,null,null,null,null,null,null,null,null,null,null,null,null,null,null,null,null,null,null,null,null,null,null,null,null,null,null,null,null,null,null,null,null,null,null,null,null,null,null,""]
[null,null,null,null,null,null,null,null,null,null,null,null,null,null,null,null,null,null,null,null,null,null,null,null,null,null,null,null,null,null,null,null,null,null,null,null,null,null,null,null,null,null,null,null,null,null,null,null,null,null,null,""]
[null,null,null,null,null,null,null,null,null,null,null,null,null,null,null,null,null,null,null,null,null,null,null,null,null,null,null,null,null,null,null,null,null,null,null,null,null,null,null,null,null,null,null,null,null,null,null,null,null,null,null,""]
[null,null,null,null,null,null,null,null,null,null,null,null,null,null,null,null,null,null,null,null,null,null,null,null,null,null,null,null,null,null,null,null,null,null,null,null,null,null,null,null,null,null,null,null,null,null,null,null,null,null,null,""]
[null,null,null,null,null,null,null,null,null,null,null,null,null,null,null,null,null,null,null,null,null,null,null,null,null,null,null,null,null,null,null,null,null,null,null,null,null,null,null,null,null,null,null,null,null,null,null,null,null,null,null,""]
[null,null,null,null,null,null,null,null,null,null,null,null,null,null,null,null,null,null,null,null,null,null,null,null,null,null,null,null,null,null,null,null,null,null,null,null,null,null,null,null,null,null,null,null,null,null,null,null,null,null,null,""]
[null,null,null,null,null,null,null,null,null,null,null,null,null,null,null,null,null,null,null,null,null,null,null,null,null,null,null,null,null,null,null,null,null,null,null,null,null,null,null,null,null,null,null,null,null,null,null,null,null,null,null,""]
[null,null,null,null,null,null,null,null,null,null,null,null,null,null,null,null,null,null,null,null,null,null,null,null,null,null,null,null,null,null,null,null,null,null,null,null,null,null,null,null,null,null,null,null,null,null,null,null,null,null,null,""]
[null,null,null,null,null,null,null,null,null,null,null,null,null,null,null,null,null,null,null,null,null,null,null,null,null,null,null,null,null,null,null,null,null,null,null,null,null,null,null,null,null,null,null,null,null,null,null,null,null,null,null,""]
[null,null,null,null,null,null,null,null,null,null,null,null,null,null,null,null,null,null,null,null,null,null,null,null,null,null,null,null,null,null,null,null,null,null,null,null,null,null,null,null,null,null,null,null,null,null,null,null,null,null,null,""]
[null,null,null,null,null,null,null,null,null,null,null,null,null,null,null,null,null,null,null,null,null,null,null,null,null,null,null,null,null,null,null,null,null,null,null,null,null,null,null,null,null,null,null,null,null,null,null,null,null,null,null,""]
[null,null,null,null,null,null,null,null,null,null,null,null,null,null,null,null,null,null,null,null,null,null,null,null,null,null,null,null,null,null,null,null,null,null,null,null,null,null,null,null,null,null,null,null,null,null,null,null,null,null,null,""]
[null,null,null,null,null,null,null,null,null,null,null,null,null,null,null,null,null,null,null,null,null,null,null,null,null,null,null,null,null,null,null,null,null,null,null,null,null,null,null,null,null,null,null,null,null,null,null,null,null,null,null,""]
[null,null,null,null,null,null,null,null,null,null,null,null,null,null,null,null,null,null,null,null,null,null,null,null,null,null,null,null,null,null,null,null,null,null,null,null,null,null,null,null,null,null,null,null,null,null,null,null,null,null,null,""]
[null,null,null,null,null,null,null,null,null,null,null,null,null,null,null,null,null,null,null,null,null,null,null,null,null,null,null,null,null,null,null,null,null,null,null,null,null,null,null,null,null,null,null,null,null,null,null,null,null,null,null,""]
[null,null,null,null,null,null,null,null,null,null,null,null,null,null,null,null,null,null,null,null,null,null,null,null,null,null,null,null,null,null,null,null,null,null,null,null,null,null,null,null,null,null,null,null,null,null,null,null,null,null,null,""]
[null,null,null,null,null,null,null,null,null,null,null,null,null,null,null,null,null,null,null,null,null,null,null,null,null,null,null,null,null,null,null,null,null,null,null,null,null,null,null,null,null,null,null,null,null,null,null,null,null,null,null,{"$f":"SUBSTITUTE(SUBSTITUTE(E825,\"　\",\"\"),\" \",\"\")","v":""}]
[null,null,null,null,null,null,null,null,null,null,null,null,null,null,null,null,null,null,null,null,null,null,null,null,null,null,null,null,null,null,null,null,null,null,null,null,null,null,null,null,null,null,null,null,null,null,null,null,null,null,null,""]
[null,null,null,null,null,null,null,null,null,null,null,null,null,null,null,null,null,null,null,null,null,null,null,null,null,null,null,null,null,null,null,null,null,null,null,null,null,null,null,null,null,null,null,null,null,null,null,null,null,null,null,""]
[null,null,null,null,null,null,null,null,null,null,null,null,null,null,null,null,null,null,null,null,null,null,null,null,null,null,null,null,null,null,null,null,null,null,null,null,null,null,null,null,null,null,null,null,null,null,null,null,null,null,null,""]
[null,null,null,null,null,null,null,null,null,null,null,null,null,null,null,null,null,null,null,null,null,null,null,null,null,null,null,null,null,null,null,null,null,null,null,null,null,null,null,null,null,null,null,null,null,null,null,null,null,null,null,""]
[null,null,null,null,null,null,null,null,null,null,null,null,null,null,null,null,null,null,null,null,null,null,null,null,null,null,null,null,null,null,null,null,null,null,null,null,null,null,null,null,null,null,null,null,null,null,null,null,null,null,null,""]
[null,null,null,null,null,null,null,null,null,null,null,null,null,null,null,null,null,null,null,null,null,null,null,null,null,null,null,null,null,null,null,null,null,null,null,null,null,null,null,null,null,null,null,null,null,null,null,null,null,null,null,""]
[null,null,null,null,null,null,null,null,null,null,null,null,null,null,null,null,null,null,null,null,null,null,null,null,null,null,null,null,null,null,null,null,null,null,null,null,null,null,null,null,null,null,null,null,null,null,null,null,null,null,null,""]
[null,null,null,null,null,null,null,null,null,null,null,null,null,null,null,null,null,null,null,null,null,null,null,null,null,null,null,null,null,null,null,null,null,null,null,null,null,null,null,null,null,null,null,null,null,null,null,null,null,null,null,""]
[null,null,null,null,null,null,null,null,null,null,null,null,null,null,null,null,null,null,null,null,null,null,null,null,null,null,null,null,null,null,null,null,null,null,null,null,null,null,null,null,null,null,null,null,null,null,null,null,null,null,null,""]
[null,null,null,null,null,null,null,null,null,null,null,null,null,null,null,null,null,null,null,null,null,null,null,null,null,null,null,null,null,null,null,null,null,null,null,null,null,null,null,null,null,null,null,null,null,null,null,null,null,null,null,""]
[null,null,null,null,null,null,null,null,null,null,null,null,null,null,null,null,null,null,null,null,null,null,null,null,null,null,null,null,null,null,null,null,null,null,null,null,null,null,null,null,null,null,null,null,null,null,null,null,null,null,null,""]
[null,null,null,null,null,null,null,null,null,null,null,null,null,null,null,null,null,null,null,null,null,null,null,null,null,null,null,null,null,null,null,null,null,null,null,null,null,null,null,null,null,null,null,null,null,null,null,null,null,null,null,""]
[null,null,null,null,null,null,null,null,null,null,null,null,null,null,null,null,null,null,null,null,null,null,null,null,null,null,null,null,null,null,null,null,null,null,null,null,null,null,null,null,null,null,null,null,null,null,null,null,null,null,null,""]
[null,null,null,null,null,null,null,null,null,null,null,null,null,null,null,null,null,null,null,null,null,null,null,null,null,null,null,null,null,null,null,null,null,null,null,null,null,null,null,null,null,null,null,null,null,null,null,null,null,null,null,""]
[null,null,null,null,null,null,null,null,null,null,null,null,null,null,null,null,null,null,null,null,null,null,null,null,null,null,null,null,null,null,null,null,null,null,null,null,null,null,null,null,null,null,null,null,null,null,null,null,null,null,null,""]
[null,null,null,null,null,null,null,null,null,null,null,null,null,null,null,null,null,null,null,null,null,null,null,null,null,null,null,null,null,null,null,null,null,null,null,null,null,null,null,null,null,null,null,null,null,null,null,null,null,null,null,""]
[null,null,null,null,null,null,null,null,null,null,null,null,null,null,null,null,null,null,null,null,null,null,null,null,null,null,null,null,null,null,null,null,null,null,null,null,null,null,null,null,null,null,null,null,null,null,null,null,null,null,null,""]
[null,null,null,null,null,null,null,null,null,null,null,null,null,null,null,null,null,null,null,null,null,null,null,null,null,null,null,null,null,null,null,null,null,null,null,null,null,null,null,null,null,null,null,null,null,null,null,null,null,null,null,""]
[null,null,null,null,null,null,null,null,null,null,null,null,null,null,null,null,null,null,null,null,null,null,null,null,null,null,null,null,null,null,null,null,null,null,null,null,null,null,null,null,null,null,null,null,null,null,null,null,null,null,null,""]
[null,null,null,null,null,null,null,null,null,null,null,null,null,null,null,null,null,null,null,null,null,null,null,null,null,null,null,null,null,null,null,null,null,null,null,null,null,null,null,null,null,null,null,null,null,null,null,null,null,null,null,""]
[null,null,null,null,null,null,null,null,null,null,null,null,null,null,null,null,null,null,null,null,null,null,null,null,null,null,null,null,null,null,null,null,null,null,null,null,null,null,null,null,null,null,null,null,null,null,null,null,null,null,null,""]
[null,null,null,null,null,null,null,null,null,null,null,null,null,null,null,null,null,null,null,null,null,null,null,null,null,null,null,null,null,null,null,null,null,null,null,null,null,null,null,null,null,null,null,null,null,null,null,null,null,null,null,""]
[null,null,null,null,null,null,null,null,null,null,null,null,null,null,null,null,null,null,null,null,null,null,null,null,null,null,null,null,null,null,null,null,null,null,null,null,null,null,null,null,null,null,null,null,null,null,null,null,null,null,null,""]
[null,null,null,null,null,null,null,null,null,null,null,null,null,null,null,null,null,null,null,null,null,null,null,null,null,null,null,null,null,null,null,null,null,null,null,null,null,null,null,null,null,null,null,null,null,null,null,null,null,null,null,""]
[null,null,null,null,null,null,null,null,null,null,null,null,null,null,null,null,null,null,null,null,null,null,null,null,null,null,null,null,null,null,null,null,null,null,null,null,null,null,null,null,null,null,null,null,null,null,null,null,null,null,null,""]
[null,null,null,null,null,null,null,null,null,null,null,null,null,null,null,null,null,null,null,null,null,null,null,null,null,null,null,null,null,null,null,null,null,null,null,null,null,null,null,null,null,null,null,null,null,null,null,null,null,null,null,""]
[null,null,null,null,null,null,null,null,null,null,null,null,null,null,null,null,null,null,null,null,null,null,null,null,null,null,null,null,null,null,null,null,null,null,null,null,null,null,null,null,null,null,null,null,null,null,null,null,null,null,null,""]
[null,null,null,null,null,null,null,null,null,null,null,null,null,null,null,null,null,null,null,null,null,null,null,null,null,null,null,null,null,null,null,null,null,null,null,null,null,null,null,null,null,null,null,null,null,null,null,null,null,null,null,""]
[null,null,null,null,null,null,null,null,null,null,null,null,null,null,null,null,null,null,null,null,null,null,null,null,null,null,null,null,null,null,null,null,null,null,null,null,null,null,null,null,null,null,null,null,null,null,null,null,null,null,null,""]
[null,null,null,null,null,null,null,null,null,null,null,null,null,null,null,null,null,null,null,null,null,null,null,null,null,null,null,null,null,null,null,null,null,null,null,null,null,null,null,null,null,null,null,null,null,null,null,null,null,null,null,""]
[null,null,null,null,null,null,null,null,null,null,null,null,null,null,null,null,null,null,null,null,null,null,null,null,null,null,null,null,null,null,null,null,null,null,null,null,null,null,null,null,null,null,null,null,null,null,null,null,null,null,null,""]
[null,null,null,null,null,null,null,null,null,null,null,null,null,null,null,null,null,null,null,null,null,null,null,null,null,null,null,null,null,null,null,null,null,null,null,null,null,null,null,null,null,null,null,null,null,null,null,null,null,null,null,""]
[null,null,null,null,null,null,null,null,null,null,null,null,null,null,null,null,null,null,null,null,null,null,null,null,null,null,null,null,null,null,null,null,null,null,null,null,null,null,null,null,null,null,null,null,null,null,null,null,null,null,null,""]
[null,null,null,null,null,null,null,null,null,null,null,null,null,null,null,null,null,null,null,null,null,null,null,null,null,null,null,null,null,null,null,null,null,null,null,null,null,null,null,null,null,null,null,null,null,null,null,null,null,null,null,""]
[null,null,null,null,null,null,null,null,null,null,null,null,null,null,null,null,null,null,null,null,null,null,null,null,null,null,null,null,null,null,null,null,null,null,null,null,null,null,null,null,null,null,null,null,null,null,null,null,null,null,null,""]
[null,null,null,null,null,null,null,null,null,null,null,null,null,null,null,null,null,null,null,null,null,null,null,null,null,null,null,null,null,null,null,null,null,null,null,null,null,null,null,null,null,null,null,null,null,null,null,null,null,null,null,""]
[null,null,null,null,null,null,null,null,null,null,null,null,null,null,null,null,null,null,null,null,null,null,null,null,null,null,null,null,null,null,null,null,null,null,null,null,null,null,null,null,null,null,null,null,null,null,null,null,null,null,null,""]
[null,null,null,null,null,null,null,null,null,null,null,null,null,null,null,null,null,null,null,null,null,null,null,null,null,null,null,null,null,null,null,null,null,null,null,null,null,null,null,null,null,null,null,null,null,null,null,null,null,null,null,""]
[null,null,null,null,null,null,null,null,null,null,null,null,null,null,null,null,null,null,null,null,null,null,null,null,null,null,null,null,null,null,null,null,null,null,null,null,null,null,null,null,null,null,null,null,null,null,null,null,null,null,null,""]
[null,null,null,null,null,null,null,null,null,null,null,null,null,null,null,null,null,null,null,null,null,null,null,null,null,null,null,null,null,null,null,null,null,null,null,null,null,null,null,null,null,null,null,null,null,null,null,null,null,null,null,""]
[null,null,null,null,null,null,null,null,null,null,null,null,null,null,null,null,null,null,null,null,null,null,null,null,null,null,null,null,null,null,null,null,null,null,null,null,null,null,null,null,null,null,null,null,null,null,null,null,null,null,null,""]
[null,null,null,null,null,null,null,null,null,null,null,null,null,null,null,null,null,null,null,null,null,null,null,null,null,null,null,null,null,null,null,null,null,null,null,null,null,null,null,null,null,null,null,null,null,null,null,null,null,null,null,""]
[null,null,null,null,null,null,null,null,null,null,null,null,null,null,null,null,null,null,null,null,null,null,null,null,null,null,null,null,null,null,null,null,null,null,null,null,null,null,null,null,null,null,null,null,null,null,null,null,null,null,null,""]
[null,null,null,null,null,null,null,null,null,null,null,null,null,null,null,null,null,null,null,null,null,null,null,null,null,null,null,null,null,null,null,null,null,null,null,null,null,null,null,null,null,null,null,null,null,null,null,null,null,null,null,""]
[null,null,null,null,null,null,null,null,null,null,null,null,null,null,null,null,null,null,null,null,null,null,null,null,null,null,null,null,null,null,null,null,null,null,null,null,null,null,null,null,null,null,null,null,null,null,null,null,null,null,null,""]
[null,null,null,null,null,null,null,null,null,null,null,null,null,null,null,null,null,null,null,null,null,null,null,null,null,null,null,null,null,null,null,null,null,null,null,null,null,null,null,null,null,null,null,null,null,null,null,null,null,null,null,""]
[null,null,null,null,null,null,null,null,null,null,null,null,null,null,null,null,null,null,null,null,null,null,null,null,null,null,null,null,null,null,null,null,null,null,null,null,null,null,null,null,null,null,null,null,null,null,null,null,null,null,null,""]
[null,null,null,null,null,null,null,null,null,null,null,null,null,null,null,null,null,null,null,null,null,null,null,null,null,null,null,null,null,null,null,null,null,null,null,null,null,null,null,null,null,null,null,null,null,null,null,null,null,null,null,""]
[null,null,null,null,null,null,null,null,null,null,null,null,null,null,null,null,null,null,null,null,null,null,null,null,null,null,null,null,null,null,null,null,null,null,null,null,null,null,null,null,null,null,null,null,null,null,null,null,null,null,null,""]
[null,null,null,null,null,null,null,null,null,null,null,null,null,null,null,null,null,null,null,null,null,null,null,null,null,null,null,null,null,null,null,null,null,null,null,null,null,null,null,null,null,null,null,null,null,null,null,null,null,null,null,""]
[null,null,null,null,null,null,null,null,null,null,null,null,null,null,null,null,null,null,null,null,null,null,null,null,null,null,null,null,null,null,null,null,null,null,null,null,null,null,null,null,null,null,null,null,null,null,null,null,null,null,null,""]
[null,null,null,null,null,null,null,null,null,null,null,null,null,null,null,null,null,null,null,null,null,null,null,null,null,null,null,null,null,null,null,null,null,null,null,null,null,null,null,null,null,null,null,null,null,null,null,null,null,null,null,""]
[null,null,null,null,null,null,null,null,null,null,null,null,null,null,null,null,null,null,null,null,null,null,null,null,null,null,null,null,null,null,null,null,null,null,null,null,null,null,null,null,null,null,null,null,null,null,null,null,null,null,null,""]
[null,null,null,null,null,null,null,null,null,null,null,null,null,null,null,null,null,null,null,null,null,null,null,null,null,null,null,null,null,null,null,null,null,null,null,null,null,null,null,null,null,null,null,null,null,null,null,null,null,null,null,""]
[null,null,null,null,null,null,null,null,null,null,null,null,null,null,null,null,null,null,null,null,null,null,null,null,null,null,null,null,null,null,null,null,null,null,null,null,null,null,null,null,null,null,null,null,null,null,null,null,null,null,null,""]
[null,null,null,null,null,null,null,null,null,null,null,null,null,null,null,null,null,null,null,null,null,null,null,null,null,null,null,null,null,null,null,null,null,null,null,null,null,null,null,null,null,null,null,null,null,null,null,null,null,null,null,""]
[null,null,null,null,null,null,null,null,null,null,null,null,null,null,null,null,null,null,null,null,null,null,null,null,null,null,null,null,null,null,null,null,null,null,null,null,null,null,null,null,null,null,null,null,null,null,null,null,null,null,null,""]
[null,null,null,null,null,null,null,null,null,null,null,null,null,null,null,null,null,null,null,null,null,null,null,null,null,null,null,null,null,null,null,null,null,null,null,null,null,null,null,null,null,null,null,null,null,null,null,null,null,null,null,""]
[null,null,null,null,null,null,null,null,null,null,null,null,null,null,null,null,null,null,null,null,null,null,null,null,null,null,null,null,null,null,null,null,null,null,null,null,null,null,null,null,null,null,null,null,null,null,null,null,null,null,null,""]
[null,null,null,null,null,null,null,null,null,null,null,null,null,null,null,null,null,null,null,null,null,null,null,null,null,null,null,null,null,null,null,null,null,null,null,null,null,null,null,null,null,null,null,null,null,null,null,null,null,null,null,""]
[null,null,null,null,null,null,null,null,null,null,null,null,null,null,null,null,null,null,null,null,null,null,null,null,null,null,null,null,null,null,null,null,null,null,null,null,null,null,null,null,null,null,null,null,null,null,null,null,null,null,null,""]
[null,null,null,null,null,null,null,null,null,null,null,null,null,null,null,null,null,null,null,null,null,null,null,null,null,null,null,null,null,null,null,null,null,null,null,null,null,null,null,null,null,null,null,null,null,null,null,null,null,null,null,""]
[null,null,null,null,null,null,null,null,null,null,null,null,null,null,null,null,null,null,null,null,null,null,null,null,null,null,null,null,null,null,null,null,null,null,null,null,null,null,null,null,null,null,null,null,null,null,null,null,null,null,null,""]
[null,null,null,null,null,null,null,null,null,null,null,null,null,null,null,null,null,null,null,null,null,null,null,null,null,null,null,null,null,null,null,null,null,null,null,null,null,null,null,null,null,null,null,null,null,null,null,null,null,null,null,{"$f":"SUBSTITUTE(SUBSTITUTE(E889,\"　\",\"\"),\" \",\"\")","v":""}]
[null,null,null,null,null,null,null,null,null,null,null,null,null,null,null,null,null,null,null,null,null,null,null,null,null,null,null,null,null,null,null,null,null,null,null,null,null,null,null,null,null,null,null,null,null,null,null,null,null,null,null,""]
[null,null,null,null,null,null,null,null,null,null,null,null,null,null,null,null,null,null,null,null,null,null,null,null,null,null,null,null,null,null,null,null,null,null,null,null,null,null,null,null,null,null,null,null,null,null,null,null,null,null,null,""]
[null,null,null,null,null,null,null,null,null,null,null,null,null,null,null,null,null,null,null,null,null,null,null,null,null,null,null,null,null,null,null,null,null,null,null,null,null,null,null,null,null,null,null,null,null,null,null,null,null,null,null,""]
[null,null,null,null,null,null,null,null,null,null,null,null,null,null,null,null,null,null,null,null,null,null,null,null,null,null,null,null,null,null,null,null,null,null,null,null,null,null,null,null,null,null,null,null,null,null,null,null,null,null,null,""]
[null,null,null,null,null,null,null,null,null,null,null,null,null,null,null,null,null,null,null,null,null,null,null,null,null,null,null,null,null,null,null,null,null,null,null,null,null,null,null,null,null,null,null,null,null,null,null,null,null,null,null,""]
[null,null,null,null,null,null,null,null,null,null,null,null,null,null,null,null,null,null,null,null,null,null,null,null,null,null,null,null,null,null,null,null,null,null,null,null,null,null,null,null,null,null,null,null,null,null,null,null,null,null,null,""]
[null,null,null,null,null,null,null,null,null,null,null,null,null,null,null,null,null,null,null,null,null,null,null,null,null,null,null,null,null,null,null,null,null,null,null,null,null,null,null,null,null,null,null,null,null,null,null,null,null,null,null,""]
[null,null,null,null,null,null,null,null,null,null,null,null,null,null,null,null,null,null,null,null,null,null,null,null,null,null,null,null,null,null,null,null,null,null,null,null,null,null,null,null,null,null,null,null,null,null,null,null,null,null,null,""]
[null,null,null,null,null,null,null,null,null,null,null,null,null,null,null,null,null,null,null,null,null,null,null,null,null,null,null,null,null,null,null,null,null,null,null,null,null,null,null,null,null,null,null,null,null,null,null,null,null,null,null,""]
[null,null,null,null,null,null,null,null,null,null,null,null,null,null,null,null,null,null,null,null,null,null,null,null,null,null,null,null,null,null,null,null,null,null,null,null,null,null,null,null,null,null,null,null,null,null,null,null,null,null,null,""]
[null,null,null,null,null,null,null,null,null,null,null,null,null,null,null,null,null,null,null,null,null,null,null,null,null,null,null,null,null,null,null,null,null,null,null,null,null,null,null,null,null,null,null,null,null,null,null,null,null,null,null,""]
[null,null,null,null,null,null,null,null,null,null,null,null,null,null,null,null,null,null,null,null,null,null,null,null,null,null,null,null,null,null,null,null,null,null,null,null,null,null,null,null,null,null,null,null,null,null,null,null,null,null,null,""]
[null,null,null,null,null,null,null,null,null,null,null,null,null,null,null,null,null,null,null,null,null,null,null,null,null,null,null,null,null,null,null,null,null,null,null,null,null,null,null,null,null,null,null,null,null,null,null,null,null,null,null,""]
[null,null,null,null,null,null,null,null,null,null,null,null,null,null,null,null,null,null,null,null,null,null,null,null,null,null,null,null,null,null,null,null,null,null,null,null,null,null,null,null,null,null,null,null,null,null,null,null,null,null,null,""]
[null,null,null,null,null,null,null,null,null,null,null,null,null,null,null,null,null,null,null,null,null,null,null,null,null,null,null,null,null,null,null,null,null,null,null,null,null,null,null,null,null,null,null,null,null,null,null,null,null,null,null,""]
[null,null,null,null,null,null,null,null,null,null,null,null,null,null,null,null,null,null,null,null,null,null,null,null,null,null,null,null,null,null,null,null,null,null,null,null,null,null,null,null,null,null,null,null,null,null,null,null,null,null,null,""]
[null,null,null,null,null,null,null,null,null,null,null,null,null,null,null,null,null,null,null,null,null,null,null,null,null,null,null,null,null,null,null,null,null,null,null,null,null,null,null,null,null,null,null,null,null,null,null,null,null,null,null,""]
[null,null,null,null,null,null,null,null,null,null,null,null,null,null,null,null,null,null,null,null,null,null,null,null,null,null,null,null,null,null,null,null,null,null,null,null,null,null,null,null,null,null,null,null,null,null,null,null,null,null,null,""]
[null,null,null,null,null,null,null,null,null,null,null,null,null,null,null,null,null,null,null,null,null,null,null,null,null,null,null,null,null,null,null,null,null,null,null,null,null,null,null,null,null,null,null,null,null,null,null,null,null,null,null,""]
[null,null,null,null,null,null,null,null,null,null,null,null,null,null,null,null,null,null,null,null,null,null,null,null,null,null,null,null,null,null,null,null,null,null,null,null,null,null,null,null,null,null,null,null,null,null,null,null,null,null,null,""]
[null,null,null,null,null,null,null,null,null,null,null,null,null,null,null,null,null,null,null,null,null,null,null,null,null,null,null,null,null,null,null,null,null,null,null,null,null,null,null,null,null,null,null,null,null,null,null,null,null,null,null,""]
[null,null,null,null,null,null,null,null,null,null,null,null,null,null,null,null,null,null,null,null,null,null,null,null,null,null,null,null,null,null,null,null,null,null,null,null,null,null,null,null,null,null,null,null,null,null,null,null,null,null,null,""]
[null,null,null,null,null,null,null,null,null,null,null,null,null,null,null,null,null,null,null,null,null,null,null,null,null,null,null,null,null,null,null,null,null,null,null,null,null,null,null,null,null,null,null,null,null,null,null,null,null,null,null,""]
[null,null,null,null,null,null,null,null,null,null,null,null,null,null,null,null,null,null,null,null,null,null,null,null,null,null,null,null,null,null,null,null,null,null,null,null,null,null,null,null,null,null,null,null,null,null,null,null,null,null,null,""]
[null,null,null,null,null,null,null,null,null,null,null,null,null,null,null,null,null,null,null,null,null,null,null,null,null,null,null,null,null,null,null,null,null,null,null,null,null,null,null,null,null,null,null,null,null,null,null,null,null,null,null,""]
[null,null,null,null,null,null,null,null,null,null,null,null,null,null,null,null,null,null,null,null,null,null,null,null,null,null,null,null,null,null,null,null,null,null,null,null,null,null,null,null,null,null,null,null,null,null,null,null,null,null,null,""]
[null,null,null,null,null,null,null,null,null,null,null,null,null,null,null,null,null,null,null,null,null,null,null,null,null,null,null,null,null,null,null,null,null,null,null,null,null,null,null,null,null,null,null,null,null,null,null,null,null,null,null,""]
[null,null,null,null,null,null,null,null,null,null,null,null,null,null,null,null,null,null,null,null,null,null,null,null,null,null,null,null,null,null,null,null,null,null,null,null,null,null,null,null,null,null,null,null,null,null,null,null,null,null,null,""]
[null,null,null,null,null,null,null,null,null,null,null,null,null,null,null,null,null,null,null,null,null,null,null,null,null,null,null,null,null,null,null,null,null,null,null,null,null,null,null,null,null,null,null,null,null,null,null,null,null,null,null,""]
[null,null,null,null,null,null,null,null,null,null,null,null,null,null,null,null,null,null,null,null,null,null,null,null,null,null,null,null,null,null,null,null,null,null,null,null,null,null,null,null,null,null,null,null,null,null,null,null,null,null,null,""]

{"sheet":"④申込みスケジュール","index":5,"n_rows":25,"n_cols":16,"rows_kept":25,"cut":false,"hidden":false,"merged":[[2,1,2,15],[4,1,5,3],[4,4,4,15],[6,1,24,1],[6,2,7,2],[6,4,6,6],[6,7,7,15],[7,4,7,6],[8,2,9,2],[8,4,8,6],[8,8,9,15],[17,9,17,15],[9,5,9,7],[10,2,11,2],[10,5,10,7],[10,9,11,15],[11,6,11,8],[12,2,13,2],[12,6,12,8],[12,10,13,15],[13,7,13,9],[14,2,15,2],[14,7,14,9],[14,11,15,15],[15,8,15,10],[22,14,22,15],[16,8,16,15],[18,10,18,15],[19,11,19,15],[20,12,20,15],[21,13,21,15]]}
[]
[]
[null,"申込みスケジュール"]
[]
[null,"2025年度",null,null,"受 診 希 望 月"]
[null,null,null,null,"4月健診","5月健診","6月健診","7月健診","8月健診","9月健診","10月健診","11月健診","12月健診","1月健診","2月健診","3月健診"]
[null,"申込み時期","2月","15日までに申込み","2月末日までに回答",null,null,"3月末日までに回答　　　　　　　　　　　　　　　　　　　　"]
[null,null,null,"末日までに申込み","3月15日までに回答"]
[null,null,"3月","15日までに申込み","3月末日までに回答",null,null,null,"4月末日までに回答　　　　　　　　　　　　　　　　　　　　"]
[null,null,null,"末日までに申込み",null,"4月15日までに回答"]
[null,null,"4月","15日までに申込み",null,"4月末日までに回答",null,null,null,"5月末日までに回答　　　　　　　　　　　　　　　　　　　　"]
[null,null,null,"末日までに申込み",null,null,"5月15日までに回答"]
[null,null,"5月","15日までに申込み",null,null,"5月末日までに回答",null,null,null,"6月末日までに回答　　　　　　　　　　　　　　　　　　　　"]
[null,null,null,"末日までに申込み",null,null,null,"6月15日までに回答"]
[null,null,"6月","15日までに申込み",null,null,null,"6月末日までに回答",null,null,null,"7月末日までに回答　　　　　　　　　　　　　　　　　　　　"]
[null,null,null,"末日までに申込み",null,null,null,null,"7月15日までに回答"]
[null,null,"7月","末日までに申込み",null,null,null,null,"2週間以内に回答"]
[null,null,"8月","末日までに申込み",null,null,null,null,null,"2週間以内に回答"]
[null,null,"9月","末日までに申込み",null,null,null,null,null,null,"2週間以内に回答"]
[null,null,"10月","末日までに申込み",null,null,null,null,null,null,null,"2週間以内に回答"]
[null,null,"11月","末日までに申込み",null,null,null,null,null,null,null,null,"2週間以内に回答"]
[null,null,"12月","末日までに申込み",null,null,null,null,null,null,null,null,null,"2週間以内に回答"]
[null,null,"1月","末日までに申込み",null,null,null,null,null,null,null,null,null,null,"2週間以内に回答"]
[null,null,"2月","末日までに申込み",null,null,null,null,null,null,null,null,null,null,null,"2週間以内\nに回答"]
[null,null,"3月","末日までに申込み",null,null,null,null,null,null,null,null,null,null,null,"随時回答"]

{"sheet":"⑤営業時間","index":6,"n_rows":65,"n_cols":14,"rows_kept":65,"cut":false,"hidden":false,"merged":[[62,1,62,13],[4,1,4,13],[5,1,5,13],[59,1,59,13],[60,1,60,13],[54,1,55,1],[56,1,57,1],[35,1,35,13],[43,1,43,2],[16,1,16,2],[46,12,56,13],[52,8,52,9],[54,8,54,9],[42,1,42,2],[11,1,11,13],[46,1,47,1],[48,1,49,1],[50,1,51,1],[52,1,53,1],[51,6,51,7],[53,6,53,7],[55,6,55,7],[46,8,46,9],[48,8,48,9],[1,1,1,13],[41,1,41,2],[33,1,33,13],[32,1,32,13],[19,1,20,1],[21,1,22,1],[23,1,24,1],[25,1,26,1],[27,1,28,1],[29,1,30,1],[15,1,15,2],[14,1,14,2],[3,1,3,13],[14,3,14,13],[15,3,15,13],[16,3,16,13],[19,3,19,5],[20,3,20,5],[21,3,21,5],[23,3,23,5],[24,3,24,5],[25,3,25,5],[26,8,26,13],[29,3,29,5],[50,8,50,9],[51,3,51,5],[52,3,52,5],[53,3,53,5],[54,3,54,5],[55,3,55,5],[46,3,46,5],[47,3,47,5],[48,3,48,5],[49,3,49,5],[50,3,50,5],[29,6,29,7],[27,6,27,7],[25,6,25,7],[23,6,23,7],[21,6,21,7],[22,3,22,13],[28,3,28,13],[26,6,26,7],[24,6,24,7],[26,3,26,5],[27,3,27,5],[27,8,27,13],[17,8,17,13],[17,3,17,7],[17,1,18,2],[19,8,19,13],[21,8,21,13],[25,8,25,13],[23,8,23,13],[20,8,20,13],[24,8,24,13],[19,6,19,7],[20,6,20,7],[63,1,63,13],[64,1,64,13],[44,3,44,7],[44,8,44,13],[44,1,45,2],[34,1,34,13],[61,1,61,13],[29,11,29,13],[29,8,29,9],[56,8,56,9],[41,3,41,13],[42,3,42,13],[43,3,43,13],[56,3,56,5],[57,3,57,13],[46,6,46,7],[48,6,48,7],[56,6,56,7],[54,6,54,7],[52,6,52,7],[50,6,50,7],[47,6,47,7],[49,6,49,7],[30,3,30,13]]}
[]
[]
[]
[null,"2025年度"]
[null,"桜十字福岡病院・桜十字博多駅健診クリニック"]
[null,"　人間ドック/健康診断　営業時間ご案内"]
[]
[]
[]
[]
[]
[null,"適用期間 ( 2025年4月1日 ～ 2026年3月31日 )　　　　※予定はご案内無しに変更となる場合がございます。予めご了承ください。"]
[]
[]
[null,"施設名称",null,"　桜十字福岡病院 2F　　人間ドック・健診センター"]
[null,"所在地",null,"　福岡市中央区渡辺通3-5-11"]
[null,"営業時間",null,"　【AM】 7：45 ～ 10：30 (※土曜日： 8：00 ～ 9：45)　　　　　【PM】 13：45 ～ 15：00"]
[null,null,null,"健診コース",null,null,null,null,"検査項目"]
[null,null,null,"定期健診","雇用時健診","法定健診\n(胃の検査なし)","生活習慣病\n健診","人間\nドック","超音波検査\n(エコー) ※1","胃部検査\n※2","大腸検査\n※3","婦人科検診\n※4","MRI","CT"]
[null,"月","AM",null,null,null,"○",null,"○"]
[null,null,"PM","○"]
[null,"火","AM",null,null,null,"○",null,"○"]
[null,null,"PM","休　診"]
[null,"水","AM",null,null,null,"○",null,"○"]
[null,null,"PM","○"]
[null,"木","AM",null,null,null,"○",null,"○"]
[null,null,"PM","○"]
[null,"金","AM",null,null,null,"○",null,"○"]
[null,null,"PM","休　診"]
[null,"土","AM",null,null,null,"○",null,"○",null,null,"○"]
[null,null,"PM","休　診"]
[]
[null,"※1　超音波検査　→　腹部エコー ・ 頸動脈エコー ・ 甲状腺エコー"]
[null,"※2　胃部検査　　 →　バリウム検査 ・ 胃カメラ検査（鎮静剤あり/なし）"]
[null,"※3　大腸検査　　 →　大腸CT（月曜日/金曜日のみ） ・ 大腸カメラ（月曜日～金曜日）"]
[null,"※4　婦人科検診　→　子宮頸部細胞診 ・ 経腟エコー ・ マンモグラフィー（１方向/2方向）　　土曜日はマンモグラフィーのみ受診可能"]
[]
[]
[]
[]
[]
[null,"施設名称",null,"　桜十字博多駅健診クリニック"]
[null,"所在地",null,"　福岡市博多区博多駅中央街8-1　JRJP博多ビル ８Ｆ"]
[null,"営業時間",null,"　【AM】 8：00 ～ 11：00 (※土曜日： 8：00 ～ 10：15)　　　　　【PM】 月・火・木　14：00 ～ 15：30　/　水・金　14：00 ～ 14：30"]
[null,null,null,"健診コース",null,null,null,null,"検査項目"]
[null,null,null,"定期健診","雇用時健診","法定健診\n(胃の検査なし)","生活習慣病\n健診","人間\nドック","超音波検査\n(エコー) ※1","胃部検査\n※2","大腸検査\n※3","婦人科検診\n※4","MRI","CT"]
[null,"月","AM",null,null,null,"○",null,"○",null,null,"　　○※5","MRI・CT は\n“桜十字福岡病院”\nでのみ受診可能"]
[null,null,"PM","○",null,null,null,null,null,null,"○"]
[null,"火","AM",null,null,null,"○",null,"○",null,null,"○"]
[null,null,"PM","○",null,null,null,null,null,null,"○"]
[null,"水","AM",null,null,null,"○",null,"○",null,null,"○"]
[null,null,"PM","○",null,null,null,null,null,null,"○"]
[null,"木","AM",null,null,null,"○",null,"○",null,null,"○"]
[null,null,"PM","○",null,null,null,null,null,null,"○"]
[null,"金","AM",null,null,null,"　　○※6",null,"○",null,null,"○"]
[null,null,"PM","○",null,null,null,null,null,null,"○"]
[null,"土","AM",null,null,null,"○",null,"○"]
[null,null,"PM","休　診"]
[]
[null,"※1　超音波検査　→　腹部エコー ・ 頸動脈エコー ・ 甲状腺エコー"]
[null,"※2　胃部検査　　 →　バリウム検査 ・ 胃カメラ検査（鎮静剤あり/なし）"]
[null,"※3　大腸検査　　 →　大腸カメラのみ"]
[null,"※4　婦人科検診　→　子宮頸部細胞診 ・ 経腟エコー ・ マンモグラフィー（１方向/2方向）"]
[null,"※5　月曜日は子宮頸部細胞診の検査を行っておりません。"]
[null,"※6　金曜日の午前中はレディースデーです。　男性のご予約は承れません。"]

{"sheet":"⑥診療日カレンダー","index":7,"n_rows":134,"n_cols":24,"rows_kept":134,"cut":false,"hidden":false,"merged":[[2,1,2,23],[20,1,20,7],[20,9,20,15],[20,17,20,23],[4,1,4,23],[6,1,6,7],[6,9,6,15],[6,17,6,23],[90,1,90,7],[90,9,90,15],[90,17,90,23],[36,1,36,7],[36,9,36,15],[36,17,36,23],[52,1,52,7],[52,9,52,15],[52,17,52,23],[74,1,74,23],[76,1,76,7],[76,9,76,15],[76,17,76,23],[72,1,72,23],[106,1,106,7],[106,9,106,15],[106,17,106,23],[122,1,122,7],[122,9,122,15],[122,17,122,23]]}
[]
[]
[null,"健診カレンダー（天神）"]
[]
[null,"　　　　火曜日・金曜日・土曜日は午前のみ（午後休館）"]
[]
[null,2025,null,null,null,null,null,null,null,2025,null,null,null,null,null,null,null,2025]
[null,"日","月","火","水","木","金","土",null,"日","月","火","水","木","金","土",null,"日","月","火","水","木","金","土"]
[null,null,null,1,2,3,4,5,null,null,null,null,null,1,2,3,null,1,2,3,4,5,6,7]
[null,null,null,null,null,null,null,"休館",null,null,null,null,null,null,null,"休館",null,"休館"]
[null,6,7,8,9,10,11,12,null,4,5,6,7,8,9,10,null,8,9,10,11,12,13,14]
[null,"休館",null,null,null,null,null,"休館",null,"休館","休館","休館",null,null,null,"休館",null,"休館",null,null,null,null,null,"休館"]
[null,13,14,15,16,17,18,19,null,11,12,13,14,15,16,17,null,15,16,17,18,19,20,21]
[null,"休館",null,null,null,null,null,null,null,"休館",null,null,null,null,null,null,null,"休館"]
[null,20,21,22,23,24,25,26,null,18,19,20,21,22,23,24,null,22,23,24,25,26,27,28]
[null,"休館",null,null,null,null,null,"休館",null,"休館",null,null,null,null,null,"休館",null,"休館",null,null,null,null,null,"休館"]
[null,27,28,29,30,null,null,null,null,25,26,27,28,29,30,31,null,29,30]
[null,"休館",null,"休館",null,null,null,null,null,"休館",null,null,null,null,null,null,null,"休館"]
[]
[]
[null,2025,null,null,null,null,null,null,null,2025,null,null,null,null,null,null,null,2025]
[null,"日","月","火","水","木","金","土",null,"日","月","火","水","木","金","土",null,"日","月","火","水","木","金","土"]
[null,null,null,1,2,3,4,5,null,null,null,null,null,null,1,2,null,null,1,2,3,4,5,6]
[]
[null,6,7,8,9,10,11,12,null,3,4,5,6,7,8,9,null,7,8,9,10,11,12,13]
[null,"休館",null,null,null,null,null,"休館",null,"休館",null,null,null,null,null,"休館",null,"休館",null,null,null,null,null,"休館"]
[null,13,14,15,16,17,18,19,null,10,11,12,13,14,15,16,null,14,15,16,17,18,19,20]
[null,"休館",null,null,null,null,null,null,null,"休館","休館",null,null,null,null,null,null,"休館","休館"]
[null,20,21,22,23,24,25,26,null,17,18,19,20,21,22,23,null,21,22,23,24,25,26,27]
[null,"休館","休館",null,null,null,null,"休館",null,"休館",null,null,null,null,null,"休館",null,"休館",null,"休館",null,null,null,"休館"]
[null,27,28,29,30,31,null,null,null,24,25,26,27,28,29,30,null,28,29,30]
[null,"休館",null,null,null,null,null,null,null,"休館",null,null,null,null,null,null,null,"休館"]
[null,null,null,null,null,null,null,null,null,31]
[null,null,null,null,null,null,null,null,null,"休館"]
[]
[]
[null,2025,null,null,null,null,null,null,null,2025,null,null,null,null,null,null,null,2025]
[null,"日","月","火","水","木","金","土",null,"日","月","火","水","木","金","土",null,"日","月","火","水","木","金","土"]
[null,null,null,null,1,2,3,4,null,null,null,null,null,null,null,1,null,null,1,2,3,4,5,6]
[]
[null,5,6,7,8,9,10,11,null,2,3,4,5,6,7,8,null,7,8,9,10,11,12,13]
[null,"休館",null,null,null,null,null,"休館",null,"休館","休館",null,null,null,null,"休館",null,"休館",null,null,null,null,null,"休館"]
[null,12,13,14,15,16,17,18,null,9,10,11,12,13,14,15,null,14,15,16,17,18,19,20]
[null,"休館","休館",null,null,null,null,null,null,"休館",null,null,null,null,null,null,null,"休館"]
[null,19,20,21,22,23,24,25,null,16,17,18,19,20,21,22,null,21,22,23,24,25,26,27]
[null,"休館",null,null,null,null,null,"休館",null,"休館",null,null,null,null,null,"休館",null,"休館",null,null,null,null,null,"休館"]
[null,26,27,28,29,30,31,null,null,23,24,25,26,27,28,29,null,28,29,30,31]
[null,"休館",null,null,null,null,null,null,null,"休館","休館",null,null,null,null,null,null,"休館","休館","休館","休館"]
[null,null,null,null,null,null,null,null,null,30]
[null,null,null,null,null,null,null,null,null,"休館"]
[]
[]
[null,2026,null,null,null,null,null,null,null,2026,null,null,null,null,null,null,null,2026]
[null,"日","月","火","水","木","金","土",null,"日","月","火","水","木","金","土",null,"日","月","火","水","木","金","土"]
[null,null,null,null,null,1,2,3,null,1,2,3,4,5,6,7,null,1,2,3,4,5,6,7]
[null,null,null,null,null,"休館","休館","休館",null,"休館",null,null,null,null,null,null,null,"休館"]
[null,4,5,6,7,8,9,10,null,8,9,10,11,12,13,14,null,8,9,10,11,12,13,14]
[null,"休館",null,null,null,null,null,"休館",null,"休館",null,null,null,null,null,"休館",null,"休館",null,null,null,null,null,"休館"]
[null,11,12,13,14,15,16,17,null,15,16,17,18,19,20,21,null,15,16,17,18,19,20,21]
[null,"休館","休館",null,null,null,null,null,null,"休館",null,null,null,null,null,null,null,"休館",null,null,null,null,"休館"]
[null,18,19,20,21,22,23,24,null,22,23,24,25,26,27,28,null,22,23,24,25,26,27,28]
[null,"休館",null,null,null,null,null,"休館",null,"休館","休館",null,null,null,null,"休館",null,"休館",null,null,null,null,null,"休館"]
[null,25,26,27,28,29,30,31,null,null,null,null,null,null,null,null,null,29,30,31]
[null,"休館",null,null,null,null,null,null,null,null,null,null,null,null,null,null,null,"休館"]
[]
[]
[]
[]
[]
[]
[]
[]
[null,"健診カレンダー（博多）"]
[]
[null,"　　　　金曜日はレディースデー（午前中は女性専用　午後は男女可能）　　　　　　　　　　　　　　　　土曜日は午前のみ（午後休館）"]
[]
[null,2025,null,null,null,null,null,null,null,2025,null,null,null,null,null,null,null,2025]
[null,"日","月","火","水","木","金","土",null,"日","月","火","水","木","金","土",null,"日","月","火","水","木","金","土"]
[null,null,null,1,2,3,4,5,null,null,null,null,null,1,2,3,null,1,2,3,4,5,6,7]
[null,null,null,null,null,null,null,"休館",null,null,null,null,null,null,null,"休館",null,"休館",null,null,null,null,null,"休館"]
[null,6,7,8,9,10,11,12,null,4,5,6,7,8,9,10,null,8,9,10,11,12,13,14]
[null,"休館",null,null,null,null,null,"休館",null,"休館","休館","休館",null,null,null,"休館",null,"休館",null,null,null,null,null,"休館"]
[null,13,14,15,16,17,18,19,null,11,12,13,14,15,16,17,null,15,16,17,18,19,20,21]
[null,"休館",null,null,null,null,null,null,null,"休館",null,null,null,null,null,null,null,"休館"]
[null,20,21,22,23,24,25,26,null,18,19,20,21,22,23,24,null,22,23,24,25,26,27,28]
[null,"休館",null,null,null,null,null,"休館",null,"休館",null,null,null,null,null,"休館",null,"休館",null,null,null,null,null,"休館"]
[null,27,28,29,30,null,null,null,null,25,26,27,28,29,30,31,null,29,30]
[null,"休館",null,"休館",null,null,null,null,null,"休館",null,null,null,null,null,"休館",null,"休館"]
[]
[]
[null,2025,null,null,null,null,null,null,null,2025,null,null,null,null,null,null,null,2025]
[null,"日","月","火","水","木","金","土",null,"日","月","火","水","木","金","土",null,"日","月","火","水","木","金","土"]
[null,null,null,1,2,3,4,5,null,null,null,null,null,null,1,2,null,null,1,2,3,4,5,6]
[null,null,null,null,null,null,null,"休館",null,null,null,null,null,null,null,"休館",null,null,null,null,null,null,null,"休館"]
[null,6,7,8,9,10,11,12,null,3,4,5,6,7,8,9,null,7,8,9,10,11,12,13]
[null,"休館",null,null,null,null,null,"休館",null,"休館",null,null,null,null,null,"休館",null,"休館",null,null,null,null,null,"休館"]
[null,13,14,15,16,17,18,19,null,10,11,12,13,14,15,16,null,14,15,16,17,18,19,20]
[null,"休館",null,null,null,null,null,null,null,"休館","休館",null,null,null,null,null,null,"休館","休館"]
[null,20,21,22,23,24,25,26,null,17,18,19,20,21,22,23,null,21,22,23,24,25,26,27]
[null,"休館","休館",null,null,null,null,"休館",null,"休館",null,null,null,null,null,"休館",null,"休館",null,"休館",null,null,null,"休館"]
[null,27,28,29,30,31,null,null,null,24,25,26,27,28,29,30,null,28,29,30]
[null,"休館",null,null,null,null,null,null,null,"休館",null,null,null,null,null,"休館",null,"休館"]
[null,null,null,null,null,null,null,null,null,31]
[null,null,null,null,null,null,null,null,null,"休館"]
[]
[]
[null,2025,null,null,null,null,null,null,null,2025,null,null,null,null,null,null,null,2025]
[null,"日","月","火","水","木","金","土",null,"日","月","火","水","木","金","土",null,"日","月","火","水","木","金","土"]
[null,null,null,null,1,2,3,4,null,null,null,null,null,null,null,1,null,null,1,2,3,4,5,6]
[null,null,null,null,null,null,null,"休館",null,null,null,null,null,null,null,"休館",null,null,null,null,null,null,null,"休館"]
[null,5,6,7,8,9,10,11,null,2,3,4,5,6,7,8,null,7,8,9,10,11,12,13]
[null,"休館",null,null,null,null,null,"休館",null,"休館","休館",null,null,null,null,"休館",null,"休館",null,null,null,null,null,"休館"]
[null,12,13,14,15,16,17,18,null,9,10,11,12,13,14,15,null,14,15,16,17,18,19,20]
[null,"休館","休館",null,null,null,null,null,null,"休館",null,null,null,null,null,null,null,"休館"]
[null,19,20,21,22,23,24,25,null,16,17,18,19,20,21,22,null,21,22,23,24,25,26,27]
[null,"休館",null,null,null,null,null,"休館",null,"休館",null,null,null,null,null,"休館",null,"休館",null,null,null,null,null,"休館"]
[null,26,27,28,29,30,31,null,null,23,24,25,26,27,28,29,null,28,29,30,31]
[null,"休館",null,null,null,null,null,null,null,"休館","休館",null,null,null,null,"休館",null,"休館","休館","休館","休館"]
[null,null,null,null,null,null,null,null,null,30]
[null,null,null,null,null,null,null,null,null,"休館"]
[]
[]
[null,2026,null,null,null,null,null,null,null,2026,null,null,null,null,null,null,null,2026]
[null,"日","月","火","水","木","金","土",null,"日","月","火","水","木","金","土",null,"日","月","火","水","木","金","土"]
[null,null,null,null,null,1,2,3,null,1,2,3,4,5,6,7,null,1,2,3,4,5,6,7]
[null,null,null,null,null,"休館","休館","休館",null,"休館",null,null,null,null,null,"休館",null,"休館",null,null,null,null,null,"休館"]
[null,4,5,6,7,8,9,10,null,8,9,10,11,12,13,14,null,8,9,10,11,12,13,14]
[null,"休館",null,null,null,null,null,"休館",null,"休館",null,null,null,null,null,"休館",null,"休館",null,null,null,null,null,"休館"]
[null,11,12,13,14,15,16,17,null,15,16,17,18,19,20,21,null,15,16,17,18,19,20,21]
[null,"休館","休館",null,null,null,null,null,null,"休館",null,null,null,null,null,null,null,"休館",null,null,null,null,"休館"]
[null,18,19,20,21,22,23,24,null,22,23,24,25,26,27,28,null,22,23,24,25,26,27,28]
[null,"休館",null,null,null,null,null,"休館",null,"休館","休館",null,null,null,null,"休館",null,"休館",null,null,null,null,null,"休館"]
[null,25,26,27,28,29,30,31,null,null,null,null,null,null,null,null,null,29,30,31]
[null,"休館",null,null,null,null,null,"休館",null,null,null,null,null,null,null,null,null,"休館"]

{"sheet":"⑦オプション一覧","index":8,"n_rows":69,"n_cols":6,"rows_kept":69,"cut":false,"hidden":false,"merged":[[26,1,35,1],[36,1,39,1],[40,1,41,1],[44,1,46,1],[44,3,45,3],[47,1,56,1],[1,1,1,5],[9,4,9,5],[11,4,11,5],[12,4,12,5],[15,4,15,5],[14,4,14,5],[4,1,12,1],[13,1,15,1],[25,4,25,5],[24,4,24,5],[2,4,2,5],[2,1,3,2],[2,3,3,3],[16,1,21,1],[22,1,25,1],[21,4,21,5],[20,4,20,5],[19,4,19,5],[17,4,17,5],[23,4,23,5],[46,4,46,5],[32,4,32,5],[30,4,30,5],[29,4,29,5],[28,4,28,5],[35,4,35,5],[34,4,34,5],[33,4,33,5],[36,4,36,5],[41,4,41,5],[40,4,40,5],[43,4,43,5],[42,4,42,5],[31,4,31,5],[68,2,68,5],[48,4,48,5],[50,4,50,5],[53,4,53,5],[52,4,52,5],[51,4,51,5],[67,4,67,5],[66,4,66,5],[65,4,65,5],[57,1,67,1],[64,4,64,5],[63,4,63,5],[62,4,62,5],[60,4,60,5],[59,4,59,5],[58,4,58,5],[57,4,57,5],[61,4,61,5]]}
[]
[null,"2025年度 　　オプション検査料金表"]
[null,"オプション名",null,"検査の説明","料金（税込）"]
[null,null,null,null,"天神","博多"]
[null,"脳・心臓","頭部MRI・MRA　※1","磁石と電磁波を用い放射線被曝なく脳の状態を詳しく調べることができるため、将来の脳卒中予防の目的で脳ドックの主要検査項目の一つとなっています。また造影剤（薬剤）を用いずに脳の動脈を立体的に観察できるため、くも膜下出血の原因となる未破裂動脈瘤の有無についても調べることが可能です。",27500]
[null,null,"頸動脈エコー","頸動脈にエコーをあて動脈壁の厚さを測定し、全身の動脈硬化の程度を判定する検査です。また頸動脈が狭くなっていないかについても調べることができます。",4730,4400]
[null,null,"脳検査セット　※1\n　（頭部MRI・MRA + 頸動脈エコー）","MRIによる脳や脳動脈の状態チェックとエコーによる動脈硬化のチェックを合わせたセットです。40歳以上、飲酒や喫煙量が多い、血縁者に脳卒中になった方がいる、肥満や生活習慣病がある方などにおすすめです。",29150]
[null,null,"AI認知機能検査（BrainSuite）","AIを使用した認知機能検査です。脳画像検査（MRI）及び認知機能スクリーニング検査を行い、現在の脳機能を評価することで、生活習慣を見直し、脳萎縮を抑え認知症等の疾患を予防・脳健康を維持することにつなげます。\n※MRIの検査と併せて実施する為、すでにMRIを申し込まれている方が追加可能です。",11220]
[null,null,"AI認知機能検査セット　※1\n　（頭部MRI・MRA + BrainSuite）","MRIによる脳や脳動脈の状態チェックとAIを使用した認知機能検査を合わせたセットです。",35200]
[null,null,"MCIスクリーニング検査プラス","軽度認知障害 (MCI ）のリスク を調べることができる40歳以上の方にお勧めの血液検査です。\n認知症の予備軍とも言われ、そのまま放置すると5年で50%近くが認知症に進行しすると言われております。また急性炎症が認められる方、肝硬変の方、先天的脂質異常症の方、自己免疫性疾患をお持ちの方は判定結果に影響する可能性がございます。",24200]
[null,null,"安静時心電図","手足・胸に電極を付け、心臓が発する電気刺激を波形として記録する検査です。心臓の病気を発見する手掛かりになります。",1980,1650]
[null,null,"NTPro-BNP","心臓にかかる負荷の有無やその程度を測定する心機能のマーカーです。自覚症状のない初期の段階の心機能低下の早期発見につながります。",2750]
[null,null,"LOX‐index　※1","脳梗塞や心筋梗塞の原因となる動脈硬化の原因物質を測定することにより、脳梗塞や心筋梗塞の発症リスクがわかる最新の検査です。近親者でこれらの疾患の既往歴がある方、コレステロールや血糖値が高い方、喫煙されている40歳以上の方などにおすすめです。妊娠中の方は正確な数値が出ませんのでご注意ください。",13200]
[null,"肺","低線量肺がんCT　※1","日本人のがん死亡者数の第１位である肺がんを発見することに特化したCT検査です。対象臓器を肺に限定することで、被ばく線量を従来の胸部CTの約1/5（当院従来比）に低減させることができます。",11000]
[null,null,"Pro‐GRP","肺がん（特に小細胞がん）に有用な腫瘍マーカーです。",2750]
[null,null,"シフラ","肺がん（特に扁平上皮がん）に有用な腫瘍マーカーです。",2750]
[null,"胃","胃透視（バリウム検査）　※1","バリウムを飲んでX線で食道・胃・十二指腸の上部消化管の検査を行います。胃全体の形を捉えやすいため、スキルス胃がんの特徴である胃の伸展不良（壁が硬くふくらみが悪い）の診断に有用です。",12100,11000]
[null,null,"35歳未満限定胃透視（バリウム検査）　※1","35歳未満限定料金。一般的な胃がんはピロリ菌の感染や喫煙などがリスクとされ50代以上の男性に多いのに対して、スキルス胃がんは20代や30代の若年層（特に女性）にも発生することがあります。",7700]
[null,null,"胃カメラ（胃内視鏡検査）　※1","内視鏡を使用して、食道・胃・十二指腸を直接観察し、がん、潰瘍・ポリープ・炎症などの発見に有用です。カメラを口から挿入する方法と鼻から挿入する方法があります。",17600,16500]
[null,null,"胃カメラ鎮静剤","胃カメラ時（口から挿入する場合）に使用します。意識がぼんやりとした状態となり苦痛を軽減できますが、使用後は一定時間お休み頂きます。検査当日は車等の運転は出来ません。※鎮静効果には個人差があります。",3300]
[null,null,"ヘリコバクターピロリIgG","胃がんや胃潰瘍の原因と言われる「ピロリ菌」に感染していないかを調べます。",2750]
[null,null,"ABC検査（胃がんリスク健診）","ピロリ菌感染の有無と胃粘膜萎縮の程度を測定し、胃がんのリスクを総合的に判定します。\n明らかな消化器症状のある方や治療中の方、ピロリ菌の除菌後の方は正しい結果が得られませんのでご注意ください。",6600]
[null,"大腸","大腸カメラ（大腸内視鏡検査）　※1","肛門から内視鏡を入れて直腸から盲腸までの大腸全体を直接観察します。大腸がんは男女ともに死因の上位です。40歳以上の方は一度検査をすることをお勧めします。",27500,24200]
[null,null,"便潜血","便中の血液混入の有無を判断する検査です。大腸がんを発見する手がかりとなります。",1650]
[null,null,"Flora Scan","日本人特有の腸内フローラ（腸内細菌の種類や量）のタイプを5つに分類し、生活習慣病、および腸疾患等との関連性を調べる検査です。",16500]
[null,null,"CEA","大腸がん発見の手がかりとなる検査です。便潜血とセットでの受診をおすすめします。",2750]
[null,"肝臓・胆のう・膵臓","腹部エコー","超音波を発する器具（プローブ）を腹部にあてて、上腹部臓器（肝臓・胆のう・すい臓・腎臓・ひ臓・腹部大動脈）を観察し、腫瘍や結石の有無などを調べる検査です。",7150,6050]
[null,null,"腹部CT　※1","放射線を用いて、肝臓・胆のう・膵臓・腎臓・ひ臓などの上腹部臓器のほか、大動脈や骨盤内についての異常の有無を調べる検査です。",14850]
[null,null,"AFP　※1","肝臓がん発見の手がかりとなる検査です。肝がん（肝臓がん）を罹患した場合は血液中にAFPがみられるため、腫瘍マーカーとして用いられている検査です。",2750]
[null,null,"PIVKA-Ⅱ","肝臓がん発見の手がかりとなる検査です。肝細胞がんの有無の可能性を知るために行われる検査です。",2750]
[null,null,"肝臓腫瘍マーカーセット\n　（AFP※1 + PIVKA‐Ⅱ）","肝臓がん発見の手がかりとなる検査です。",4400]
[null,null,"膵臓腫瘍マーカーセット\n　（APOA2アイソフォーム + CA19-9）","異なる物質を測定する2種類の腫瘍マーカー（ 「APOA2アイソフォーム」 + 「CA19-9」 ）を組み合わせることで、相補的にすい臓がんの診断補助精度が向上します。 ",7700]
[null,null,"CA19-9 ","膵臓がん発見の手がかりとなる検査です。胃がんや大腸がんなど、消化器系のがんにも反応を示します。",2750]
[null,null,"HBｓ抗原（B型肝炎ウイルス検査）","B型肝炎ウイルス感染の有無を調べる検査です。",1320]
[null,null,"HBｓ抗体（B型肝炎ウイルス検査）","HBs抗原に対する抗体の有無を調べる検査です。陽性であれば過去に感染し、その後、治癒したことを示唆します。HBVワクチンを接種した場合にも陽性となります。",1320]
[null,null,"HCV抗体（C型肝炎ウイルス検査）","C型肝炎ウイルス感染の有無を調べる検査です。HCV抗体陽性の場合、C型肝炎ウイルスへの感染の既往を意味します。早期に検査をすること肝硬変や肝臓がんなどへの進展を防ぎます。",2200]
[null,"保健師おススメ","HbA1c (ヘモグロビンA1C）","食事や運動などの影響を受けにくく、過去1～2か月の平均的な血糖の状態を調べる検査です。血糖値のコントロール状態を知ることができます。",770]
[null,null,"眼底カメラ","カメラを用いて眼底にある血管や神経組織を観察します。緑内障、網膜色素変性症、黄斑変性症、網膜剥離、眼底出血などの眼の病気の他、高血圧や糖尿病などの全身性の病気の発見にも有効です。",2200,1650]
[null,null,"内臓脂肪CT　※1","内臓脂肪が多いほどメタボリック・シンドロームの発症の可能性が高まります。CTを用いて腹部の内臓脂肪と皮下脂肪の量を測定することで、腹囲は正常でも内臓脂肪の多い「隠れ肥満」の発見に有用です。",4180]
[null,null,"Inbody測定（体組成測定）　※1","体成分分析装置です。体脂肪率だけでなく、体を構成する基本成分である体水分・タンパク質・ミネラル・体脂肪を定量的に分析します。生活習慣を見直すきっかけになります。",1100]
[null,"甲状腺","甲状腺エコー","甲状腺に超音波をあてて甲状腺の大きさやしこりの有無など内部の状態を調べる検査です。血液検査とあわせて受けることをおすすめします。",4400]
[null,null,"TSH・FT3・FT4","甲状腺刺激ホルモンと2種類の甲状腺ホルモンの量を調べることで、女性に多い甲状腺機能異常（バセドウ病、橋本病など）の早期発見につながります。",4400]
[null,"前立腺","高感度PSA","前立腺がんに特異性の高い検査です。自覚症状のない段階での早期発見にも役立ちます。40歳以上の男性におすすめします。",2750]
[null,"リウマチ","抗CCP抗体","女性に多い病気と言われる関節リウマチの発症予測に有用な検査です。抗CCP抗体は今までのリウマチ因子検査よりはるかに鋭敏であり、正確にリウマチの発症を予測できる最も重要な血液検査です。",2200]
[null,"乳腺","マンモグラフィ（1方向）　※1","乳房を挟んでX線撮影をする検査です。小さなしこりや石灰化を調べ、近年増加している乳がんの早期発見に有用です。乳腺が豊富な方（乳腺高濃度）は、乳腺超音波との併用をおすすめします。1方向と2方向では撮影枚数が異なります。乳腺密度の高い方（30～40代）は2方向をおすすめします。",4400,3300]
[null,null,"マンモグラフィ（2方向）　※1",null,5500,4400]
[null,null,"乳腺エコー","乳房に超音波をあて、しこりや乳管の変化の有無を調べる検査です。乳腺が発達している若い方（乳腺高濃度）や妊娠中・授乳中の方にもおすすめです。",4400]
[null,"婦人科（子宮・卵巣）","子宮頸部細胞診　※2","ブラシを用いて子宮頸部より細胞を採取し子宮頸がんに至る病変細胞の有無を顕微鏡で調べる検査です。子宮頸部がんは、子宮の入り口付近に発生することが多いので、直接細胞を採取することでがん及び前がん状態を見つけることができます。",5500,4400]
[null,null,"HPV検査","子宮頸がんの原因となるHPV（ヒトパピローマウイルス）への感染の有無を調べる検査です。子宮頸がん検査（細胞診）時に一緒に検査することが可能で、同時に検査することで子宮がん検診の精度を高めることができます。\n※「子宮頚部細胞診」をお申込みの方のみ追加可能です。",5500]
[null,null,"経腟エコー","膣の中に細長いエコーの機械（プローブ）を挿入し、子宮や卵巣の状態を観察する検査です。子宮筋腫・子宮内膜症・卵巣腫瘍などの発見につながります。\n※「子宮頚部細胞診」をお申込みの方のみ追加可能です。",4180]
[null,null,"エクオール検査","エクオールとは女性ホルモンと似た働きをする成分です。腸内で、大豆イソフラボンから「エクオール」が作られているかを尿検査で調べます。更年期の症状が気になるゆらぎ世代の方々におすすめです。\n※前日に大豆食品を摂取する必要がございます。目安：納豆1/2パック、豆腐1/4丁、豆乳100cc以上",3850]
[null,null,"ホルモンチェック","女性ホルモンの乱れや自律神経の乱れは閉経前後の心身にさまざまな不調をもたらします。不調の原因が女性ホルモンの減少によるものかどうかの参考のために血中の女性ホルモンの値を調べる検査です。特にゆらぎ世代の方はご自身が閉経に向けたどのあたりの状態にいるのかの参考になります。",4400]
[null,null,"CA125　※3","卵巣がん発見の手がかりとなる検査です。妊娠中の方はご受診いただけません。",2750]
[null,null,"AMH（抗ミュラー管ホルモン）検査　※1","現在の「卵子」の数の目安、つまり卵巣予備能（卵巣年齢）を知ることができ、今後の妊活を含めライフプラン形成に役立てることができます。血液検査のため月経周期を気にせずに検査を受けられます。今後妊娠を希望される方におすすめします。",6600]
[null,null,"骨密度　※1","放射線を用いて骨の密度を測定する検査です。女性ホルモンの減少と深くかかわるため、40歳以上の女性、特に閉経後の方におすすめします。",3300,2200]
[null,null,"婦人科ナースおススメ3点セット\n　（子宮頸部細胞診※2 + HPV + 経腟エコー）","子宮・卵巣の健康状態がわかるベーシックでお得なセットです。１度内診台に上がり１０分程度で全ての検査が受けられます。",13200]
[null,null,"婦人科ナースおススメ2点セット\n　（HPV + 経腟エコー）","子宮・卵巣の健康状態がわかるベーシックでお得なセットです。１度内診台に上がり１０分程度で全ての検査が受けられます。\n※「子宮頚部細胞診」をお申込みの方のみ追加可能です。",7700]
[null,"　","風疹抗体検査","風疹に対する免疫があるかどうかを調べる検査です。",4950]
[null,null,"麻疹抗体検査","麻疹に対する免疫があるかどうかを調べる検査です。",4950]
[null,null,"血液型（ABO・Rh）","緊急で輸血が必要となる場合に役立ちます。",1100]
[null,null,"View39（アレルギー検査）　※1","アレルギー症状は、自覚症状がある方はもちろん、現在症状がなくても、ご自身がどのようなアレルゲン物質に対してアレルギーを引き起こす可能性があるか知っておくことが大切です。View39では少量の採血で一度に39種類（卵、牛乳、小麦、豆類、甲殻類、果物、魚、肉、動物、昆虫、樹木、草、カビ、塵など）のアレルギー検査が可能です。",14850]
[null,null,"アミノインデックス　※1","血液中のアミノ酸濃度を測定し、採血のみで複数のがんに罹患しているリスク(AICS)や将来、脳卒中や心筋梗塞、糖尿病などの生活習慣病になるリスク(AILS)、50歳以上の方は認知症になるリスクを評価できるスクリーニング検査です。",25300]
[null,null,"SCC抗原","扁平上皮がん（食道がん、子宮頸がん、皮膚がん、肺がん、咽頭がん）などを調べます。",2750]
[null,null,"男性向け腫瘍マーカー4種セット\n　（AFP + CA19-9 + CEA + PSA）","男性向けのお得な腫瘍マーカー４種セットです。",7700]
[null,null,"女性向け腫瘍マーカー4種セット\n　（AFP※1 + CA19-9 + CEA + CA125※3）","女性向けのお得な腫瘍マーカー４種セットです。",7700]
[null,null,"男女兼用腫瘍マーカー5種セット\n　（AFP※1 + CA19-9 + CEA + シフラ + Pro-GRP）","男性女性どちらでもご利用いただけるお得な腫瘍マーカー5種セットです。",8800]
[null,null,"男性向け腫瘍マーカー6種セット\n　（AFP + CA19-9 + CEA + シフラ + Pro-GRP + PSA） ","男性向けのお得な腫瘍マーカー６種セットです。",9900]
[null,null,"女性向け腫瘍マーカー6種セット\n　（AFP※1 + CA19-9 + CEA + シフラ + Pro‐GRP + CA125※3）","女性向けのお得な腫瘍マーカー６種セットです。",9900]
[null,null,"\n※1　妊娠中の方および妊娠の可能性がある方はご受診いただけませんのでご了承ください。\n※2　妊娠中の方および妊娠の可能性がある方はご受診いただけません。 \n　　　 また月経中の方は、検査に必要な細胞量が十分採取できない可能性がございますので、当日ご相談ください。\n※3　妊娠中の方および妊娠の可能性がある方はご受診いただけません。 \n　　　 また、月経中の方は正確な結果が出ない可能性がございますので、当日ご相談ください。\n"]

{"sheet":"取り込み用","index":9,"n_rows":1,"n_cols":33,"rows_kept":1,"cut":false,"hidden":true,"merged":[]}
["受診施設","受付フロア","予約日","予約時間帯コード","呼出時間","団体番号","個人番号","カナ氏名","漢字氏名","性別","生年月日","保険者番号","被保険者証等記号","被保険者証等番号","契約番号","主コース","胃カメラ","協会マンモ","協会子宮","オプション","オプション","本人・家族区分","従業員コード","部署コード１","部署コード２","部署コード３","郵便番号","住所１","住所２","予約コメント","E-MAIL","加入健保団体番号","予約区分"]

{"sheet":"契約コース内容","index":10,"n_rows":27,"n_cols":2,"rows_kept":27,"cut":false,"hidden":true,"merged":[]}
["F0001","◆天神◆定期健康診断Ｂ"]
["F0002","◇博多◇定期健康診断Ｂ"]
["F0003","◆天神◆定期健康診断Ａ"]
["F0101","◇博多◇定期健康診断Ａ"]
["FK001","協会けんぽ一般健診"]
["FK002","協会けんぽ付加健診"]
["FK003","◆天神◆協会けんぽ付加健診同項目"]
["FK004","◆天神◆協会けんぽ一般健診同項目"]
["FK005","◆天神◆協会けんぽ差額人間ドック"]
["FK008","◇博多◇協会けんぽ付加健診同項目"]
["FK009","◇博多◇協会けんぽ一般健診同項目"]
["FK010","◇博多◇協会けんぽ差額人間ドック"]
["FK099","協会けんぽ肝炎ウィルス検査"]
["FK100","協会けんぽ子宮頸がん検診"]
["FK101","協会けんぽ乳がん検診(2方向)"]
["FK102","協会けんぽ乳がん検診(1方向)"]
["FZ001","◆天神◆マンモグラフィ(1方向)"]
["FZ002","◆天神◆マンモグラフィ(2方向)"]
["FZ003","◆天神◆乳腺超音波"]
["FZ004","◆天神◆子宮頸部細胞診"]
["FZ032","◇博多◇マンモグラフィ(1方向)"]
["FZ033","◇博多◇マンモグラフィ(2方向)"]
["FZ034","◇博多◇乳腺超音波"]
["FZ036","◇博多◇子宮頸部細胞診"]
["FZ100","【R2/窓口払い】インフルエンザ予防接種"]
["FZC01","胃カメラ(差額5500円)"]
["FZC02","胃カメラ差額(上下セット)"]

{"sheet":"運用について","index":11,"n_rows":10,"n_cols":5,"rows_kept":10,"cut":false,"hidden":true,"merged":[[5,1,9,1],[5,2,9,2],[5,0,9,0]]}
[null,"業務内容","流れ","詳細","システム"]
["①","既存ID抽出","当院→企業","個人一覧より企業登録の既存の情報を抽出しエクセルデーターを作成","★企業やり取りエクセルデータ"]
[]
["②","今年度の受診対象者リスト作成","企業→当院","①のエクセルデータに今年度の対象者・検査コース・OPなど希望内容を担当者で整え提供してもらう","★企業やり取りエクセルデータ"]
[]
["③","予約枠・契約・日程を調整する","当院","新規ID作成（ワイズマン作成自動化あり）","★ID自動化CSV作成"]
[null,null,null,"団体契約運用を作成　（協会けんぽ親団体で運用）"]
[null,null,null,"日程を仮枠で提供　もしくは　日程を確定し提供","★一括オーダ取り込みCSV作成"]
[null,null,null,"仮枠を提供","★仮枠提供一覧作成"]
[null,null,null,"日程を確定","★日程表一覧作成"]